{"text_format":"1","workbook":"xlsx","n_sheets":9,"sheets":["TRAVEL DOCUMENT","Drop Down Menu","TIW","TIW-2","TIW-3","TIW-4","Lodging Exception Form 2","Rental Exception Request","Sheet2"],"not_rendered":{"charts":0,"images":3,"macros":1,"external_links":1,"defined_names":30,"comments":0,"pivot_tables":0},"unopened":[],"bounds":{"document_bytes":16777216,"sheet_cells":100000,"rows_first":2000,"rows_last":500,"rows_between":2000,"halvings":0,"cell_chars":16384,"cell_head_chars":4096},"cells_cut":0,"cells_raw":0,"read":"whole","date_system":"1900"}

{"sheet":"TRAVEL DOCUMENT","index":0,"n_rows":36,"n_cols":19,"rows_kept":36,"cut":false,"hidden":false,"merged":[[35,1,35,17],[30,1,30,2],[30,4,30,6],[30,10,30,11],[30,12,30,13],[30,15,30,16],[31,1,31,2],[31,4,31,6],[31,10,31,11],[31,12,31,13],[31,15,31,16],[32,1,32,2],[32,4,32,6],[32,10,32,11],[32,12,32,13],[32,15,32,16],[26,0,26,18],[27,0,27,18],[28,1,28,8],[28,10,28,18],[29,1,29,2],[29,4,29,6],[29,10,29,11],[29,12,29,13],[29,15,29,16],[24,0,24,7],[24,10,24,11],[24,13,24,17],[25,0,25,2],[25,3,25,4],[25,5,25,6],[25,7,25,8],[25,10,25,11],[25,13,25,17],[23,4,23,5],[23,10,23,11],[23,13,23,17],[19,4,19,5],[19,13,19,15],[19,16,19,17],[20,4,20,5],[20,13,20,15],[20,16,20,17],[21,4,21,5],[21,13,21,15],[21,16,21,17],[22,4,22,5],[22,13,22,17],[16,4,16,5],[16,10,22,12],[16,13,16,15],[16,16,16,17],[17,4,17,5],[17,13,17,15],[17,16,17,17],[18,4,18,5],[18,13,18,15],[18,16,18,17],[13,0,14,8],[13,10,13,11],[14,10,14,11],[15,0,15,1],[15,4,15,5],[15,10,15,17],[9,2,9,3],[9,4,9,8],[9,10,9,11],[10,1,10,3],[10,4,12,8],[10,10,10,11],[11,1,11,3],[11,10,11,11],[12,1,12,3],[12,10,12,11],[6,1,6,3],[7,0,7,3],[7,5,7,6],[7,10,7,11],[8,4,8,8],[8,10,8,11],[3,17,4,17],[3,18,4,18],[4,1,4,3],[4,4,4,7],[5,1,5,3],[5,5,5,6],[5,10,5,11],[3,0,3,6],[3,10,4,12],[3,13,4,13],[3,14,4,14],[3,15,4,15],[3,16,4,16],[0,2,0,3],[0,13,0,18],[1,0,1,8],[1,10,1,18],[2,3,2,4],[2,10,2,12]]}
["TRAVEL DOCUMENT #",null,"XXXXX"]
["I                                  TRAVELER/TRIP INFORMATION",null,null,null,null,null,null,null,null,null,"III                       TRAVEL CLAIM (To be completed after trip)"]
["Date prepared:","2014-05-15","Prepared By:",null,null,"MS#",null,"Phone:","x5-0000",null,"TRAVEL COST",null,null,"FUND","AGCY","ORGN","OBJT","SOBJ","AMOUNT"]
[null,null,null,null,null,null,null,"Fax:",null,null,"Airfare                                                           (attach airline ticket & itinerary)",null,null,null,null,null,null,null,{"$f":"IF(TIW!$C$1=\"Post-Trip\",(TIW!E25+TIW!E26),IF(TIW!$C$1=\"Both\",(TIW!E25+TIW!E26),\"$0.00\"))","v":"$0.00"}]
["Name:","Last",null,null,"First",null,null,null,"Middle"]
["Vendor code:",null,null,null,"Depart Date",null,null,"Time:",null,null,"Mileage",null,"Form",null,null,null,null,null,{"$f":"IF(TIW!$C$1=\"Post-Trip\",(TIW!G25+TIW!G26),IF(TIW!$C$1=\"Both\",(TIW!G25+TIW!G26),\"$0.00\"))","v":"$0.00"}]
["Address:",null,null,null,null,null,null,null,null,null,"LODGING","RATES","Form",null,null,null,null,null,{"$f":"IF(TIW!$C$1=\"Post-Trip\",(TIW!I25+TIW!I26),IF(TIW!$C$1=\"Both\",(TIW!I25+TIW!I26),\"$0.00\"))","v":"$0.00"}]
[null,null,null,null,"Return Date",null,null,"Time:",null,null,"MEAL PER DIEM",null,null,null,null,null,null,null,{"$f":"IF(TIW!$C$1=\"Post-Trip\",(TIW!K27+TIW!M27),IF(TIW!$C$1=\"Both\",(TIW!K27+TIW!M27),\"$0.00\"))","v":"$0.00"}]
["Dept:",null,"M/S #:",null,"Purpose Code: ",null,null,null,null,null,"HOST EXPENSE",null,"Form",null,null,null,null,null,{"$f":"IF(TIW!$C$1=\"Post-Trip\",(TIW!N25+TIW!N26),IF(TIW!$C$1=\"Both\",(TIW!N25+TIW!N26),\"$0.00\"))","v":"$0.00"}]
["Destinations","County:",null,null,"Purpose",null,null,null,null,null,"REGISTRATION FEE",null,null,null,null,null,null,null,{"$f":"IF(TIW!$C$1=\"Post-Trip\",(TIW!O25+TIW!O26),IF(TIW!$C$1=\"Both\",(TIW!O25+TIW!O26),\"$0.00\"))","v":"$0.00"}]
["1.) ","Destination",null,null,null,null,null,null,null,null,"CAR RENTAL",null,"Form",null,null,null,null,null,{"$f":"IF(TIW!$C$1=\"Post-Trip\",(TIW!P25+TIW!P26),IF(TIW!$C$1=\"Both\",(TIW!P25+TIW!P26),\"$0.00\"))","v":"$0.00"}]
["2.) ","Destination",null,null,null,null,null,null,null,null,"TAXI, BUS, ETC",null,"Read",null,null,null,null,null,{"$f":"IF(TIW!$C$1=\"Post-Trip\",(TIW!Q25+TIW!Q26),IF(TIW!$C$1=\"Both\",(TIW!Q25+TIW!Q26),\"$0.00\"))","v":"$0.00"}]
["3.)",null,null,null,null,null,null,null,null,null,"PARKING",null,null,null,null,null,null,null,{"$f":"IF(TIW!$C$1=\"Post-Trip\",(TIW!R25+TIW!R26),IF(TIW!$C$1=\"Both\",(TIW!R25+TIW!R26),\"$0.00\"))","v":"$0.00"}]
["II   TRAVEL AUTHORIZATION (MUST BE COMPLETED PRIOR TO TRIP)",null,null,null,null,null,null,null,null,null,"OTHER ",null,"Read",null,null,null,null,null,{"$f":"IF(TIW!$C$1=\"Post-Trip\",(TIW!S25+TIW!S26),IF(TIW!$C$1=\"Both\",(TIW!S25+TIW!S26),\"$0.00\"))","v":"$0.00"}]
[null,null,null,null,null,null,null,null,null,null,"OTHER",null,"Read"]
["ESTIMATED TRAVEL COST",null,"FUND","AGCY","ORGN",null,"OBJT","SOBJ","AMOUNT",null,"TOTAL AMOUNT CLAIMED",null,null,null,null,null,null,null,{"$f":"SUM(S4:S15)","v":0}]
["Airfare","Prepay type",null,null,null,null,null,null,{"$f":"IF(TIW!$C$1=\"Pre-Trip\",(TIW!E25+TIW!E26),IF(TIW!$C$1=\"Both\",(TIW!E25+TIW!E26),\"$0.00\"))","v":"$0.00"},null,"COMMENTS:  ",null,null,"Deduct airfare paid by",null,null,"Prepay type"]
["Lodging",null,null,null,null,null,null,null,{"$f":"IF(TIW!$C$1=\"Pre-Trip\",(TIW!I25+TIW!I26),IF(TIW!$C$1=\"Both\",(TIW!I25+TIW!I26),\"$0.00\"))","v":"$0.00"},null,null,null,null,"Deduct lodging paid by"]
["Registration",null,null,null,null,null,null,null,{"$f":"IF(TIW!$C$1=\"Pre-Trip\",(TIW!O25+TIW!O26),IF(TIW!$C$1=\"Both\",(TIW!O25+TIW!O26),\"$0.00\"))","v":"$0.00"},null,null,null,null,"Deduct registration paid by"]
["Meal Per Diem",null,null,null,null,null,null,null,{"$f":"IF(TIW!$C$1=\"Pre-Trip\",(TIW!K27+TIW!M27),IF(TIW!$C$1=\"Both\",(TIW!K27+TIW!M27),\"$0.00\"))","v":"$0.00"},null,null,null,null,"Deduct non-air trans paid by"]
["Car Rental",null,null,null,null,null,null,null,{"$f":"IF(TIW!$C$1=\"Pre-Trip\",(TIW!P25+TIW!P26),IF(TIW!$C$1=\"Both\",(TIW!P25+TIW!P26),\"$0.00\"))","v":"$0.00"},null,null,null,null,"Deduct other paid by"]
["Mileage",null,null,null,null,null,null,null,{"$f":"IF(TIW!$C$1=\"Pre-Trip\",(TIW!G25+TIW!G26),IF(TIW!$C$1=\"Both\",(TIW!G25+TIW!G26),\"$0.00\"))","v":"$0.00"},null,null,null,null,"Deduct other"]
["Taxi, Parking, Hosting &  Other",null,null,null,null,null,null,null,{"$f":"IF(TIW!$C$1=\"Pre-Trip\",(TIW!N25+TIW!N26+TIW!Q25+TIW!Q26+TIW!R26+TIW!R25+TIW!S25+TIW!S26),IF(TIW!$C$1=\"Both\",(TIW!N25+TIW!N26+TIW!Q25+TIW!Q26+TIW!R26+TIW!R25+TIW!S25+TIW!S26),\"$0.00\"))","v":"$0.00"},null,null,null,null,"TOTAL DEDUCTIONS",null,null,null,null,{"$f":"SUM(S17:S22)","v":0}]
["OTHER (explain)",null,null,null,null,null,null,null,0,null,"Call for Pick-up",null,null,"TOTAL AMOUNT CLAIMED LESS DEDUCTIONS",null,null,null,null,{"$f":"SUM(S16-S23)","v":0}]
["TOTAL ESTIMATED COSTS",null,null,null,null,null,null,null,{"$f":"SUM(I17:I24)","v":0},null," Person to call",null,null,"Deduct advance issued by UNLV",null,null,null,null,{"$f":"(D26)","v":0}]
["I request a travel advance in the amount of ",null,null,0,null,"Need By: ",null,"xx/xx/xx",null,null,"Number to call",null,null,"Difference due traveler or excess due UNLV",null,null,null,null,{"$f":"SUM(S24-S25)","v":0}]
["  I understand if the travel advance and/or the expenses claimed on the Travel Document are not adequately accounted for or are otherwise not permissible under the NSHE travel policy, the amount not properly accounted for or otherwise not permissible by travel policy may be withheld from my salary or wages (NRS 281.173) "]
["http://www.leg.state.nv.us/NRS/NRS-281.html#NRS281Sec173"]
[null,"                 expect to receive a travel allowance or honorarium from sources other than UNLV."]
["Traveler's Signature",null,null,"Printed Name","Select Name",null,null,"Date:",null,null,"Traveler's Signature",null,null,null,"Printed Name","Select Name",null,"Date:"]
["Supervisory Authorization",null,null,"Printed Name","Select Name",null,null,"Date:",null,null,"Supervisory Authorization",null,null,null,"Printed Name","Select Name",null,"Date:"]
["Signature Authority",null,null,"Printed Name","Select Name",null,null,"Date:",null,null,"Signature Authority",null,null,null,"Printed Name","Select Name",null,"Date:"]
["Signature Authority",null,null,"Printed Name","Select Name",null,null,"Date:",null,null,"Signature Authority",null,null,null,"Printed Name","Select Name",null,"Date:"]
["HELD BY TRAVELER'S DEPARTMENT UNTIL TRIP COMPLETION",null,null,null,null,null,null,null,null,null,"SEND TO ACCOUNTS PAYABLE MS# 1053 UPON TRIP COMPLETION"]
[]
[null,"For any questions please contact Accounts Payable at 895-1157"]

{"sheet":"Drop Down Menu","index":1,"n_rows":3325,"n_cols":15,"rows_kept":3325,"cut":false,"hidden":true,"merged":[]}
["Destination","Purpose","Fund","Agcy","Org","Obj","Sobj","Select Name","Other","Select Method of Travel","Select Mileage Type","Prepay type",null,null,"Select"]
["ARGO          ARGONNE IL                      ","AST       ASTRONOMICAL OBSERVATIONS",2101,201,"0004 ",21,"CR","A RYCHELLE TOMLIN  ","Internet","Air","CY 16 Personal","PO",null,null,"Pre-Trip"]
["CHIC          CHICAGO, IL                    ","ATC       ATHLETIC COMPETITION",2102,202,"0007 ",23,"LO","AARON BELL  ","Phone","Enterprise Rental","CY 16 UNLV","P-card",null,null,"Post-Trip"]
["LASV          LAS VEGAS NV                   ","ATH       ATHLETIC TEAM TRAVEL",2104,203,"0011 ",24,"T1","AARON SHEPPARD  ","Copies","Hertz Rental ","CY 17 Personal","Diners Card",null,null,"Both"]
["RENO          RENO NV                        ","ATL       ATHLETIC GAME SUPPLIES",2105,206,"0019 ",25,"T2","AARON THOMPSON  ","Supplies","Motorpool (Reno)","CY 17 UNLV","3rd Party"]
["AARH          AARHUS DENMARK                  ","ATP       ATHLETIC PRE-GAME ARRANGEMENTS",2108,208,"0042 ",30,"T3","ADAM CRONIS  ","Taxi","Advantage Rental",null,"2PV"]
["ABER          ABERDEEN MD                  ","ATT       ATHLETIC TRAINING",2122,209,"0046 ",33,"T4","ADAM GUILBEAULT  ","Shuttle","Personal Vehicle",null,"Not Claiming"]
["ABIL          ABILINE KA                      ","AUD       AUDITIONS",2150,211,"0053 ",38,"T5","ADAM LELAND  ",null,"Train",null,"Type Information"]
["ABIN          ABINGTON PA                     ","AUI       CONDUCT AUDIT",2202,212,"0054 ",null,"T6","ADAM SIKULA  ",null,"Unlv Vehicle"]
["ACAP          ACAPULCO MEXICO                ","AWA       AWARD, RECEIVE AN AWARD",2205,213,"0059 ",null,"T7","ADAM SIMON  "]
["ACCR          ACCRA TURKEY                    ","BAN       BANQUET (UNDEFINED)",2220,214,"0062 ",null,"T8","ADRIENNE EKAS  "]
["ADDI          ADDIS ABABA ETHIOPIA            ","BEA       BEAMTIME",2221,215,"0065 ",null,"TC","ALAN PERSONIUS  "]
["ADDS          ADDISON TX                      ","BOR       BOARD OF REGENTS MEETING",2222,216,"0066 ",null,"TO","ALAN SIMMONS  "]
["ADEL          ADELAIDE AUSTRALIA              ","BRO       BROADCAST ATHLETIC EVENT/GAMES",2226,217,"0071 ",null,26,"ALEXANA LAMAN-LYONS  "]
["ADEP          ADELPHI MD                      ","BUD       BUDGET MEETING(S)",2230,218,"0072 ",null,"HD","ALEXANDRA NIKOLICH  "]
["AIKE          AIKEN SC                        ","CAE       CAREER FAIR",2250,220,"0074 ",null,"H1","ALFREDO FERNANDEZ-GONZALEZ  "]
["AKRO          AKRON  OH                      ","CAM       SPORTS CAMP",2280,221,"0078 ",null,"H4","ALICE BAKER  "]
["ALAA          ALAMAGORDO NM                   ","CAN       CANDIDATE TRAVEL",2300,228,"0079 ",null,"H5","ALICE WARD  "]
["ALAJ          ALAJUELA COSTA RICA            ","CAP       GROUP CAMP (NON-SPECIFIC)",2310,231,"0104 ",null,"H6","ALISA CATANZARO  "]
["ALAK          ALAKANUK AK                    ","CAR       CAREER CAMP",2311,232,"0105 ",null,"H8","ALLEN GIBBS  ",null,null,null,null,21,26]
["ALAM          ALAMO NV                        ","CAS       CASTING",2330,233,"0107 ",null,"H9","ALLEN JOHNSON  ",null,null,null,null,23,"CR"]
["ALAO          ALAMOSA CO                    ","CA1       CAMP/BOOT",2331,234,"0108 ",null,"HG","ALONZO FREEMAN  ",null,null,null,null,24,"H1"]
["ALBA          ALBANY NY                      ","CCH       COACH STUDENTS (NON-SPECIFIC)",2333,235,"0109 ",null,"HH","ALY SAID  ",null,null,null,null,25,"H4"]
["ALBI          ALBA ITALY                       ","CEL       CELEBRATION (UNDEFINED)",2334,236,"0111 ",null,"J9","AMANDA A CLARENCE  ",null,null,null,null,30,"H5"]
["ALBU          ALBUQUERQUE NM                 ","CER       CEREMONY",2335,237,"0115 ",null,"K1","AMANDA KYLE HIGGINS  ",null,null,null,null,33,"H6"]
["ALEP          ALEPPO SYRIA                    ","CHA       CHAMPIONSHIP GAME(S)",2336,238,"0119 ",null,"K3","AMANDA SCHWER  ",null,null,null,null,38,"H8"]
["ALEX          ALEXANDRIA VA                   ","CHE       CHEERLEADING NATIONALS",2340,239,"0121 ",null,"K5","AMBER WITHYCOMBE  ",null,null,null,null,null,"H9"]
["ALHA          ALHAMBRA, CA                   ","CII       CLINICAL VISIT(S)",2341,240,"0164 ",null,"K7","AMEI AMEI  ",null,null,null,null,null,"HD"]
["ALIC          ALICANTE SPAIN                  ","CIR       CIRCUIT COURT",2350,241,"0166 ",null,"K9","AMY BROOKS  ",null,null,null,null,null,"HG"]
["ALIS          ALISO VIEJA, CA                 ","CLA       CLASSES/COURSES/INSTRUCTION",2351,242,"0206 ",null,"L3","AMY LYKINS  ",null,null,null,null,null,"HH"]
["ALLE          ALLENTOWN PA                  ","CLC       CLINICAL VISITATION(S)",2360,243,"0210 ",null,"S1","AMY SMIECINSKI  ",null,null,null,null,null,"J9"]
["ALMO          ALMO ID                         ","CLE       CLIENT VISITS",2361,244,"0218 ",null,"S2","ANA MARRERO  ",null,null,null,null,null,"K1"]
["ALPI          ALPINE MEADOWS, CA             ","CLI       SPORT CLINIC",2362,248,"0253 ",null,"S3","ANDREA FONTANA  ",null,null,null,null,null,"K3"]
["ALSI          ALSIP, IL                        ","CLL       COLLECTION RELOCATION",2363,249,"0282 ",null,"S4","ANDREW ANDRES  ",null,null,null,null,null,"K5"]
["ALTA          ALTA  UT                         ","CLN       CLIENT SPONSORED TRIP",2364,251,"0284 ",null,"S5","ANDREW CORNELIUS  ",null,null,null,null,null,"K7"]
["ALTD          ALTADENA CA                      ","CLS       CLASS TRIP",2365,252,"0286 ",null,"S6","ANDREW FEINSTEIN  ",null,null,null,null,null,"K9"]
["ALXA          ALEXANDRIA LA                  ","CMS       COMMISSION",2366,253,"0288 ",null,"S7","ANDREW HANSON  ",null,null,null,null,null,"L3"]
["AMAG          AMARGOSA VALLEY NV              ","CNV       CONVENTION",2367,254,"0290 ",null,"S8","ANDREW HARDIN  ",null,null,null,null,null,"LO"]
["AMAR          AMARILLO TX                      ","COA       COLLABORATION",2368,255,"0352 ",null,"S9","ANDREW KIRK  ",null,null,null,null,null,"S1"]
["AMBU          AMBUSH AZ                       ","COD       CONDUCT SEMINARS",2369,256,"0354 ",null,43,"ANDREW PFANNES  ",null,null,null,null,null,"S2"]
["AMEI          AMERICAN FALLS ID               ","COE       COMMENCEMENT",2370,257,"0356 ",null,"RC","ANDY LUONG  ",null,null,null,null,null,"S3"]
["AMER          AMERICAN SAMOA                  ","COI       COALITION",2371,258,"0358 ",null,null,"ANEST GLASBY  ",null,null,null,null,null,"S4"]
["AMES          AMES IA                         ","COL       COLLEGE FAIR/SCHOOL VISITS",2372,259,"0360 ",null,null,"ANGELA FARRAR  ",null,null,null,null,null,"S5"]
["AMHE          AMHERST  MA                     ","COM       COMPETITION (NON-SPORTS)",2373,260,"0362 ",null,null,"ANGELA HOWARD  ",null,null,null,null,null,"S6"]
["AMIE          AMIENS FRANCE                   ","CON       CONFERENCE/SEMINAR TRAVEL",2374,261,"0363 ",null,null,"ANGELA MCGOWAN  ",null,null,null,null,null,"S7"]
["AMIS          AMELIA ISLAND, FL               ","COO       COORDINATE INTL INTERNSHIPS",2375,262,"0365 ",null,null,"ANGELA STONE-GUIDRY  ",null,null,null,null,null,"S8"]
["AMMA          AMMAN JORDAN                     ","COP       COMPUTER PROGRAMMING",2376,263,"0388 ",null,null,"ANGELINE GARBETT  ",null,null,null,null,null,"S9"]
["AMRI          AMRITSAR INDIA                   ","COQ       COLLOQUIUM",2377,265,"0410 ",null,null,"ANITA STOCKBAUER  ",null,null,null,null,null,"T1"]
["AMST          AMSTERDAM HOLLAND               ","COR       CORPORATE SPONSORS",2379,267,"0425 ",null,null,"ANJALA KRISHEN  ",null,null,null,null,null,"T2"]
["ANAC          ANACONDA  MT                    ","COS       CONSULTATION/DISCUSSION",2380,268,"0440 ",null,null,"ANN ELLIOTT  ",null,null,null,null,null,"T3"]
["ANAH          ANAHEIM CA                       ","COT       CONSORTIUM",2381,269,"0442 ",null,null,"ANN L HAFEN  ",null,null,null,null,null,"T4"]
["ANCH          ANCHORAGE AK                     ","COU       COUNCIL OF PRESIDENTS",2384,270,"0443 ",null,null,"ANN MCDONOUGH  ",null,null,null,null,null,"T5"]
["ANCO          ANCHOR BAY CA                   ","COV       CONVOCATION",2385,272,"044D ",null,null,"ANN TATE  ",null,null,null,null,null,"T6"]
["ANDO          ANDOVER MA                    ","CO1       CORPORATE OUTING",2397,273,"044F ",null,null,"ANNA LUKEMEYER  ",null,null,null,null,null,"T7"]
["ANDR          ANDRUS CANYON AZ                 ","CRT       CERTIFICATION CLASS",2457,274,"044G ",null,null,"ANNE HEIN  ",null,null,null,null,null,"T8"]
["ANGE          ANGERS FRANCE                   ","CST       CONTEST",2570,280,"044H ",null,null,"ANNE KINGSLEY  ",null,null,null,null,null,"TC"]
["ANKA          ANKARA TURKEY                   ","CTY       COUNTY FAIR",2571,281,"044J ",null,null,"ANNETTE AMDAL  ",null,null,null,null,null,"TO"]
["ANNA          ANN ARBOR MI                    ","CUL       CULINARY",2572,282,"0455 ",null,null,"ANNETTE KANNENBERG  "]
["ANNP          ANNAPOLIS MD                     ","CUR       CURRICULUM",2573,283,"0492 ",null,null,"AN-PYNG SUN  "]
["ANTA          ANTALYA TURKEY                  ","CVE       CONVENTION",2574,284,"0541 ",null,null,"ANTHONY FERRI  "]
["ANTO          ANTOFAGASTA CHILE               ","DAA       DATA ANALYSIS",2575,285,"0601 ",null,null,"ANTHONY HECHANOVA  "]
["APAC          APACHE AZ                        ","DAN       DANCE CAMP",2576,286,"0602 ",null,null,"ANTHONY VAUGHN  "]
["APLE          APPLETON, WI                    ","DAT       DATA COLLECTION",2675,301,"0603 ",null,null,"ANTON WESTVELD  "]
["APLI          APLICADA BRAZIL                ","DEB       DEBATE",2676,303,"0606 ",null,null,"APRIL RECKLING  "]
["APPL          APPLE VALLEY  CA                 ","DED       DEDICATION CEREMONY",2883,304,"0607 ",null,null,"ARDYTH SOHN  "]
["APTO          APTOS CA                         ","DEL       DELIVERIES",2884,305,"0608 ",null,null,"ARTHUR BARAGAR  "]
["AQUA          AGUA PRIATIA, MEXICO           ","DEM       DEMONSTRATION",2885,306,"0609 ",null,null,"ASHOK IYER  "]
["ARCA          ARCADIA CA                      ","DEN       DENTAL SCREENING(S)",2886,307,"0616 ",null,null,"ATHLETIC DIRECTOR  "]
["ARCT          ARCATA CA                      ","DEP       DEPOSITION",2887,308,"0619 ",null,null,"ATTILA LAWRENCE  "]
["ARDM          ARDMORE OK                       ","DES       DESIGN",null,309,"0632 ",null,null,"AUDREY COFFEE  "]
["ARIC          ARICA CHILE                     ","DEV       EMPLOYEE DEVELOPMENT",null,310,"0640 ",null,null,"AUDREY MCCOOL  "]
["ARLI          ARLINGTON TX                     ","DIA       DISASTER PLANNING DRILLS",null,311,"0641 ",null,null,"AUDREY RAGER  "]
["ARLN          ARLINGTON VA                    ","DIN       DINNER (UNDEFINED)",null,312,"0650 ",null,null,"AURALI DADE  "]
["ARMA          ARMAGOSA NV                     ","DIR       DIRECTOR/DIRECTING",null,314,"0657 ",null,null,"AURORE GIGUET  "]
["ARRO          ARROW CANYON NV                ","DIS       DISSERTATION",null,315,"0668 ",null,null,"BABARA ST.PIERRE-SCHNIEDER  "]
["ARUB          ARUBA NETHERLAND ANTILLES        ","DIT       DISTANCE LEARNING PROGRAM",null,316,"0669 ",null,null,"BALAKRISHNAN NADUVALATH  "]
["ARVA          ARVADA CO                       ","DRA       NBA DRAFT",null,317,"0670 ",null,null,"BARBARA HERMES  "]
["ASCH          ASCHAFFENSBURG GERMANY          ","ECE       ECEM PROGRAM",null,318,"0682 ",null,null,"BARBARA HIRSHORN  "]
["ASCO          ASCONA, SWITZERLAND","EDI       EDITING (UNDEFINED)",null,319,"0685 ",null,null,"BARBARA LUKE  "]
["ASHA          ASHLAND VA                     ","EPS       EPSCOR",null,320,"0686 ",null,null,"BARBARA ROTH  "]
["ASHE          ASHEVILLE NC                     ","EQE       EQUIPMENT INSPECTION",null,375,"0815 ",null,null,"BARBARA SCHNEIDER  "]
["ASHL          ASHLAND OR                      ","EQI       EQUIPMENT INVENTORY",null,null,"0816 ",null,null,"BARBARA STEVENSON  "]
["ASHM          ASH MEADOWS NV                ","EQM       EQUIPMENT USE",null,null,"0817 ",null,null,"BEHRANG PAKZADEN  "]
["ASHS          ASH SPRINGS NV                  ","EQP       EQUIPMENT TRANSPORTATION",null,null,"0820 ",null,null,"BELINDA FOREMAN  "]
["ASHV          ASHVILLE NC                      ","EQU       EQUIPMENT REPAIR",null,null,"0822 ",null,null,"BEN TELESCA  "]
["ASIL          ASILOMAR CA                    ","ESC       ESCORT VISITORS",null,null,"0825 ",null,null,"BENJAMIN LUM  "]
["ASPE          ASPEN CO                         ","EVA       EVALUATION/JUDGING/CRITIC",null,null,"0826 ",null,null,"BERNARD ZYGELMAN  "]
["ATAS          ATASCADERO CA                   ","EVE       EVENT/BANQUET/AWARDS",null,null,"0827 ",null,null,"BERNARD ZYGLEMAN  "]
["ATHE          ATHENS GA                        ","EXA       EXAM(S)",null,null,"082A ",null,null,"BETHANY CLANTON  "]
["ATHN          ATHENS GREECE                    ","EXB       EXAM BOARDS",null,null,"082D ",null,null,"BETHANY MCDONALD  "]
["ATHR          ATHERTON CA                     ","EXC       EXCHANGE PROGRAM",null,null,"082E ",null,null,"BETTIE MCRAE  "]
["ATHS          ATHENS OH                        ","EXE       EXPEDITION",null,null,"082G ",null,null,"BETTY F DAY  "]
["ATLA          ATLANTA GA                       ","EXH       EXHIBITION/SHOW/CONCERT",null,null,"082L ",null,null,"BETTY HANSEEN  "]
["ATLN          ATLANTIC CITY NJ                 ","EXM       EXAMINE COLLECTION/EXHIBIT",null,null,"082M ",null,null,"BEVERLY HERTIG  "]
["ATOM          ATOMI JAPAN                      ","EXO       EXPO",null,null,"082Q ",null,null,"BEVERLY PETRELIS  "]
["AUBR          AUBURN WA                        ","EXP       EXPERIMENTS/TESTING",null,null,"0830 ",null,null,"BEVERLY SABEDRA  "]
["AUBU          AUBURN AL                        ","EXT       EXTERNSHIP",null,null,"0832 ",null,null,"BILL BERNATIS  "]
["AUCK          AUCKLAND NEW ZEALAND             ","FAB       FABRICATION (DEVICE/EQUIPMENT)",null,null,"0834 ",null,null,"BILL BRADY  "]
["AUGB          AUGSBURG GERMANY                ","FAC       FACILITY/ARENA REVIEW",null,null,"0835 ",null,null,"BING ZHANG  "]
["AUGS          AUGUSTA  GA                      ","FAI       FAIR  (NON-SPECIFIC)",null,null,"0836 ",null,null,"BINGMEI FU  "]
["AUGU          AUGUSTA ME                       ","FAL       FACILITY AUDIT",null,null,"0838 ",null,null,"BISWAJIT DAS  "]
["AURO          AURORA CO                        ","FAS       FAST TRACK PROGRAM",null,null,"0840 ",null,null,"BLAKE DOUGLAS  "]
["AUSI          AUSTIN NV                        ","FAU       FACULTY DEVELOPMENT",null,null,"0841 ",null,null,"BLM LOGANDALE  "]
["AUSN          NV","FEL       FELLOWSHIP",null,null,"0843 ",null,null,"BO BERNARD  "]
["AUSS          AUSSOIS FRANCE                   ","FES       FESTIVAL/PERFORMANCE",null,null,"0844 ",null,null,"BO BERNHARD  "]
["AUST          AUSTIN TX                        ","FIL       FILM SCREENING",null,null,"0848 ",null,null,"BOBBIE REDING  "]
["AVAL          AVALON SANTA CANTALINA ISLAND   ","FIM       FILM PROJECT",null,null,"0850 ",null,null,"BOEHM ROBERT  "]
["AVEB          AVEBURY ENGLAND                  ","FLD       FIELD TRIP/WORK",null,null,"0851 ",null,null,"BRACKLEY FRAYER  "]
["AVIG          AVIGNON  FRANCE                  ","FOC       FOCUS GROUP",null,null,"0858 ",null,null,"BRAD DONOHUE  "]
["AWAJ          AWAJI JAPAN                      ","FOR       FORUM",null,null,"085B ",null,null,"BRADLEY DONOHUE  "]
["AYRS          AYR SCOTLAND                    ","FUD       FUND RAISING",null,null,"085H ",null,null,"BRENDA BUCK  "]
["BABS          BABSON MA                       ","FUN       FUNERAL",null,null,"085K ",null,null,"BRENDA DUROSINMI  "]
["BAHR          BAHRAIN                          ","FUT       FUNCTION/EVENT/DINNER",null,null,"085Q ",null,null,"BRENDA J. BUCK  "]
["BAJA          BAJA CALIFORNIA                  ","GAA       GALA AWARDS",null,null,"0861 ",null,null,"BRENDAN J O'TOOLE  "]
["BAJM          BAJA MEXICO                     ","GAL       GALLERY OPENING",null,null,"0864 ",null,null,"BRENDAN O'TOLLE  "]
["BAKC          BAKER CA                         ","GIF       GIFT SHIPMENT/TRANSPORTATION",null,null,"0865 ",null,null,"BRENDAN O'TOOLE  "]
["BAKE          BAKERSFIELD CA                  ","GNT       GRANT ASSISTANCE",null,null,"0867 ",null,null,"BRENT MORGAN  "]
["BAKR          BAKER NV                        ","GOV       GOVERNOR'S DINNER",null,null,"0868 ",null,null,"BRETT RIDDLE  "]
["BALL          BALLYBUNION IRELAND              ","GRP       STUDENT GROUP/TEAM TRAVEL",null,null,"086B ",null,null,"BRIAN HEDLUND  "]
["BALT          BALTIMORE MD                     ","GUE       GUEST COMMENTATOR",null,null,"086F ",null,null,"BRIAN J LANDSBERGER  "]
["BAMB          BAMBERG, GERMANY               ","HOC       HONOR COURT CELEBRATION",null,null,"086G ",null,null,"BRIAN JOHNSON  "]
["BAMF          BAMFIELD MARINE STATION CANADA   ","INA       INSTALLATION (UNDEFINED)",null,null,"086H ",null,null,"BRIAN LACEY  "]
["BANA          BANGALORE INDIA                  ","ING       INAUGURATION",null,null,"0870 ",null,null,"BRIAN LANDSBERGER  "]
["BANF          BANFF CANADA                     ","INI       ATTEND INSTITUTE",null,null,"0871 ",null,null,"BRIANNE HEINLE  "]
["BANG          BANGOR ME                       ","INL       INSTALL TELEPHONE",null,null,"0872 ",null,null,"BRYAN SPANGELO  "]
["BANK          BANGKOK THAILAND                 ","INP       INSPECTION",null,null,"0875 ",null,null,"BRYANT KEITH ROGERS  "]
["BARC          BARCELONA SPAIN                 ","INR       INTRAMUAL GAME COMPETITION",null,null,"0878 ",null,null,"BRYANT ROGERS  "]
["BARH          BAR HARBOR MAINE                 ","INS       INSTRUCTOR",null,null,"0882 ",null,null,"BUD PIERCE  "]
["BARS          BARSTOW  CA                      ","INT       INTERVIEW CANDIDATE",null,null,"0900 ",null,null,"BURSAR  "]
["BART          BARTLESVILLE, OK","INU       INSTRUMENT REPAIR/TRANSPORT",null,null,"0902 ",null,null,"BYRON BENNETT  "]
["BATA          BATAVIA IL                       ","INV       CONDUCT INTERVIEWS",null,null,"0904 ",null,null,"BYRON L BENNETT  "]
["BATO          BATON ROUGE LA                  ","INW       INTERVIEW (TO BE)",null,null,"0907 ",null,null,"CARA LOOMIS  "]
["BATT          BATTLE MOUNTAIN NV               ","IRS       IRS AUDIT",null,null,"0908 ",null,null,"CARI KLECKA  "]
["BAYF          BAYFIELD CO                      ","ISP       INDEPENDENT SERVICE PROVIDER",null,null,"0923 ",null,null,"CARL REIBER  "]
["BAYR          BAYREUTH, GERMANY                ","ITR       INTERNSHIP",null,null,"0924 ",null,null,"CARLA HENSON  "]
["BEAC          BEAVERCREEK OH                   ","JOB       JOB FAIR",null,null,"0925 ",null,null,"CARMEN WILLIS  "]
["BEAE          BEAVERTON OR                    ","JUD       JUDICIAL EXTERNSHIP",null,null,"0942 ",null,null,"CAROL C HARTER  "]
["BEAM          BEAUMONT TX                      ","LAB       LABORATORY WORK",null,null,"0952 ",null,null,"CAROL HARTER  "]
["BEAN          BEAUMONT CA                      ","LEC       LECTURE",null,null,"0958 ",null,null,"CAROL RANDALL  "]
["BEAO          BEACON NY                        ","LEG       LEGISLATIVE SESSION",null,null,"0959 ",null,null,"CAROL REIBER  "]
["BEAR          BEAVER UT                      ","LEI       LEGISLATIVE BUDGET HEARING",null,null,"0960 ",null,null,"CAROL THORESON  "]
["BEAT          BEATTY  NV                     ","LES       LEGISLATIVE MEETING(S)",null,null,"0961 ",null,null,"CAROLE HOEFLE  "]
["BEAU          BEAUFORT NC                      ","LGL       LEGAL",null,null,"0962 ",null,null,"CAROLEE DODGE FRANCIS  "]
["BEAV          BEAVER CREEK CO                  ","LIC       LICENSING",null,null,"0963 ",null,null,"CAROLEE DODGE-FRANCIS  "]
["BEER          BEER SHEA ISRAEL               ","LIT       LITIGATION HEARINGS",null,null,"0964 ",null,null,"CAROLEE FRANCIS  "]
["BEIJ          BEIJING CHINA                    ","LIV       LIVESTOCK TRANSPORTATION",null,null,"1009 ",null,null,"CAROLYN B YUCHA  "]
["BEIR          BEIRUT LEBANON                   ","LOB       LOBBYIST",null,null,"1010 ",null,null,"CAROLYN E MCCARROLL  "]
["BELA          BELLAGIO ITALY                   ","LOC       LOCAL MILEAGE",null,null,"1017 ",null,null,"CAROLYN E SABO  "]
["BELC          BELCAMP MD                       ","LUN       LUNCHEON",null,null,"1019 ",null,null,"CAROLYN HATCHETT  "]
["BELE          BELLEVUE WA                      ","MAR       SPORTS MARKETING",null,null,"1030 ",null,null,"CAROLYN SABO  "]
["BELF          BELFAST NORTHERN IRELAND         ","MAT       MAINTENANCE",null,null,"1031 ",null,null,"CAROLYN YUCHA  "]
["BELI          BELIZE CITY BELIZE             ","MED       MEDICAL",null,null,"1036 ",null,null,"CARRIE REED  "]
["BELL          BELLINGHAM  WA                 ","MEI       MEDIA DAY (ATHLETIC)",null,null,"1040 ",null,null,"CARRIE TRENTHAM  "]
["BELM          BELMONT CA","MEM       MEMORIAL SERVICE",null,null,"1045 ",null,null,"CARROL STEEDMAN  "]
["BELO          BELO HORIZONTE BRAZIL            ","MER       MERCHANDISE SHOW",null,null,"1046 ",null,null,"CARRYN BELLOMO  "]
["BENB          BENBROOK, TX                     ","MIL       MILLENNIUM SCHOLARSHIP",null,null,"1048 ",null,null,"CATE WEEKS  "]
["BEND          BEND OR                          ","MIT       MITIGATION",null,null,"1052 ",null,null,"CATHERINE HOYE  "]
["BENS          BENSON AZ                        ","MOB       MOBILE DENTAL CLINIC",null,null,"1055 ",null,null,"CATHERINE LYONS  "]
["BENT          BENTENVILLE AR                   ","MOD       MODERATION",null,null,"1090 ",null,null,"CATHY WILLEY  "]
["BEPP          BEPPU JAPAN                      ","MON       MONITORING",null,null,"1091 ",null,null,"CEM SUNATA  "]
["BERA          BERGAMO ITALY                    ","MOV       MOVING/RELOCATION OF EMPLOYEE",null,null,"1092 ",null,null,"CHAD CROSS  "]
["BERG          BERGEN NORWAY                    ","MTG       MEETING(S)",null,null,"1093 ",null,null,"CHANGFENG CHEN  "]
["BERI          BERNALILLO NM                    ","MUS       MUSEUM COLLECTION(S)",null,null,"1096 ",null,null,"CHARLES B MOSLEY  "]
["BERK          BERKELEY CA                      ","MWC       MOUNTAIN WEST CONFERENCE",null,null,"1105 ",null,null,"CHARLES CAVAGNARO  "]
["BERL          BERLIN GERMANY                   ","NAA       NCAA INVESTTGATION",null,null,"1210 ",null,null,"CHARLES DOUGLAS  "]
["BERN          BERN SWITZERLAND                 ","NAI       NATIONAL FOOD SHOW",null,null,"1225 ",null,null,"CHARLES MOSELEY  "]
["BERT          BERTINORO, ITALY                 ","NAT       NATIONAL RESTAURANT SHOW",null,null,"1230 ",null,null,"CHARLES MOSLEY  "]
["BETE          BETHELEM PA                      ","NCA       NCAA TOURNAMENT GAMES",null,null,"1231 ",null,null,"CHARLES REGIN  "]
["BETH          BETHESDA MD                      ","NCC       NCCS TOURNAMENT",null,null,"1238 ",null,null,"CHARLOTTA SANDERS  "]
["BEVE          BEVERLY HILLS CA                 ","NFR       NATIONAL FINALS RODEO",null,null,"1239 ",null,null,"CHARLOTTE FARR  "]
["BIDD          BIDDEFORD ME                     ","NIT       NATL INVITATIONAL TOURNAMENT",null,null,"1240 ",null,null,"CHELSEA HERRINGTON  "]
["BIEL          BIELEFELD GERMANY                ","NON       NON-SEASON ATHLETIC EXPENSE",null,null,"1270 ",null,null,"CHERI A. YOUNG  "]
["BIGB          BIG BEND TX                      ","NVB       NEVADA BAR SWEARING IN OF ALUM",null,null,"1271 ",null,null,"CHERI YOUNG  "]
["BIGE          BIG BEAR CA                      ","OBS       OBSERVATIONS",null,null,"1281 ",null,null,"CHERIE GARRITY  "]
["BIGK          BIG SKY MT                       ","OLM       OLYMPIC DEVELOPMENT CAMP",null,null,"1284 ",null,null,"CHERYL BOWLES  "]
["BIGP          BIG PINE CA                      ","OLY       OLYMPIC TRIALS",null,null,"1287 ",null,null,"CHERYL DEDRICKSON  "]
["BIGR          BIG RAPIDS MI                    ","ORI       ORIENTATION (UN-DEFINED)",null,null,"1288 ",null,null,"CHERYL GIORDANO  "]
["BIGS          BIG SPRINGS  NV                  ","ORN       ORNITHOLOGICAL COLLECTION",null,null,"1310 ",null,null,"CHEYRL GIORDANO  "]
["BILB          BILBOA SPAIN                     ","OTH       OTHER - FOR USE BY A/P ONLY",null,null,"1340 ",null,null,"CHIH-HSIANG HO  "]
["BILL          BILLINGS MT                      ","OUD       OUTDOOR EDUCATION/CED",null,null,"1345 ",null,null,"CHIRSTOPHER KYPUROS  "]
["BILO          BILOXI MS                        ","OUT       OUTDOOR RECREATION/MSU",null,null,"1370 ",null,null,"CHRIS HEAVEY  "]
["BING          BINGHAM UT                       ","OVR       OVERSEEING PROJECTS",null,null,"1375 ",null,null,"CHRIS KYPUROS  "]
["BINH          BINGHAMTON NY                    ","PAN       PANELIST/DISCUSSANT",null,null,"1410 ",null,null,"CHRIS SCHEARER  "]
["BIRI          BIRMINGHAM ENGLAND               ","PAR       PARTICIPANT",null,null,"1420 ",null,null,"CHRIS VITON  "]
["BIRM          BIRMINGHAM AL                    ","PAT       PARTICIPANT FUNDED EVENT",null,null,"1462 ",null,null,"CHRISTA ESPARZA  "]
["BISB          BISBANE AUSTRALIA                ","PEF       PERFORMANCE (UNDEFINED)",null,null,"1467 ",null,null,"CHRISTIAN HARDIGREE  "]
["BISE          BISBEE, AZ                       ","PER       PERFORM",null,null,"1468 ",null,null,"CHRISTINA DEMOPOULOS  "]
["BISH          BISHOP  CA                       ","PGM       POST-GAME MEAL MONEY",null,null,"1469 ",null,null,"CHRISTINE BERGMAN  "]
["BISM          BISMARK ND                       ","PHO       PHOTOGRAPHY WORK",null,null,"1510 ",null,null,"CHRISTINE CHAIRSELL  "]
["BLAA          BLACK CANYON NV                  ","PIC       PICK UP MATERIALS/SUPPLIES",null,null,"1511 ",null,null,"CHRISTINE CLARK  "]
["BLAC          BLACKSBURG VA                    ","PLA       PLANT PURCHASE",null,null,"1512 ",null,null,"CHRISTINE SERWAY  "]
["BLAI          BLAINE WA                        ","POE       POETRY READING",null,null,"1515 ",null,null,"CHRISTINE SPRINGER  "]
["BLAK          BLACK HAWK CO                    ","PRC       PROJECT PLANNING & DELIVERY",null,null,"1516 ",null,null,"CHRISTOPHER C HUDGINS  "]
["BLAN          BLANDING UT                      ","PRE       PRESIDENT'S RECEPTION",null,null,"1518 ",null,null,"CHRISTOPHER CAIN  "]
["BLAR          BLAIRSDEN CA                     ","PRF       PROFESSIONAL DEVELOPMENT",null,null,"1520 ",null,null,"CHRISTOPHER COCHRAN  "]
["BLOI          BLOOMINGTON  MN                  ","PRG       PROGRESS REPORT",null,null,"1522 ",null,null,"CHRISTOPHER HEAVEY  "]
["BLOM          BLOOMINGDALE IL                  ","PRI       PRIVATE LESSON(S)",null,null,"1525 ",null,null,"CHRISTOPHER HUDGINS  "]
["BLON          BLOOMINGTON  IL                  ","PRJ       PROJECT",null,null,"1526 ",null,null,"CHRISTOPHER KEARNEY  "]
["BLOO          BLOOMINGTON IN                   ","PRM       PROMOTE UNLV",null,null,"1527 ",null,null,"CHRISTOPHER POWELL  "]
["BLOS          BLOOMSBURG PA                    O","PRO       PROGRAM DEVELOPMENT",null,null,"1530 ",null,null,"CHRISTOPHER SCHEARER  "]
["BLUE          BLUE DIAMOND NV                ","PRS       PRESENTATION",null,null,"1535 ",null,null,"CHUCK REGIN  "]
["BLUF          BLUFF UT                       ","PSC       PRESS CHECK (FOR MAGAZINE)",null,null,"1540 ",null,null,"CHUCK REIGN  "]
["BLUH          BLUEHILL MA                    ","PSS       PRESS CONFERENCE",null,null,"1542 ",null,null,"CHULSUNG BAE  "]
["BLUP          BLUE POINT SPRINGS NV          ","PTT       PRESEASON TEAM TRIP",null,null,"1551 ",null,null,"CINDY LEE TATASEO  "]
["BLYT          BLYTH, CA                      ","PUB       PUBLIC RELATIONS",null,null,"1553 ",null,null,"CINDY MCMILLAN  "]
["BOCA          BOCA RATON FL                  ","PUR       PURCHASE MUSICAL INSTRUMENT",null,null,"1559 ",null,null,"CINDY MCMILLIAN  "]
["BODE          BODEGA BAY CA                  ","REA       RESTAURANT SHOW",null,null,"1562 ",null,null,"CINDY PHILLIPS  "]
["BOGA          BOGATA COLUMBIA                ","REB       REBEL YELL REPORTING",null,null,"1572 ",null,null,"CLAIRE TREDWELL  "]
["BOIS          BOISE ID                       ","REC       RECRUITING (UNDEFINED)",null,null,"1574 ",null,null,"CLARK HOCHSTETLER  "]
["BOLO          BOLOGNA ITALY                  ","RED       READING (UNDEFINED)",null,null,"1579 ",null,null,"CLAUDE WARREN  "]
["BOLT          BOLTON, LANCASHIRE, ENGLAND    ","REE       RECEPTION",null,null,"1610 ",null,null,"CLAUDIA KEELAN  "]
["BOMB          BOMBAY INDIA                   ","REG       REGENT BUSINESS",null,null,"1620 ",null,null,"CLAY CROW  "]
["BONA          BONAIRE NETHERLANDS ANTILLES   ","REH       REHEARSALS",null,null,"1625 ",null,null,"CLAYTEE WHITE  "]
["BONN          BONN GERMANY                   ","REI       RECITAL",null,null,"1630 ",null,null,"CLEMENS HESKE  "]
["BONS          BONSALL CA                       O","REO       RECORDING PROJECT",null,null,"1640 ",null,null,"CLIFFORD SERAN  "]
["BONS          BONSALL CA                     ","RES       RESEARCH",null,null,"1650 ",null,null,"COLLEEN M PETERSON  "]
["BOON          BOONE  NC                      ","RET       RETREAT",null,null,"1660 ",null,null,"COLLEEN PETERSON  "]
["BORD          BORDEAUX FRANCE                ","REV       REVIEW",null,null,"1665 ",null,null,"COLLEEN SCHIFFMAN  "]
["BOSN          BOSNIA                         ","RFS       RECRUITMENT: FACULTY/STAFF",null,null,"1670 ",null,null,"CONNIE CORREIA  "]
["BOST          BOSTON MA                      ","ROD       RODEO PARTICIPATION",null,null,"1675 ",null,null,"CONNIE CORRIEA  "]
["BOUC          BOULDER CITY NV                ","ROE       RODEO TEAM TRAVEL",null,null,"1680 ",null,null,"CONNIE MOBLEY  "]
["BOUD          BOULDER BEACH NV               ","RSA       RECRUITMENT: STUDENT ATHLETE",null,null,"1685 ",null,null,"CONTROLLER  "]
["BOUL          BOULDER CO                     ","RST       RECRUITMENT: STUDENT/ACADEMIC",null,null,"1686 ",null,null,"CONTROLLERS OFFICE F/S USE ONLY  "]
["BOUR          BOURNEMOUTH, UK                ","SAB       SABBATICAL",null,null,"1692 ",null,null,"CRAIG PALMER  "]
["BOWE          BOWEN UT                       ","SAM       SAMPLE/SPECIMEN COLLECTION",null,null,"1694 ",null,null,"CRISTEN KARDEKE  "]
["BOWI          BOWLING GREEN KY               ","SCH       SCHOOLING",null,null,"1697 ",null,null,"CRISTINA SCOBLE  "]
["BOWL          BOWLING GREEN  OH              ","SCI       SCIENCE DAY",null,null,"1698 ",null,null,"CRYSTAL ERICKSON  "]
["BOZE          BOZEMAN MT                     ","SCL       SPECIMEN COLLECTION",null,null,"1699 ",null,null,"CUITIS LOVE  "]
["BRAD          BRADDOCK VA                    ","SCR       SCREENING(UNDEFINED)",null,null,"1701 ",null,null,"CURTIS LOVE  "]
["BRAI          BRAINERD MN                    ","SCT       SCOUTING",null,null,"1710 ",null,null,"CYNDI GIORGIS  "]
["BRAN          BRANSON MO                     ","SEA       SEARCH COMMITTEE MEETING",null,null,"1715 ",null,null,"CYNTHIA CLAUS  "]
["BRAR          BRAIRCLIFF NY                  ","SEC       SECURITY PROVIDED",null,null,"1740 ",null,null,"DAINE WINSLOW  "]
["BRAT          BRATISLAVA SLOVAKIA            ","SEM       SEMINAR",null,null,"1756 ",null,null,"DALE DEVITT  "]
["BRAW          BRAWLEY CA                     ","SEN       SENATE HEARING",null,null,"1831 ",null,null,"DALE G ANDERSEN  "]
["BREA          BREA CA                        ","SES       SESSIONS",null,null,"1832 ",null,null,"DALE PEHRSSON  "]
["BREC          BRECKENRIDGE CO                ","SHO       SHOW/EXPOSITION",null,null,"1833 ",null,null,"DALE-ELIZABETH PEHRSSON  "]
["BREM          BREMERTON WA                   ","SHW       SHOWCASE",null,null,"1834 ",null,null,"DAN GRIMES  "]
["BREN          BRENTWOOD CA                   ","SIT       SITE VISIT",null,null,"1845 ",null,null,"DANIEL ALLEN  "]
["BRET          BRETTON WOODS NH               ","SKI       SKILLS STANDARD",null,null,"1848 ",null,null,"DANIEL COOK  "]
["BRIA          BRIAN HEAD UT                  ","SP        ACCREDITATION VISIT",null,null,"1940 ",null,null,"DANIEL CURTIS  "]
["BRID          BRIDGEPORT CA                  ","SPA       ATTEND SPEECH/TALK",null,null,"1941 ",null,null,"DANIEL ERWIN  "]
["BRIG          BRIGHTEN ENGLAND               ","SPC       ORNITHOLOGICAL SPECIMEN COLLEC",null,null,"1942 ",null,null,"DANIEL LOWE  "]
["BRIO          BRISTOL RI                     ","SPE       SPEAKER",null,null,"1943 ",null,null,"DANIEL MCLEAN  "]
["BRIS          BRISBANE AUSTRALIA             ","SPK       SPEAKING ENGAGEMENT",null,null,"1951 ",null,null,"DANIEL PROGA  "]
["BRLN          BROOKLYN, NY                   ","SPR       SPRING PRACTICE",null,null,"1959 ",null,null,"DANIEL THOMPSON  "]
["BROC          BROCKPORT NY                   ","STA       STATE OF THE UNIV ADDRESS",null,null,"1960 ",null,null,"DANIEL VILLANUEVA  "]
["BROK          BROOKINGS SD                   ","STD       STUDY",null,null,"1961 ",null,null,"DANIELLE BELLO  "]
["BROM          BROOMFIELD CO                  ","STE       STEWARDSHIP",null,null,"1962 ",null,null,"DANIELLE KNATZ  "]
["BRON          BRONX NY                       ","STO       STOP-OVER",null,null,"1963 ",null,null,"DANNY E WILKINS  "]
["BROO          BROOKHAVEN  NY                 ","STR       STRUCTURE TEST",null,null,"1964 ",null,null,"DARCIA BROWN  "]
["BRUG          BRUGGE BELGIUM                 ","STS       STATE OF THE STATE ADDRRESS",null,null,"1965 ",null,null,"DAREN LIBONATI  "]
["BRUS          BRUSSELS  BELGIUM              ","STU       STUDY ABROAD FAIR",null,null,"1981 ",null,null,"DARLA DOERFLER  "]
["BRYC          BRYCE CANYON UT                ","SUE       SUPERVISE STUDENTS",null,null,"1987 ",null,null,"DARLENE CARTIER  "]
["BSTL          BRISTOL, ENGLAND               ","SUG       SURGERY/STUDENT ATHLETE",null,null,"1990 ",null,null,"DARLENE UNRUE  "]
["BUCH          BUCHAREST ROMANIA              ","SUI       SUMMIT MEETING(S)",null,null,"1991 ",null,null,"DARREL PEPPER  "]
["BUDA          BUDAPEST HUNGARY               ","SUM       SUMMER STUDIES",null,null,"1992 ",null,null,"DARRELL PEPPER  "]
["BUEA          BUENA PARK CA                  ","SUN       SUNDANCE FILM FESTIVAL",null,null,"2005 ",null,null,"DARRELL W PEPPER  "]
["BUEL          BUELLTON CA                    ","SUP       SUPERVISION-STUDENT TEACHERS",null,null,"2010 ",null,null,"DARRYL SEALE  "]
["BUEN          BUENA VISTA FL                 ","SUR       SURVEY",null,null,"2013 ",null,null,"DARYL PRIVOTT  "]
["BUEO          BUENOS AIRES  ARGENTINA        ","SUV       SURVEILANCE (UNDEFINED)",null,null,"2018 ",null,null,"DAS BISWAJIT  "]
["BUFF          BUFFALO NY                     ","SWE       STUDENT WORK EXPERIENCE",null,null,"2019 ",null,null,"DAVE NEDROW  "]
["BULL          BULLHEAD CITY  AZ              ","SYM       SYMPOSIUM",null,null,"2022 ",null,null,"DAVID ASHLEY  "]
["BUNK          BUNKERVILLE NV                 ","TAI       TAILGATE",null,null,"2033 ",null,null,"DAVID CHAMBERS  "]
["BURA          BURLINGAME CA                  ","TAL       GIVE TALK",null,null,"2050 ",null,null,"DAVID CHRISTIANSON  "]
["BURB          BURBANK CA                     ","TAS       NV TASK FORCE",null,null,"2055 ",null,null,"DAVID E JAMES  "]
["BURE          BURLEY ID                      ","TEA       TEACHING/NELLIS",null,null,"2063 ",null,null,"DAVID ELLISON  "]
["BURG          BURLINGTON IA                  ","TEC       SPECIAL/FOREIGN TEACHING VENUE",null,null,"2065 ",null,null,"DAVID FOTT  "]
["BURI          BURLINGTON CANADA              ","TEE       TEACHING",null,null,"2068 ",null,null,"DAVID FROMMER  "]
["BURL          BURLINGTON VT                  ","TEH       TECHNICAL ASSISTANCE",null,null,"2073 ",null,null,"DAVID FROMMRT  "]
["BURN          BURNABY BRIT COLUMBIA CANADA   ","TEL       TELEVISION APPEARANCE",null,null,"2075 ",null,null,"DAVID HASSENZAHL  "]
["BURR          BURRO WASH, MOHAVE AZ          ","TES       TESTIMONY",null,null,"2076 ",null,null,"DAVID HATCHETT  "]
["BURT          BURLINGTON WA                  ","TET       TESTING (UNDEFINED)",null,null,"2078 ",null,null,"DAVID HENRY  "]
["BUTT          BUTTE MT                       ","THA       THEATRE PRODUCTION PURCHASING",null,null,"207B ",null,null,"DAVID J CHRISTIANSON  "]
["CABO          CABO PUNTA BANDA MEXICO        ","THE       THESIS WORK",null,null,"209E ",null,null,"DAVID JAMES  "]
["CABR          CABRILLO CA                    ","THI       THINK TANK",null,null,"209P ",null,null,"DAVID KREAMER  "]
["CADA          CADARACHE FRANCE               ","THR       THEATRE PRODUCTION",null,null,"222R ",null,null,"DAVID LEE  "]
["CAGL          CAGLIARI ITALY                 ","THT       THEATRICAL DEVELOPMENT",null,null,"223M ",null,null,"DAVID N MCNELIS  "]
["CAIN          CAIRNS AUSTRALIA               ","TOI       TOURISM/TRADE MISSION",null,null,"223N ",null,null,"DAVID R SHIELDS  "]
["CAIR          CAIRO EGYPT                    ","TOR       TOURNAMENT",null,null,"224A ",null,null,"DAVID REESE  "]
["CAJO          CAJON  CA                      ","TOU       TOUR",null,null,"224B ",null,null,"DAVID S HAMES  "]
["CALC          CALCUTTA INDIA                 ","TOW       TOWING/MOTOR POOL",null,null,"224D ",null,null,"DAVID SCHMOELLER  "]
["CALF          CALIFORNIA CITY CA             ","TRA       TRANSPORT SCENERY & PROPS",null,null,"224E ",null,null,"DAVID SHELTON  "]
["CALG          CALGARY, ALBERTA, CANADA       ","TRB       TRIBAL FAIR",null,null,"224G ",null,null,"DAVID SHIELDS  "]
["CALI          CALIENTE NV                    ","TRD       TRADE SHOW",null,null,"224H ",null,null,"DAVID THRONSON  "]
["CALL          CALLAHAN CA                    ","TRE       TRADE SHOW SCHOOL",null,null,"224K ",null,null,"DAVID TONELLI  "]
["CALV          CALVILLE BAY NV                ","TRI       TRIAL",null,null,"224L ",null,null,"DAVID W EMERSON  "]
["CAMA          CAMARILLO CA                   ","TRN       TRAINING",null,null,"224M ",null,null,"DAVID WROBEL  "]
["CAMB          CAMBRIDGE ENGLAND              ","TRO       TRANSPORT EQUIPMENT",null,null,"224N ",null,null,"DAVID YODER  "]
["CAMD          CAMDEN NJ                      ","TRP       TRADE SHOW",null,null,"224P ",null,null,"DAWN NEUMAN  "]
["CAMI          CAMBRIDGE OH                   ","TRR       TRANSPORT MOTOR POOL VEHICLES",null,null,"2315 ",null,null,"DEAN GRONEMEIER  "]
["CAMN          CAMPINAS BRAZIL                ","TRS       TRANSPORT ART WORK",null,null,"2325 ",null,null,"DEAN, COLLEGE OF BUSINESS  "]
["CAMP          CAMP SHERMAN OR                ","TRT       TRANSPORT VISITORS",null,null,"2346 ",null,null,"DEBBIE GALLANT  "]
["CAMR          CAMBRIDGE  MA                  ","TR1       TRANSPORT EXHIBIT(UNDEFINED)",null,null,"235A ",null,null,"DEBBIE KARGARD  "]
["CANA          CANARY ISLANDS, SPAIN          ","TSP       TRANSPORT OF PRISONER",null,null,"2363 ",null,null,"DEBBIE L PORRELLO  "]
["CANB          CANBERRA AUSTRALIA             ","TUT       TUTORIAL",null,null,"2374 ",null,null,"DEBBIE PORELLO  "]
["CANC          CANCUN MEXICO                  ","UNL       UNLV COMMUNICATION",null,null,"2375 ",null,null,"DEBBIE PORRELLO  "]
["CANE          CANE BEDS  AZ                  ","VEH       VEHICLE DELIVERY",null,null,"2376 ",null,null,"DEBORAH BARRASH  "]
["CANK          CANAKKALE, TURKEY              ","VIA       VISA/CONSULATE",null,null,"2377 ",null,null,"DEBORAH GALLANT  "]
["CANN          CANNES, FRANCE                 ","VII       VISIT/ATHLETE",null,null,"2378 ",null,null,"DEBORAH J MASTERS  "]
["CANO          CANOGA PARK, CA                ","VIS       VISIT:CAMPUS/MUSEUM/FACILITY",null,null,"2379 ",null,null,"DEBORAH KEIL  "]
["CANR          CANTERBURY, ENGLAND            ","WAC       WACUBO",null,null,"2380 ",null,null,"DEBORAH MASTERS  "]
["CANT          CANTON OH                      ","WED       WEDDING ATTENDANCE",null,null,"2381 ",null,null,"DEBORAH SHAFFER  "]
["CAN1          CANNON BEACH OR                ","WIN       WINERY VISITS",null,null,"2382 ",null,null,"DEBORAH SMATRESK  "]
["CAN2          CANON CITY,CO","WIT       WINTER STUDIES",null,null,"2383 ",null,null,"DEBORAH SOUKUP  "]
["CAPE          CAPETOWN  SOUTH AFRICA         ","WNI       WNIT TOURNAMENT",null,null,"2384 ",null,null,"DEBORAH YOUNG  "]
["CAPG          CAPE GIRARDEAU MO              ","WOR       WORLD SERIES/COLLEGE",null,null,"2385 ",null,null,"DEBRA D DUDDLESTEN  "]
["CAPR          CAPRI ITALY                    ","WRK       WORKSHOP",null,null,"2386 ",null,null,"DEBRA DUDDLESTEN  "]
["CAPT          CAPTIVE ISLAND FL              ",null,null,null,"2387 ",null,null,"DEBRA MARCH  "]
["CARA          CARACAS VENEZUELA              ",null,null,null,"2388 ",null,null,"DEBRA MARTIN  "]
["CARB          CARBONDALE IL                  ",null,null,null,"2410 ",null,null,"DEBRA PACE  "]
["CARD          CARLSBAD CA                    ",null,null,null,"2420 ",null,null,"DEIRDRE LUPHER  "]
["CARE          CAREY NC                       ",null,null,null,"2430 ",null,null,"DENIS BELLER  "]
["CARF          CARDIFF ENGLAND                ",null,null,null,"2441 ",null,null,"DENISE RODRIGUEZ  "]
["CARG          CARTAGENA SPAIN                ",null,null,null,"2502 ",null,null,"DENISE TANATA  "]
["CARI          CARLIN NV                      ",null,null,null,"2503 ",null,null,"DENISE TANATA ASHBY  "]
["CARL          CARLSBAD NM                    ",null,null,null,"2504 ",null,null,"DENISE TANATA-ASHBY  "]
["CARM          CARMEL CA                      ",null,null,null,"2505 ",null,null,"DENISE VIGEANT  "]
["CARN          CARSON CA                      ",null,null,null,"2506 ",null,null,"DENNIS BAZLYLINSKI  "]
["CARO          CARSON WA                      ",null,null,null,"2512 ",null,null,"DENNIS BAZYLINSKI  "]
["CARP          CARP COVE AZ                   ",null,null,null,"2514 ",null,null,"DENNIS BELLER  "]
["CARR          CARROLLTON GA                  ",null,null,null,"2602 ",null,null,"DENNIS L SODEN  "]
["CARS          CARSON CITY NV                 ",null,null,null,"2603 ",null,null,"DENNIS LINDLE  "]
["CART          CARTAGENA COLUMBIA             ",null,null,null,"2605 ",null,null,"DEREK HOUSTON  "]
["CARZ          CAREFREE, AZ                   ",null,null,null,"2702 ",null,null,"DERRICK DUBOSE  "]
["CAR1          CAROLINA PUERTO RICO           ",null,null,null,"2713 ",null,null,"DESPINA SCATES  "]
["CAR2          CARSLILE PA                    ",null,null,null,"2714 ",null,null,"DEYSI BACA  "]
["CAR3          CARRIZOZO, NM                  ",null,null,null,"2801 ",null,null,"DIANA MORRISON  "]
["CASA          CASTAIC CA                     ",null,null,null,"2920 ",null,null,"DIANE MUNTAL  "]
["CASG          CASA GRANDE AZ                 ",null,null,null,"2940 ",null,null,"DIANE WINSLOW  "]
["CASP          CASPER WY                      ",null,null,null,"2978 ",null,null,"DIANN PHILP  "]
["CAST          CASTLEGAR BRIT COLUMBIA CANADA ",null,null,null,"2982 ",null,null,"DIANNA STONECYPHER  "]
["CATA          CATANIA ITALY                  ",null,null,null,"3010 ",null,null,"DIANNE FOURET  "]
["CAVE          CAVE VALLEY NV                 ",null,null,null,"3012 ",null,null,"DIANNE REDSULL  "]
["CAZA          CAZADERO, CA                   ",null,null,null,"3115 ",null,null,"DIBA HADI  "]
["CEDA          CEDAR CITY, UT                 ",null,null,null,"3121 ",null,null,"DICK BENOIT  "]
["CERR          CERRITOS,CA                    ",null,null,null,"3155 ",null,null,"DIRECTOR OF DISBURSEMENTS  "]
["CHAL          CHARLESTON, SC                 ",null,null,null,"3158 ",null,null,"DIRECTOR OF FIN AIDE  "]
["CHAM          CHAMPAIGN, IL                  ",null,null,null,"3170 ",null,null,"DIRECTOR OF FINANCIAL AID  "]
["CHAN          CHANDLER AZ                    ",null,null,null,"3171 ",null,null,"DIRECTOR OF FINANCIAL AIDE  "]
["CHAO          CHARLOTTE NC                   ",null,null,null,"3251 ",null,null,"DIRECTOR OF INTERCOLLEGIATE ATHLETICS  "]
["CHAP          CHAPEL HILL NC                 ",null,null,null,"3262 ",null,null,"DJETO ASSANE  "]
["CHAR          CHARLESTON WV                  ",null,null,null,"3273 ",null,null,"DMITRI SHALIN  "]
["CHAS          CHARLOTTESVILLE VA             ",null,null,null,"3276 ",null,null,"DON DIENER  "]
["CHAT          CHATTANOOGA TN                 ",null,null,null,"3285 ",null,null,"DONALD BAEPLER  "]
["CHAW          CHATSWORTH CA                  ",null,null,null,"3286 ",null,null,"DONALD CARNS  "]
["CHAY          CHANTILLY VA                   ",null,null,null,"3287 ",null,null,"DONALD E CARNS  "]
["CHEA          CHENNAI INDIA                  ",null,null,null,"3288 ",null,null,"DONALD H BAEPLER  "]
["CHEF          CHEFORNAK, AK                  ",null,null,null,"3289 ",null,null,"DONG-CHAN LEE  "]
["CHEG          CHENGDU CHINA                  ",null,null,null,"328A ",null,null,"DONNA EVANS  "]
["CHEM          CHEMNITZ GERMANY               ",null,null,null,"328B ",null,null,"DONNA MCALEER  "]
["CHEN          CHENEY WA                      ",null,null,null,"328C ",null,null,"DONNA MORELL  "]
["CHER          CHERNEHIV UKRAINE              ",null,null,null,"328D ",null,null,"DONNA WEISS  "]
["CHEY          CHEYENNE,  WY                  ",null,null,null,"3290 ",null,null,"DONNA WEISTROP  "]
["CHIA          CHIANG MAI  THAILAND           ",null,null,null,"3295 ",null,null,"DOREEN MARTINEZ  "]
["CHIG          CHILPANCINGO, MEXICO           ",null,null,null,"3296 ",null,null,"DORIS BERRY  "]
["CHIL          CHINA LAKE, CA                 ",null,null,null,"3297 ",null,null,"DORIS COOMES  "]
["CHIN          CHINLE, AZ                     ",null,null,null,"3299 ",null,null,"DORIS HARTIGAN  "]
["CHIO          CHICO CA                       ",null,null,null,"3301 ",null,null,"DOROTHY SHANK  "]
["CHIP          CHIPPEWA FALLS  WI             ",null,null,null,"3302 ",null,null,"DOTTIE SHANK  "]
["CHON          CHONGQING, CHINA               ",null,null,null,"3303 ",null,null,"DOUGLAS D REYNOLDS  "]
["CHRB          CHRIST CHURCH BARBADOS         ",null,null,null,"3304 ",null,null,"DOUGLAS REYNOLDS  "]
["CHRI          CHRISTCHURCH NEW ZEALAND       ",null,null,null,"3308 ",null,null,"DOUGLAS UNGER  "]
["CHRL          CHARLOTTE, NC                  ",null,null,null,"330A ",null,null,"DR ERIC SANDGREN  "]
["CHRR          CHERRY HILL, NC                ",null,null,null,"330E ",null,null,"DR HAL BERGHEL  "]
["CHRY          CHERRY CREEK, DENVER           ",null,null,null,"330J ",null,null,"DR HENRY VILLANUEVA  "]
["CINC          CINCINNATI, OH                 ",null,null,null,"330L ",null,null,"DR. CHIH-HSIANG HO  "]
["CLAI          CLAIREMONT,  CA                ",null,null,null,"330M ",null,null,"E G PHILLIPS  "]
["CLAK          CLARK CO NV                    ",null,null,null,"330N ",null,null,"E. G. PHILLIPS  "]
["CLAM          CLARK MOUNTAINS CA             ",null,null,null,"330Q ",null,null,"E.G. PHILLIPS  "]
["CLAR          CLAREMONT CA                   ",null,null,null,"330T ",null,null,"EARLE C DIXON  "]
["CLAY          CLAYTON MO                     ",null,null,null,"330W ",null,null,"EBRAHIM SALEHI  "]
["CLEA          CLEARWATER FL                  ",null,null,null,"330X ",null,null,"ED HAWKINS  "]
["CLEM          CLEMSON SC                     ",null,null,null,"330Y ",null,null,"ED NEUMANN  "]
["CLER          CLERMONT FRANCE                ",null,null,null,"3312 ",null,null,"EDITH RUSCH  "]
["CLEV          CLEVELAND OH                   ",null,null,null,"3312 ",null,null,"EDUARDO ROBLETO  "]
["CLIN          CLINTON, TN                    ",null,null,null,"3318 ",null,null,"EDWARD HAWKINS  "]
["CLOU          CLOUDCROFT NM                  ",null,null,null,"331C ",null,null,"EDWARD J SHOBEN  "]
["CLOV          CLOVIS CA                      ",null,null,null,"331E ",null,null,"EDWARD NEUMAN  "]
["CNTO          CANTON MA                      ",null,null,null,"331K ",null,null,"EDWARD NEUMANN  "]
["COAL          COALINGA CA                    ",null,null,null,"331L ",null,null,"EDWARD POLIVKA  "]
["COCA          COCANINO NATIONAL FOREST AZ    ",null,null,null,"331N ",null,null,"EDWARD S NEUMANN  "]
["COCO          COCOA BEACH FA                 ",null,null,null,"331Q ",null,null,"EILEEN HAWLEY  "]
["CODY          CODY WY                        ",null,null,null,"331R ",null,null,"EILEEN MCGARRY  "]
["COEU          COEUR D'ALENE ID               ",null,null,null,"331T ",null,null,"ELAINE RICHARDS  "]
["COFE                                         ",null,null,null,"331W ",null,null,"ELAINE ROJAS  "]
["COFF          COFFEE CREEK CA                ",null,null,null,"331X ",null,null,"ELANA PALADINO  "]
["COFY          COFFEYVILLE KS                 ",null,null,null,"3321 ",null,null,"ELISABETH HAUSRATH  "]
["COLA          COLUMBIA MO                    ",null,null,null,"3321 ",null,null,"ELIZABETH BALDIZAN  "]
["COLB          COLUMBIA SC                    ",null,null,null,"3322 ",null,null,"ELIZABETH FRATERRIGO  "]
["COLD          COLD SPRING HARBOR NY          ",null,null,null,"3322 ",null,null,"ELIZABETH GARDNER  "]
["COLE          COLLEGE PARK MD                ",null,null,null,"3324 ",null,null,"ELIZABETH KAHRE  "]
["COLG          COLLEGE PARK PA                ",null,null,null,"3324 ",null,null,"ELIZABETH SAENZ  "]
["COLI          COLIMA MEXICO                  ",null,null,null,"3325 ",null,null,"ELIZABETH SMITH  "]
["COLL          COLLEGE STATION TX             ",null,null,null,"3326 ",null,null,"ELIZABETH SMITHN  "]
["COLM          COLUMBUS GA                    ",null,null,null,"3326 ",null,null,"ELLEN HERRICK  "]
["COLN          COLOGNE GERMANY                ",null,null,null,"332E ",null,null,"ELLEN JACOBSON  "]
["COLO          COLORADO SPRINGS CO            ",null,null,null,"332L ",null,null,"ELVIN C LASHBROOKE  "]
["COLP          COLLEGE PARK MD                ",null,null,null,"332Q ",null,null,"ELVIN C LASHBROOKE JR  "]
["COLS          COLUMBUS MS                    ",null,null,null,"3332 ",null,null,"ELVIN LASHBROOKE  "]
["COLT          COLTER BAY WY                  ",null,null,null,"3332 ",null,null,"EMMA REGENTOVA  "]
["COLU          COLUMBUS OH                    ",null,null,null,"3333 ",null,null,"ERIC LEE  "]
["COLW          COLLINGSWOOD NJ                ",null,null,null,"3333 ",null,null,"ERIC SANDGREN  "]
["COL1          COLOMBO SRI LANKA              ",null,null,null,"3334 ",null,null,"ERIC SANDGRIN  "]
["COL2          COLUMBIA MD                    ",null,null,null,"3334 ",null,null,"ERICKA MCDONALD  "]
["COL3          COLUMBIA SC                    ",null,null,null,"3336 ",null,null,"ERIK TOWNS  "]
["COL4          COLD CREEK NV                  ",null,null,null,"3336 ",null,null,"ERIKA ENGSTROM  "]
["COMO          COMO ITALY                     ",null,null,null,"3337 ",null,null,"ERIKA M MILLER  "]
["COMP          COMPTON CA                     ",null,null,null,"333D ",null,null,"ERIKA M NOLTIE  "]
["CONC          CONCORD NH                     ",null,null,null,"333F ",null,null,"ERIKA NOLTIE  "]
["CONO          CONCORD CA                     ",null,null,null,"333G ",null,null,"ERIN BREEN  "]
["CONR          CONROE TX                      ",null,null,null,"333H ",null,null,"ERIN MCNAMARA  "]
["COOK          COOKEVILLE TN                  ",null,null,null,"333L ",null,null,"ERIN RYAN  "]
["COPA          COPAN HONDURAS                 ",null,null,null,"333M ",null,null,"ERIN SAHLSTEIN  "]
["COPE          COPENHAGEN DENMARK             ",null,null,null,"333T ",null,null,"ERNEST J PECK  "]
["CORA          CORAL GABLES  FL               ",null,null,null,"3340 ",null,null,"ERNEST PECK  "]
["CORB          CORDOBA ARGENTINA              ",null,null,null,"3341 ",null,null,"ERNEST PHILLIPS  "]
["CORC          CORAL COAST AUSTRALIA          ",null,null,null,"3345 ",null,null,"ERNEST PHILLIPS II  "]
["CORD          CORDOVA AK                     ",null,null,null,"3349 ",null,null,"ERNESTO ABEL-SANTOS  "]
["CORE          CORTEZ NV                      ",null,null,null,"334E ",null,null,"ERNESTO ABLE-SANTOS  "]
["CORF          CORFU GREECE                   ",null,null,null,"334L ",null,null,"ERUC SANDGREN  "]
["CORK          CORK IRLAND                    ",null,null,null,"334X ",null,null,"ERVINE CRAWFORD  "]
["CORL          CORTLAND NY                    ",null,null,null,"334Y ",null,null,"EUGENE LAZAROFF  "]
["CORN          CORN CREEK NV                  ",null,null,null,"3352 ",null,null,"EUGENE MCGAUGH  "]
["CORO          CORONA CA                      ",null,null,null,"3353 ",null,null,"EUGENE MOEHRING  "]
["CORP          CORPUS CHRISTI  TX             ",null,null,null,"3354 ",null,null,"EUGENE SMITH  "]
["CORS          CORSICA FRANCE                 ",null,null,null,"3357 ",null,null,"EUNJA KIM  "]
["CORT          CORTEZ CO                      ",null,null,null,"335A ",null,null,"EVANGELO YFANTIS  "]
["CORV          CORVALLIS OR                   ",null,null,null,"335F ",null,null,"EVANGELOS A YFANTIS  "]
["COR1          CORONADO CA                    ",null,null,null,"335G ",null,null,"EVANGELOS YFANTIS  "]
["COST          COSTA MESA CA                  ",null,null,null,"335H ",null,null,"EXEC DIR, RMS  "]
["COTA          COTTAGE GROVE OR               ",null,null,null,"335M ",null,null,"FATMA NASOZ  "]
["COTN          COTTONWOOD CA                  ",null,null,null,"335R ",null,null,"FELICIA CAMPBELL  "]
["COTO          COTTONWOOD VALLEY NV           ",null,null,null,"335T ",null,null,"FIRAS AL-DOURI  "]
["COTT          COTTONWOOD COVE NV             ",null,null,null,"335W ",null,null,"FLOCERFIDA BENINCASA  "]
["COT1          COTTONWOOD EAST AZ             ",null,null,null,"3360 ",null,null,"FLORA J JONES  "]
["COUM          COLUMBIA GA                    ",null,null,null,"3361 ",null,null,"FLORA JONES  "]
["COUR          COURTENAY BC CANADA            ",null,null,null,"3363 ",null,null,"FRANCISCO MENENDEZ  "]
["COVE          COVENTRY ENGLAND               ",null,null,null,"3366 ",null,null,"FRANCISCO VIRGILI  "]
["COVI          COVINA CA                      ",null,null,null,"3369 ",null,null,"FRANK VAN BREUKELEN  "]
["CRAN          CRANBBROOK BC                  ",null,null,null,"336A ",null,null,"FRED BACHHUBER  "]
["CRAT          CRATER FLAT NV                 ",null,null,null,"336C ",null,null,"FRED PRESTON  "]
["CRAW          CRAWLEY UK                     ",null,null,null,"336D ",null,null,"FREDERIC POINEAU  "]
["CRET          CRETE GREECE                   ",null,null,null,"336E ",null,null,"FREDERICK BACHHUBER  "]
["CRFR          CAREFREE AZ                    ",null,null,null,"336F ",null,null,"FREDERICK W BACHHUBER  "]
["CRIP          CRIPPLE CREEK CO               ",null,null,null,"336J ",null,null,"GABRIELE WULF  "]
["CROW          CROWNPOINT, NM                 ",null,null,null,"336K ",null,null,"GAIL JOHNSON  "]
["CRYN          CRYSTAL SPRINGS NV             ",null,null,null,"3370 ",null,null,"GAIL M MICHEL PARSONS  "]
["CRYS          CRYSTAL CITY  VA               ",null,null,null,"3371 ",null,null,"GAIL M MICHEL-PARSON  "]
["CRYT          CRYSTAL BAY  NV                ",null,null,null,"3373 ",null,null,"GAIL M MICHEL-PARSONS  "]
["CUER          CUERNAVACA MEXICO              ",null,null,null,"3375 ",null,null,"GAIL MICHAEL-PARSONS  "]
["CULV          CULVER CITY CA                 ",null,null,null,"3376 ",null,null,"GAIL MICHEL PARSONS  "]
["CUPE          CUPERTINO CA                   ",null,null,null,"3378 ",null,null,"GAIL MICHEL-PARSON  "]
["CURA          CURACAO NETHERLANDS ANTILLIES  ",null,null,null,"337A ",null,null,"GAIL MICHEL-PARSONS  "]
["CURR          CURRIE NV                      ",null,null,null,"337B ",null,null,"GAIL SAMMONS  "]
["CUST          CUSTER SD                      ",null,null,null,"337C ",null,null,"GALE SINATRA  "]
["CUZO          CUZO, PERU                     ",null,null,null,"337D ",null,null,"GANQING JIANG  "]
["CYPR          CYPRESS CA                     ",null,null,null,"337E ",null,null,"GARY CEREFICE  "]
["DAEG          DAEGU, SOUTH KOREA             ",null,null,null,"337F ",null,null,"GAYLE JUNEAU  "]
["DAHL          DAHLGREN VA                    ",null,null,null,"337H ",null,null,"GENE HALL  "]
["DAKA          DAKAR AFRICA                   ",null,null,null,"337K ",null,null,"GENENE BOLDT  "]
["DAKH          DAKHLA W.SAHARA AFRICA         ",null,null,null,"337L ",null,null,"GEORG F MAUER  "]
["DALI          DALIAN CHINA                   ",null,null,null,"337M ",null,null,"GEORG MAUER  "]
["DALL          DALLAS TX                      ",null,null,null,"337N ",null,null,"GEORGE C SCADUTO  "]
["DALT          DALTON GA                      ",null,null,null,"337P ",null,null,"GEORGE DOMBROSKI  "]
["DAMA          DAMASCUS SYRIA                 ",null,null,null,"337W ",null,null,"GEORGE MAUER  "]
["DANA          DANA POINT CA                  ",null,null,null,"337X ",null,null,"GEORGE MUSOVSKI  "]
["DANB          DANBURY  CT                    ",null,null,null,"3381 ",null,null,"GEORGE PALES  "]
["DANV          DANVILLE VA                    ",null,null,null,"3382 ",null,null,"GEORGE PLOPPER  "]
["DARE          DAR ES SALAAM TANZANIA         ",null,null,null,"3384 ",null,null,"GEORGE RHEE  "]
["DARJ          DARJEELING INDIA               ",null,null,null,"338A ",null,null,"GEORGIA L STERGIOS  "]
["DARM          DARMSTADT GERMANY              ",null,null,null,"338B ",null,null,"GEORGIA STERGIOS  "]
["DART          DARTMOUTH, MA                  ",null,null,null,"338C ",null,null,"GERALD R WEEKS  "]
["DAVE          DAVENPORT IA                   ",null,null,null,"338G ",null,null,"GERALD WEEKS  "]
["DAVI          DAVIS CA                       ",null,null,null,"338H ",null,null,"GERHARD HARTIG  "]
["DAXT          DAXTON NV                      ",null,null,null,"338J ",null,null,"GERI KODEY  "]
["DAYN          DAYTON NV                      ",null,null,null,"338L ",null,null,"GERRY BOMOTTI  "]
["DAYO          DAYTONA BEACH FL               ",null,null,null,"338M ",null,null,"GILLIAN NAYLOR  "]
["DAYT          DAYTON OH                      ",null,null,null,"338N ",null,null,"GINA N STREBEL  "]
["DEAR          DEARBORN MI                    ",null,null,null,"338P ",null,null,"GINA STREBEL  "]
["DEAT          DEATH VALLEY CA                ",null,null,null,"338W ",null,null,"GITA TAASOOBSHIRAZI  "]
["DECO          DECORAH IOWA                   ",null,null,null,"338X ",null,null,"GLENN TOOTLE  "]
["DEEB          DEERFIELD BEACH, FL",null,null,null,"338Y ",null,null,"GLORIA COOPER  "]
["DEEF          DEERFIELD IL                   ",null,null,null,"3390 ",null,null,"GLORIA SHANGREAUX  "]
["DEEP          DEEP RIVER CANADA              ",null,null,null,"3391 ",null,null,"GREGORY BROWN  "]
["DEER          DEERWOOD MN                    ",null,null,null,"339B ",null,null,"GREGORY SCHRAW  "]
["DEEV          DEER VALLEY UT                 ",null,null,null,"339C ",null,null,"GRETCHEN REXROAD  "]
["DEIA          DEIA MALLORCA                  ",null,null,null,"339G ",null,null,"HAL BERGHEL  "]
["DEKA          DEKALB  IL                     ",null,null,null,"339H ",null,null,"HALLIE LYONS  "]
["DELA          DELAWARE MD                    ",null,null,null,"339I ",null,null,"HAROLD ACHIBALD  "]
["DELF          DELFT NETHERLANDS              ",null,null,null,"339J ",null,null,"HAROLD ARCHIBALD  "]
["DELH          DELA HORIZONTE BRAZIL          ",null,null,null,"339K ",null,null,"HAROLDO LLEDO  "]
["DELI          DELHI, INDIA                   ",null,null,null,"339N ",null,null,"HARRIET BARLOW  "]
["DELM          DEL MAR CA                     ",null,null,null,"339P ",null,null,"HART L WEGNER  "]
["DELP          DELPHI GREECE                  ",null,null,null,"339Q ",null,null,"HARVEY WALLMAN  "]
["DELR          DEL RIO TX                     ",null,null,null,"339R ",null,null,"HARVEY WALLMANN  "]
["DELT          DELTA UT                       ",null,null,null,"339T ",null,null,"HASAN DENIZ  "]
["DELV          DELAVAN WI                     ",null,null,null,"339W ",null,null,"HEATHER BLACK  "]
["DEMI          DEMING NM                      ",null,null,null,"339X ",null,null,"HEATHER LUSTY  "]
["DENA          DENALI NATIONAL PARK AK        ",null,null,null,"3400 ",null,null,"HEATHER MURPHY  "]
["DENI          DENIO, NV                      ",null,null,null,"3401 ",null,null,"HEIDI ALBRECHT  "]
["DENT          DENTON TX                      ",null,null,null,"3402 ",null,null,"HEIDI SWANK  "]
["DENV          DENVER CO                      ",null,null,null,"3403 ",null,null,"HELEN JACKSON  "]
["DESM          DES MOINES IA                  ",null,null,null,"3407 ",null,null,"HELEN NEILL  "]
["DEST          DESTIN FL                      ",null,null,null,"3409 ",null,null,"HELEN WING  "]
["DETM          DETMOLD GERMANY                ",null,null,null,"340A ",null,null,"HENRI DAY  "]
["DETR          DETROIT MI                     ",null,null,null,"340B ",null,null,"HENRY SELVARAJ  "]
["DEVI          DEVIL'S THROAT NV              ",null,null,null,"340C ",null,null,"HENRY VILLANUEVA  "]
["DHAR          DHARAMSALA INDIA               ",null,null,null,"340D ",null,null,"HILARY BOCKSTANZ  "]
["DHRO          DHROUSIA CYPRUS                ",null,null,null,"340E ",null,null,"HOLLIE LYONS  "]
["DIAN          DIANE'S PUNCH BOWL             ",null,null,null,"340F ",null,null,"HONG LU  "]
["DIJO          DIJON FRANCE                   ",null,null,null,"340G ",null,null,"HSUAN-TSUNG HSIEH  "]
["DILL          DILLON BEACH CA                ",null,null,null,"340H ",null,null,"HUALIANG (HARRY) TENG  "]
["DOLA          DOLAN SPRINGS AZ               ",null,null,null,"340J ",null,null,"HUALIANG TENG  "]
["DOMI          DOMINGUEZ HILLS CA             ",null,null,null,"340K ",null,null,"IAIN MCGAW  "]
["DOMR          DOMINICAN REPUBLIC             ",null,null,null,"340M ",null,null,"IAN DOVE  "]
["DONN          DONNER LAKE CA                 ",null,null,null,"340N ",null,null,"ISABELLE JOHNSON  "]
["DORA          DORADO PUERTO RICO             ",null,null,null,"340P ",null,null,"J ABIODUN ELEGBEDE  "]
["DORT          DORTMUND GERMANY               ",null,null,null,"340Q ",null,null,"J WESLEY MCWHORTER  "]
["DOUG          DOUGLAS  AZ                    ",null,null,null,"340R ",null,null,"J. ANGELINE GARBETT  "]
["DOWN          DOWNEY CA                      ",null,null,null,"340T ",null,null,"JACIMARIA BATISTA  "]
["DRES          DRESDEN GERMANY                ",null,null,null,"340W ",null,null,"JACIMARIA BATSITA  "]
["DUAR          DUARTE, CA                     ",null,null,null,"340X ",null,null,"JACIMARIA R BATISTA  "]
["DUBA          DUBAI UNITED ARAB EMIRATES     ",null,null,null,"340Y ",null,null,"JACIMARIA RAMOS BATISTA  "]
["DUBI          DUBLIN, OH                     ",null,null,null,"3414 ",null,null,"JACK GLASSMAN  "]
["DUBL          DUBLIN IRELAND                 ",null,null,null,"3415 ",null,null,"JACOB THOMPSON  "]
["DUBR          DEBROVNIK, CROATIA             ",null,null,null,"3416 ",null,null,"JACQUELINE RAGIN  "]
["DUBU          DUBUQUE IA                     ",null,null,null,"3419 ",null,null,"JAGDISH MEHTA  "]
["DUCK          DUCK CREEK UT                  ",null,null,null,"341A ",null,null,"JAINA PRESTON  "]
["DULU          DULUTH MN                      ",null,null,null,"341B ",null,null,"JAMES ALFANO  "]
["DUMO          DUMONT DUNES, CA               ",null,null,null,"341C ",null,null,"JAMES BUSSER  "]
["DUNE          DUNEDIN  NEW ZEALAND           ",null,null,null,"341D ",null,null,"JAMES DEACON  "]
["DUNK          DUNK ISL AUSTRALIA             ",null,null,null,"341E ",null,null,"JAMES E DAVIS  "]
["DURA          DURANGO CO                     ",null,null,null,"341F ",null,null,"JAMES E DEACON  "]
["DURB          DURBAN,  SOUTH AFRICA          ",null,null,null,"341G ",null,null,"JAMES FREY  "]
["DURH          DURHAN NC                      ",null,null,null,"341H ",null,null,"JAMES H FREY  "]
["DURM          DURHAM NH                      ",null,null,null,"341J ",null,null,"JAMES HAGER  "]
["DUSS          DUSSELDORF GERMANY             ",null,null,null,"341L ",null,null,"JAMES MALEK  "]
["DYER          DYER NV                        ",null,null,null,"341M ",null,null,"JAMES MCKOY  "]
["EAGA          EAGAN MN                       ",null,null,null,"341N ",null,null,"JAMES POLLARD  "]
["EAGL          EAGLE ROCK CA                  ",null,null,null,"341P ",null,null,"JAMES RAYMOND  "]
["EASB          EAST BRUNSWICK NJ              ",null,null,null,"3428 ",null,null,"JAMES S MALEK  "]
["EASE          EAST ELMHURST NY               ",null,null,null,"3429 ",null,null,"JAMES SELSER  "]
["EAST          EAST LANSING MI                ",null,null,null,"3430 ",null,null,"JAMIE DAVIDSON  "]
["EAUC          EAU CLAIRE WI                  ",null,null,null,"3435 ",null,null,"JAN HARRIS  "]
["ECHO          ECHO BAY NV                    ",null,null,null,"3437 ",null,null,"JAN LASAGNA  "]
["EDIB          EDINBORO PA                    ",null,null,null,"3438 ",null,null,"JAN MCCARTHY  "]
["EDIN          EDINBURGH SCOTLAND             ",null,null,null,"3444 ",null,null,"JAN PEDERSEN  "]
["EDIS          EDISON  NJ                     ",null,null,null,"3445 ",null,null,"JANE A NICHOLS  "]
["EDIU          EDINBURG TX                    ",null,null,null,"3447 ",null,null,"JANE KAPPELMAN  "]
["EDMN          EDMOND OK                      ",null,null,null,"3449 ",null,null,"JANE MCCARTHY  "]
["EDMO          EDMONTON ALBERTA CANADA        ",null,null,null,"3450 ",null,null,"JANE NEITZ  "]
["EDWA          EDWARDS AFB CA                 ",null,null,null,"3457 ",null,null,"JANELLE BAILEY  "]
["EGMO          EGMOND ANN ZEE NETHERLANDS     ",null,null,null,"3461 ",null,null,"JANET CRISTOBAL  "]
["EISE          EISENSTADT AUSTRIA             ",null,null,null,"3462 ",null,null,"JANET DUFEK  "]
["ELCA          EL CAJON CA                    ",null,null,null,"3463 ",null,null,"JANET GUSTAFSON  "]
["ELCE          EL CENTRO CA                   ",null,null,null,"3464 ",null,null,"JANET HOLLINGER  "]
["ELCR          EL CARISO CA                   ",null,null,null,"3467 ",null,null,"JANET M REIBER  "]
["ELDO          ELDORADO VALLEY, NV            ",null,null,null,"3468 ",null,null,"JANET REIBER  "]
["ELKG          ELK GROVE IL                   ",null,null,null,"3470 ",null,null,"JANET RUNGE  "]
["ELKO          ELKO NV                        ",null,null,null,"3473 ",null,null,"JANET WARD  "]
["ELLE          ELLENSBURG WA                  ",null,null,null,"3474 ",null,null,"JANICE CONWAY-KLAASSEN  "]
["ELLS          ELLSWORTH MA                   ",null,null,null,"3476 ",null,null,"JANICE KLAASSEN  "]
["ELMI          ELMIRA  NY                     ",null,null,null,"3477 ",null,null,"JANICE MORTON  "]
["ELMO          EL MONTE CA                    ",null,null,null,"3478 ",null,null,"JASON VAUGHAN  "]
["ELON          ELON NC                        ",null,null,null,"3479 ",null,null,"JASON WASDEN  "]
["ELPA          EL PASO TX                     ",null,null,null,"3480 ",null,null,"JAUNITA FAIN  "]
["ELSE          EL SEGUNDO CA                  ",null,null,null,"3481 ",null,null,"JAVIER RODRIGUEZ  "]
["ELYN          ELY NV                         ",null,null,null,"3482 ",null,null,"JAY SOUZA  "]
["EMER          EMERYVILLE CA                  ",null,null,null,"3483 ",null,null,"JAYE RODRIGUEZ  "]
["EMIG          EMIGRANT GAP  CA               ",null,null,null,"3484 ",null,null,"JEAN CLINE  "]
["EMMI          EMMITSBURG, MD                 ",null,null,null,"3485 ",null,null,"JEAN HERTZMAN  "]
["EMPI          EMPIRE NV                      ",null,null,null,"3486 ",null,null,"JEAN L HERTZMAN  "]
["EMPO          EMPORIA  KS                    ",null,null,null,"3493 ",null,null,"JEAN WHITNEY  "]
["ENCI          ENCINO CA                      ",null,null,null,"3496 ",null,null,"JEANNE PRICE  "]
["ENGA          ENGARU JAPAN                   ",null,null,null,"3497 ",null,null,"JEDIDIAH GUNTER  "]
["ENGL          ENGLEWOOD CO                   ",null,null,null,"3498 ",null,null,"JEF JAEGAR  "]
["ENTE          ENTERPRISE OR                  ",null,null,null,"3500 ",null,null,"JEF JAEGER  "]
["EPHR          EPHRAIM UT                     ",null,null,null,"3501 ",null,null,"JEFF BURDEN  "]
["ERFU          ERFURT GERMANY                 ",null,null,null,"3502 ",null,null,"JEFF GELFER  "]
["ERIC          ERICE SICILY ITALY             ",null,null,null,"3504 ",null,null,"JEFF KOEP  "]
["ERIE          ERIE PA                        ",null,null,null,"3505 ",null,null,"JEFF SHEN  "]
["ESCO          ESCONDIDO CA                   ",null,null,null,"3506 ",null,null,"JEFF SHIH  "]
["ESSE          ESSEX CA                       ",null,null,null,"3507 ",null,null,"JEFF WELLS  "]
["ESTE          ESTES PARK CO                  ",null,null,null,"3508 ",null,null,"JEFFERY KOEP  "]
["ESTO          ESTORIL PORTUGAL               ",null,null,null,"3509 ",null,null,"JEFFERY SHEN  "]
["ESTR          ESTERO FL                      ",null,null,null,"3510 ",null,null,"JEFFERY WEDDING  "]
["ETIW          ETIWANDA CA                    ",null,null,null,"3511 ",null,null,"JEFFREY BURDEN  "]
["ETNA          ETNA  CA                       ",null,null,null,"3514 ",null,null,"JEFFREY JOEP  "]
["EUGE          EUGENE OR                      ",null,null,null,"3518 ",null,null,"JEFFREY KEOP  "]
["EURE          EUREKA CA                      ",null,null,null,"3519 ",null,null,"JEFFREY KOEP  "]
["EURK          EUREKA NV                      ",null,null,null,"3522 ",null,null,"JEFFREY SHEN  "]
["EVAN          EVANSTON IL                    ",null,null,null,"3523 ",null,null,"JEFFREY SHIH  "]
["EVAS          EVANSVILLE IN                  ",null,null,null,"3524 ",null,null,"JEFFREY WADDOUPS  "]
["EVAT          EVANSTON NY                    ",null,null,null,"3525 ",null,null,"JEFFREY WEDDING  "]
["EVOR          EVORA PORTUGAL                 ",null,null,null,"3526 ",null,null,"JEFFRY S HALVERSON  "]
["EXET          EXETER ENGLAND                 ",null,null,null,"3528 ",null,null,"JENNIFER FABBI  "]
["FAIA          FAIRFAX VA                     ",null,null,null,"3529 ",null,null,"JENNIFER GRAY  "]
["FAIR          FAIRBANKS AK                   ",null,null,null,"3534 ",null,null,"JENNIFER L BEVAN  "]
["FAJA          FAJARDI, PUERTO RICO           ",null,null,null,"3535 ",null,null,"JENNIFER NUTTON  "]
["FALB          FALLBROOK CA                   ",null,null,null,"3536 ",null,null,"JENNIFER PERSONIUS  "]
["FALL          FALLON NV                      ",null,null,null,"3537 ",null,null,"JENNIFER PERSONIUS ZIPOY  "]
["FALM          FALMOUTH MA                    ",null,null,null,"3554 ",null,null,"JENNIFER PIREN  "]
["FARE          FARMERS BRANCH TX              ",null,null,null,"3560 ",null,null,"JENNIFER RAMSEY  "]
["FARG          FARGO ND                       ",null,null,null,"3561 ",null,null,"JENNIFER RENNELS  "]
["FARM          FARMINGTON  NM                 ",null,null,null,"3562 ",null,null,"JENNIFER THOMPSON  "]
["FARN          FARNHAM ENGLAND                ",null,null,null,"3563 ",null,null,"JERRY A SCHEFCIK  "]
["FARO          FARO PORTUGAL                  ",null,null,null,"3564 ",null,null,"JERRY KEIR  "]
["FAYE          FAYETTEVILLE AR                ",null,null,null,"3565 ",null,null,"JERRY KOLOSKIE  "]
["FAYT          FAYETTEVILLE NC                ",null,null,null,"3566 ",null,null,"JERRY ROBINSON  "]
["FERA          FERNANDINA BEACH FL            ",null,null,null,"3567 ",null,null,"JERRY SCHEFCIK  "]
["FERN          FERNLEY NV                     ",null,null,null,"3568 ",null,null,"JESSE BRINSON  "]
["FILL          FILLER ID                      ",null,null,null,"3569 ",null,null,"JESSICA DOOLEN  "]
["FISH          FISH LAKE PLATEAU UT           ",null,null,null,"3571 ",null,null,"JESSICA LUCERO  "]
["FLAG          FLAGSTAFF AZ                   ",null,null,null,"3572 ",null,null,"JEWEL SUTTON  "]
["FLAT          FLATHEAD LAKE MT               ",null,null,null,"3573 ",null,null,"JIAN MA  "]
["FLET          FLETCHER CANYON NV             ",null,null,null,"3573 ",null,null,"JIANHU NIE  "]
["FLIN          FLINT MI                       ",null,null,null,"3577 ",null,null,"JICHUN LI  "]
["FLOE          FLORENCE ITALY                 ",null,null,null,"3577 ",null,null,"JILL RACICOT  "]
["FLOR          FLORENCE AZ                    ",null,null,null,"357A ",null,null,"JIM VAN ANTWERP  "]
["FLOS          FLORENCE SC                    ",null,null,null,"3581 ",null,null,"JIM WEAVER  "]
["FOGE          FOGELSVILLE, PA                ",null,null,null,"3585 ",null,null,"JOAN CONWAY  "]
["FONT          FONTANA CA                     ",null,null,null,"3586 ",null,null,"JOAN TABACCHI  "]
["FORC          FORT COLLINS CO                ",null,null,null,"3597 ",null,null,"JOANN JACOBS  "]
["FORE          FOREST GROVE  OR               ",null,null,null,"3600 ",null,null,"JOANNE GOODWIN  "]
["FORI          FORT IRWIN CA                  ",null,null,null,"3601 ",null,null,"JOANNE THOMPSON  "]
["FORK          FORT KNOX KY                   ",null,null,null,"3602 ",null,null,"JODEE LANGER  "]
["FORL          FORT LAUDERDALE FL             ",null,null,null,"3603 ",null,null,"JOE ALDRIDGE  "]
["FORM          FORT MYERS FL                  ",null,null,null,"3607 ",null,null,"JOEL D LIEBERMAN  "]
["FORO          FORT WORTH TX                  ",null,null,null,"3609 ",null,null,"JOEL D WISNER  "]
["FORS          FORESTVILLE CA                 ",null,null,null,"3611 ",null,null,"JOEL LIBERMAN  "]
["FORT          FORT SMITH AR                  ",null,null,null,"3613 ",null,null,"JOEL LIEBERMAN  "]
["FORV          FORT VALLEY  GA                ",null,null,null,"3624 ",null,null,"JOEL SNYDER  "]
["FORW          FORT WAYNE IN                  ",null,null,null,"3628 ",null,null,"JOHN A MERCER  "]
["FRAK          FRANKFORT KY                   ",null,null,null,"3630 ",null,null,"JOHN C UNRUE  "]
["FRAN          FRANKFURT GERMANY              ",null,null,null,"3635 ",null,null,"JOHN CENTINEO  "]
["FRAR          FRASER CO                      ",null,null,null,"3638 ",null,null,"JOHN ELEGBEDE  "]
["FRAS          FRASCATI ITALY                 ",null,null,null,"3639 ",null,null,"JOHN FARLEY  "]
["FRED          FREDERICTON NB CANADA          ",null,null,null,"3640 ",null,null,"JOHN FILLER  "]
["FREI          FREIBERG GERMANY               ",null,null,null,"3642 ",null,null,"JOHN IRSFELD  "]
["FREM          FREMONT CA                     ",null,null,null,"3643 ",null,null,"JOHN KLICKA  "]
["FREO          FREDONIA AZ                    ",null,null,null,"3644 ",null,null,"JOHN MERCER  "]
["FRER          FREDERICKBURG VA               ",null,null,null,"3645 ",null,null,"JOHN MINOR  "]
["FRES          FRESNO CA                      ",null,null,null,"3652 ",null,null,"JOHN MUNDE  "]
["FRIS          FRISCO CO                      ",null,null,null,"3653 ",null,null,"JOHN MUNDY  "]
["FROG          FROG LAKE CA                   ",null,null,null,"3655 ",null,null,"JOHN NACCARATO  "]
["FRON          FRONT ROYAL, VA                ",null,null,null,"3656 ",null,null,"JOHN PURVIS  "]
["FTCO          FORT COLLINS CO                ",null,null,null,"3659 ",null,null,"JOHN TUMAN  "]
["FTLA          FT LAUDERDALE FL               ",null,null,null,"3660 ",null,null,"JOHN W FARLEY  "]
["FTMA          FORT MEADE  MD                 ",null,null,null,"3661 ",null,null,"JOHN WHITE  "]
["FTME          FORT MEAD  MY                  ",null,null,null,"3663 ",null,null,"JOHN YOUNG  "]
["FTMY          FORT MYERS FL                  ",null,null,null,"3672 ",null,null,"JOHNNY CENTINEO  "]
["FTPI          FT PIERCE FL                   ",null,null,null,"3679 ",null,null,"JOI TAYLOR  "]
["FTVA          FT VALLEY GA                   ",null,null,null,"3680 ",null,null,"JONATHAN GOOD  "]
["FTWO          FT WORTH TX                    ",null,null,null,"3683 ",null,null,"JOSE ELIQUE  "]
["FUKU          FUKUOKA JAPAN                  ",null,null,null,"3686 ",null,null,"JOSE MELENDREZ  "]
["FULL          FULLERTON CA                   ",null,null,null,"3691 ",null,null,"JOSEPH A GREENWAY  "]
["FUNC          FUNCHAL MADEIRA ISLANDS        ",null,null,null,"3692 ",null,null,"JOSEPH B MCCULLOUGH  "]
["FURN          FURNACE CREEK CA               ",null,null,null,"3693 ",null,null,"JOSEPH E HONRATH  "]
["GABB          GABBS NV                       ",null,null,null,"3706 ",null,null,"JOSEPH FRY  "]
["GAIN          GAINSVILLE FL                  ",null,null,null,"3707 ",null,null,"JOSEPH GREENWAY  "]
["GAIT          GAITHERSBURG MD                ",null,null,null,"3712 ",null,null,"JOSEPH HONRATH  "]
["GALI          GALILEE ISRAEL                 ",null,null,null,"3714 ",null,null,"JOSEPH LOBARDO  "]
["GALV          GALVESTON TX                   ",null,null,null,"3715 ",null,null,"JOSEPH LOMBARDO  "]
["GALW          GALWAY IRLAND                  ",null,null,null,"3719 ",null,null,"JOSEPH NIKA  "]
["GARC          GARDEN CITY, NY                ",null,null,null,"3721 ",null,null,"JOSEPH RIOS  "]
["GARD          GARDEN GROVE CA                ",null,null,null,"3722 ",null,null,"JOSEPH VALENZANO III  "]
["GARE          GARDEN CITY KS                 ",null,null,null,"3736 ",null,null,"JOYCE AHN  "]
["GARI          GARDINER MT                    ",null,null,null,"3738 ",null,null,"JUAINITA FAIN  "]
["GARN          GARDNERVILLE NV                ",null,null,null,"3739 ",null,null,"JUAN CASTELLANOS  "]
["GATW          GATWICK UK                     ",null,null,null,"3740 ",null,null,"JUANITA FAIN  "]
["GENE          GENEVA SWITZERLAND             ",null,null,null,"3742 ",null,null,"JUANITA P FAIN  "]
["GENO          GENOA ITALY                    ",null,null,null,"3743 ",null,null,"JUDITH OSTERMAN  "]
["GENV          GENEVA PARK, ONTARIO           ",null,null,null,"3745 ",null,null,"JUDY BELANGER  "]
["GERL          GERLACH NV                     ",null,null,null,"3747 ",null,null,"JUDY FILLER  "]
["GERM          GERMANTOWN MD                  ",null,null,null,"3750 ",null,null,"JUDY MAGOWAN  "]
["GETC          GETCHELL MINE NV               ",null,null,null,"3753 ",null,null,"JUDY NAGAI  "]
["GETT          GETTYSBURG PA                  ",null,null,null,"3754 ",null,null,"JUDY NAGAI-ALLISON  "]
["GHAN          GHANA AFRICA                   ",null,null,null,"3755 ",null,null,"JULIE BARTLETT  "]
["GILM          GILMAN SPRINGS NV              ",null,null,null,"3756 ",null,null,"JULIE SHAW  "]
["GILR          GILROY CA                      ",null,null,null,"3759 ",null,null,"JUNE JACKSON  "]
["GIRO          GIRONA SPAIN                   ",null,null,null,"3760 ",null,null,"JUNGWOO LEE  "]
["GLAC          GLACIER MONTANA                ",null,null,null,"3761 ",null,null,"JUSTIN H CARTER  "]
["GLAS          GLASGOW SCOTLAND               ",null,null,null,"3763 ",null,null,"JU-YEON JO  "]
["GLEA          GLENDALE AZ                    ",null,null,null,"3770 ",null,null,"K PEARL BREWER  "]
["GLED          GLENDALE NV                    ",null,null,null,"3772 ",null,null,"KAITLIN ZIEGLER  "]
["GLEE          GLENEDEN BEACH OR              ",null,null,null,"3773 ",null,null,"KALUS STETZEBACH  "]
["GLEN          GLENDALE CA                    ",null,null,null,"3774 ",null,null,"KAREN CALDER  "]
["GLOB          GLOBE  AZ                      ",null,null,null,"3775 ",null,null,"KAREN DRUCKMAN  "]
["GLUM          GLUMSLOV SWEDEN                ",null,null,null,"3779 ",null,null,"KAREN FITT  "]
["GOLA          GOLD BEACH OR                  ",null,null,null,"3782 ",null,null,"KAREN HARRY  "]
["GOLB          GOLD BUTTE NV                  ",null,null,null,"3783 ",null,null,"KAREN KRELLER  "]
["GOLC          GOLD COAST AUSTRALIA           ",null,null,null,"3785 ",null,null,"KAREN LAYNE  "]
["GOLD          GOLDFIELD  NV                  ",null,null,null,"3794 ",null,null,"KAREN SPICA  "]
["GOLE          GOLDEN CO                      ",null,null,null,"3797 ",null,null,"KAREN STOKES  "]
["GOOD          GOODSPRINGS NV                 ",null,null,null,"3798 ",null,null,"KAREN STRONG  "]
["GOTE          GOTHENBURG SWEDEN              ",null,null,null,"3799 ",null,null,"KAREN WEST  "]
["GOTH          GOTHAM CITY NY                 ",null,null,null,"3821 ",null,null,"KARI COBURN  "]
["GOTT          GOTTINGEN GERMANY              ",null,null,null,"3822 ",null,null,"KARIN VAN DIJK  "]
["GOVE          GOVERMENT WASH NV              ",null,null,null,"3827 ",null,null,"KARL KINGSLEY  "]
["GRAA          GRANADA NICARAGUA              ",null,null,null,"3828 ",null,null,"KARL REYNOLDS  "]
["GRAB          GRANADA SPAIN                  ",null,null,null,"3830 ",null,null,"KATHERINE HERTLEIN  "]
["GRAC          GRAND CANYON  AZ               ",null,null,null,"3833 ",null,null,"KATHERINE WILSON  "]
["GRAD          GRAND FORKS ND                 ",null,null,null,"3834 ",null,null,"KATHI DUCASSE  "]
["GRAF          GRAND FORKS BC CANADA          ",null,null,null,"3836 ",null,null,"KATHLEEN A ROBINS  "]
["GRAH          GRAND WASH AZ                  ",null,null,null,"3838 ",null,null,"KATHLEEN ADKINS  "]
["GRAI          GRANITE MOUNTAINS CA           ",null,null,null,"3839 ",null,null,"KATHLEEN ARCHER ADKINS  "]
["GRAJ          GRAND JUNCTION CO              ",null,null,null,"3841 ",null,null,"KATHLEEN K STUBBLEFIELD  "]
["GRAL          GRANLIBAKKAN CA                ",null,null,null,"3846 ",null,null,"KATHLEEN LAUCKNER  "]
["GRAN          GRAND ISLAND NE                ",null,null,null,"3847 ",null,null,"KATHLEEN LONGSHORE  "]
["GRAP          GRAPEVINE CANYON NV            ",null,null,null,"3848 ",null,null,"KATHLEEN NORTON  "]
["GRAR          GRAND RAPIDS MI                ",null,null,null,"3849 ",null,null,"KATHLEEN ROBINS  "]
["GRAS          GRANTS PASS OR                 ",null,null,null,"3850 ",null,null,"KATHRYN ANDERSON  "]
["GRAT          GRAND TETON NATIONAL PARK WY   ",null,null,null,"3855 ",null,null,"KATHRYN HAUSBECK  "]
["GRAW          GRAND WASH NV                  ",null,null,null,"3864 ",null,null,"KATHRYN WILSON  "]
["GRAZ          GRAZ, AUSTRIA                  ",null,null,null,"3866 ",null,null,"KATHY ADAMS  "]
["GRCM          GRAND CAYMAN BWI               ",null,null,null,"3872 ",null,null,"KATHY ESPIN  "]
["GRE             RHUS DENMARK                 ",null,null,null,"3874 ",null,null,"KATHY LONGSHORE  "]
["GREA          GREAT FALLS MT                 ",null,null,null,"3876 ",null,null,"KATHY ZELLER  "]
["GREB          GREENBELT MD                   ",null,null,null,"3877 ",null,null,"KATIE WILSON  "]
["GRED          GRENADA SPAIN                  ",null,null,null,"3882 ",null,null,"KATRINA SEITALSKI  "]
["GREE          GREENVILLE SC                  ",null,null,null,"3885 ",null,null,"KAUSHIK GHOSH  "]
["GREI          GREENVILLE  MI                 ",null,null,null,"3887 ",null,null,"KAY A LONG  "]
["GREL          GREELEY CO                     ",null,null,null,"3888 ",null,null,"KAYE SCHWER  "]
["GREN          GREENSBORO NC                  ",null,null,null,"3890 ",null,null,"KAZEM TAGHVA  "]
["GREO          GRNOBLE FRANCE                 ",null,null,null,"3892 ",null,null,"KEITH SCHWER  "]
["GRET          GREAT BASIN NATIONAL PARK      ",null,null,null,"3893 ",null,null,"KELSEY HARMON FINN  "]
["GREV          GREENVILLE MS                  ",null,null,null,"3897 ",null,null,"KELSEY NAKATA  "]
["GREY          GREEN BAY  WI                  ",null,null,null,"3898 ",null,null,"KEN CZERWINSKI  "]
["GRNO          GRENOLDE FRANCE                ",null,null,null,"3903 ",null,null,"KEN CZERWINSKIE  "]
["GROU          GROUSE CREEK UT                ",null,null,null,"3905 ",null,null,"KEN PEFFERS  "]
["GRRP          GRAPEVINE, TEXAS",null,null,null,"3906 ",null,null,"KENDALL HARTLEY  "]
["GUAA          GUANAJUATO MEXICO              ",null,null,null,"3909 ",null,null,"KENNETH CZERWINSKI  "]
["GUAD          GUADALAJARA MEXICO             ",null,null,null,"3911 ",null,null,"KENNETH FERNANDEZ  "]
["GUAE          GUADELOUPE MEXICO              ",null,null,null,"3912 ",null,null,"KENNETH FRIDLEY  "]
["GUAM          GUATEMALA CITY GUATEMALA       ",null,null,null,"3916 ",null,null,"KENNETH HANLON  "]
["GUAN          GUANGZHOU CHINA                ",null,null,null,"3919 ",null,null,"KENNETH L TEETERS  "]
["GUAT          GUATEMALA CITY MEXICO          ",null,null,null,"391A ",null,null,"KENNETH M HANLON  "]
["GUAY          GUAYMAS MEXICO                 ",null,null,null,"391B ",null,null,"KENT CRIPPEN  "]
["GUEL          GUELPH ONTARIO CANADA          ",null,null,null,"391C ",null,null,"KENTARO NAGAMINE  "]
["GUIL          GUILFORD VT                    ",null,null,null,"391E ",null,null,"KEONG LEONG  "]
["GUIY          GUIYANG CHINA                  ",null,null,null,"391F ",null,null,"KERRY KOENIG  "]
["GULF          GULFPORT MS                    ",null,null,null,"391P ",null,null,"KERRY MARTINEZ  "]
["GUNN          GUNNISON CO                    ",null,null,null,"391R ",null,null,"KIDKAZEM TAGHVA  "]
["HACI          HACIENDA HEIGHTS CA            ",null,null,null,"391T ",null,null,"KRISLYNN MARCELLO  "]
["HADL          HADLEY MA                      ",null,null,null,"391W ",null,null,"KRISTEN REZA  "]
["HAGE          HAGERSTOWN MD                  ",null,null,null,"391X ",null,null,"KRISTEN YOUNG  "]
["HAGU          HAGUE NETHERLANDS              ",null,null,null,"3921 ",null,null,"KRISTENE FISHER  "]
["HAIF          HAIFA ISREAL                   ",null,null,null,"3922 ",null,null,"KRISTENE G FISHER  "]
["HAIN          HAINAN,CHINA                   ",null,null,null,"3923 ",null,null,"KRISTI RODRIGUEZ  "]
["HAKO          HAKONE  JAPAN                  ",null,null,null,"3924 ",null,null,"KRISTIN SAYESKI  "]
["HALE          HALE POHAKU HI                 ",null,null,null,"3925 ",null,null,"KRISTINE FISHER  "]
["HALF          HALF MOON BAY CA               ",null,null,null,"3926 ",null,null,"KRYSTYNA A STAVE  "]
["HALI          HALIFAX NOVA SCOTIA CANADA     ",null,null,null,"3927 ",null,null,"KRYSTYNA STAVE  "]
["HALL          HALLORAN SPRINGS VA            ",null,null,null,"392M ",null,null,"KURT REGNER  "]
["HAMB          HAMBURG GERMANY                ",null,null,null,"392N ",null,null,"KYLE HIGGINS  "]
["HAMI          HAMILTON NEW ZEALAND           ",null,null,null,"392X ",null,null,"KYLE YAHIRO-OKINO  "]
["HAML          HAMILTON BERMUDA               ",null,null,null,"3932 ",null,null,"KYLEE THOMAS  "]
["HAMP          HAMPTON NEW ZEALAND            ",null,null,null,"393A ",null,null,"LANELDA ROLLEY  "]
["HAMS          HAMPSHIRE ENGLAND              ",null,null,null,"393B ",null,null,"LARRY ASHLEY  "]
["HAMT          HAMPTON  VA                    ",null,null,null,"393D ",null,null,"LARRY HAMILTON  "]
["HANC          HANCOCK MI                     ",null,null,null,"393N ",null,null,"LARRY HENLEY  "]
["HAND          HANFORD, WA                    ",null,null,null,"393P ",null,null,"LARRY TIRRI  "]
["HANE          HANESVILLE UT                  ",null,null,null,"393R ",null,null,"LARRY VIERRA  "]
["HANF          HANFORD OR                     ",null,null,null,"393T ",null,null,"LAURA KAPRELIAN  "]
["HANG          HANGZHOU CHINA                 ",null,null,null,"393X ",null,null,"LAURA KRUSKALL  "]
["HANO          HANOI VIETNAM                  ",null,null,null,"393Y ",null,null,"LAURA MADRID  "]
["HANV          HANNOVER GERMANY               ",null,null,null,"3940 ",null,null,"LAURAL FRUTH  "]
["HARB          HARBIN CHINA                   ",null,null,null,"3941 ",null,null,"LAUREL FRUTH  "]
["HARI          HARRISONBURG VA                ",null,null,null,"3942 ",null,null,"LAUREL FURTH  "]
["HARL          HARLINGTON TX                  ",null,null,null,"3943 ",null,null,"LAUREL PRITCHARD  "]
["HARP          HARPERS FERRY WV               ",null,null,null,"3944 ",null,null,"LAVINIA ALDRIDGE  "]
["HARR          HARRISBURG PA                  ",null,null,null,"394A ",null,null,"LAVINIA ALLDREDGE  "]
["HART          HARTFORD CT                    ",null,null,null,"394B ",null,null,"LAWRENCE D HENLEY  "]
["HARY          HARRY ALLEN NV POWER PLANT NV  ",null,null,null,"394E ",null,null,"LAWRENCE GOLDING  "]
["HASB          HASBROUCK HIGHTS NJ            ",null,null,null,"394L ",null,null,"LAWRENCE HAMILTON  "]
["HATT          HATTIESBURG MS                 ",null,null,null,"394N ",null,null,"LAWRENCE HENLEY  "]
["HAUP          HAUPPAUGE NY                   ",null,null,null,"394Q ",null,null,"LAWRENCE L LARMORE  "]
["HAVA          HAVANA CUBA                    ",null,null,null,"3950 ",null,null,"LAWRENCE TIRRI  "]
["HAVS          HAVASUPAI AZ                   ",null,null,null,"3951 ",null,null,"LAWRENCE WALKER  "]
["HAWT          HAWTHORNE NV                   ",null,null,null,"3952 ",null,null,"LAXMI GEWALI  "]
["HAYS          HAYS KANSAS                    ",null,null,null,"3956 ",null,null,"LAXMI P. GEWALI  "]
["HAYW          HAYWARD CA                     ",null,null,null,"3957 ",null,null,"LEA SEXTON  "]
["HAZE          HAZELTINE MN                   ",null,null,null,"3958 ",null,null,"LEANN PUTNEY  "]
["HEID          HEIDELBERG GERMANY             ",null,null,null,"395G ",null,null,"LEE BERMICK  "]
["HELS          HELSINKI FINLAND               ",null,null,null,"395J ",null,null,"LEE BERNICK  "]
["HEMM          HEMMINGWAY RAMP NV             ",null,null,null,"395M ",null,null,"LEE SCROGGINGS  "]
["HENA          HENAN CHINA                    ",null,null,null,"395P ",null,null,"LEE SCROGGINS  "]
["HEND          HENDERSON NV                   ",null,null,null,"395Q ",null,null,"LEISA RODRIGUEZ  "]
["HENN          HENNIKER NH                    ",null,null,null,"395R ",null,null,"LEORA BARON  "]
["HERE          HEREDIA COSTA RICA             ",null,null,null,"395Y ",null,null,"LESLE HUSKA  "]
["HERM          HERMOSILLO MEXICO              ",null,null,null,"3960 ",null,null,"LESLIE BLASCO  "]
["HERS          HERSHEY PA                     ",null,null,null,"3961 ",null,null,"LESLIE KARNS  "]
["HESP          HESPERIA CA                    ",null,null,null,"3962 ",null,null,"LETICIA SAUCEDO  "]
["HEVE          HEVERLEE BELGIUM               ",null,null,null,"3967 ",null,null,"LEVIA LANIER  "]
["HIGH          HIGHLANDS RANCH, CO            ",null,null,null,"3969 ",null,null,"LINDA MORGAN  "]
["HIKO          HIKO NV                        ",null,null,null,"396C ",null,null,"LINDA QUINN  "]
["HILL          HILLSBORO OREGON               ",null,null,null,"396D ",null,null,"LINDA ROBINSON  "]
["HILO          HILO HI                        ",null,null,null,"396G ",null,null,"LINDA ROBISON  "]
["HILT          HILTON HEAD SC                 ",null,null,null,"396J ",null,null,"LINDA ROBSIN  "]
["HIME          HIMEJI JAPAN                   ",null,null,null,"396L ",null,null,"LINDA SAPOCHAK  "]
["HINK          HINKLEY CA                     ",null,null,null,"396M ",null,null,"LINDA TOOKE  "]
["HIRO          HIROSHIMA JAPAN                ",null,null,null,"396R ",null,null,"LISA ARTH  "]
["HOBA          HOBART AUSTRALIA               ",null,null,null,"396T ",null,null,"LISA CHASTAIN  "]
["HOBB          HOBBS NM                       ",null,null,null,"396W ",null,null,"LISA DAVIS  "]
["HOCH          HO CHI MINH CITY VIETNAM       ",null,null,null,"396X ",null,null,"LISA KELLEHER  "]
["HOHH          HOHHOT, CHINA",null,null,null,"3971 ",null,null,"LISA MONACO-ADAMS  "]
["HOKK          HOKKAIDO JAPAN                 ",null,null,null,"3973 ",null,null,"LISA REYES  "]
["HOLB          HOLBROOK AZ                    ",null,null,null,"3974 ",null,null,"LIYUAN ZHANG  "]
["HOLD          HOLDERNESS NH                  ",null,null,null,"3985 ",null,null,"LIZ BALDIZAN  "]
["HOLF          HOLLYWOOD FL                   ",null,null,null,"3986 ",null,null,"LLOYD STARK  "]
["HOLI          HOLLISTER CA                   ",null,null,null,"3988 ",null,null,"LOIS HELMBOLD  "]
["HOLL          HOLLYWOOD CA                   ",null,null,null,"3991 ",null,null,"LOIS RITA HELMBOLD  "]
["HOLT          HOLTVILLE CA                   ",null,null,null,"3995 ",null,null,"LON D SPIGHT  "]
["HOLY          HOLLYWOOD FL                   ",null,null,null,"3996 ",null,null,"LONGZHOU MA  "]
["HOME          HOMER AK                       ",null,null,null,"3999 ",null,null,"LORI BACHAND  "]
["HONG          HONG KONG                      ",null,null,null,"39AA ",null,null,"LORI BRUCE  "]
["HONO          HONOLULU HI                    ",null,null,null,"39AG ",null,null,"LORI CANDELA  "]
["HOOD          HOOD RIVER OR                  ",null,null,null,"39AN ",null,null,"LORI JAMES  "]
["HOTC          HOT CREEK RANGE NV             ",null,null,null,"39AQ ",null,null,"LORI L TEMPLE  "]
["HOTS          HOT SPRINGS VA                 ",null,null,null,"39BD ",null,null,"LORI OLAFSON  "]
["HOUS          HOUSTON TX                     ",null,null,null,"39BG ",null,null,"LORI POLSTER  "]
["HUAI          HUAIHUA CHINA                  ",null,null,null,"39BH ",null,null,"LORI PULLEN  "]
["HUAN          HUANGSHAN, CHINA               ",null,null,null,"39BI ",null,null,"LORI SLINN  "]
["HUNI          HUNTINGTON BEACH CA            ",null,null,null,"39BJ ",null,null,"LORI TEMPLE  "]
["HUNN          HUNTINGTON WV                  ",null,null,null,"39BK ",null,null,"LOU STRAND  "]
["HUNS          HUNTSVILLE TX                  ",null,null,null,"39BL ",null,null,"LOUIS KAVOURAS  "]
["HUNT          HUNT VALLEY MD                 ",null,null,null,"39BM ",null,null,"LUCEYLE F KLINKHAMMER  "]
["HUNV          HUNTSVILLE AL                  ",null,null,null,"39BN ",null,null,"LUCEYLE KLINKHAMMER  "]
["HURR          HURRICANE UT                   ",null,null,null,"39BP ",null,null,"LUIS VALERA  "]
["HUTC          HUTCHINSON KS                  ",null,null,null,"39BQ ",null,null,"LUKE SCHULTHEIS  "]
["HUTI          HUTCHINSON ISLAND FL           ",null,null,null,"39BR ",null,null,"LUREL FRUTH  "]
["HYAN          HYANNIS MA                     ",null,null,null,"39BT ",null,null,"LYDIA DEL RIO  "]
["HYDE          HYDERABAD INDIA                ",null,null,null,"39BW ",null,null,"LYDIA MCKINSTRY  "]
["IASI          IASI ROMANIA                   ",null,null,null,"39BX ",null,null,"LYLE RIVERA  "]
["IBEX          IBEX UT                        ",null,null,null,"39BY ",null,null,"LYNNE PERSONIUS  "]
["ICEB          ICEBERG CANYON, NV             ",null,null,null,"39CA ",null,null,"M CHRISTOPHER BROWN  "]
["IDAH          IDAHO FALLS ID                 ",null,null,null,"39CB ",null,null,"M CHRISTOPHER BROWN II  "]
["INCH          INCHEON KOREA \\                ",null,null,null,"39CD ",null,null,"M DENISE VIGEANT  "]
["INCL          INCLINE VILLAGE  NV            ",null,null,null,"39CE ",null,null,"MACK RUBLEY  "]
["INDA          INDIAN SPRINGS CA              ",null,null,null,"39CF ",null,null,"MAGGI HIERRO  "]
["INDE          INDEPENDENCE MO                ",null,null,null,"39CG ",null,null,"MAGGIE HIERRO  "]
["INDI          INDIANAPOLIS IN                ",null,null,null,"39CH ",null,null,"MAGGIE KROSS  "]
["INDL          INDIANOLA MS                   ",null,null,null,"39CJ ",null,null,"MAJORIE SPEER  "]
["INDN          INDIAN WELLS  CA               ",null,null,null,"39CK ",null,null,"MALCOLM EILEEN  "]
["INDO          INDIO CA                       ",null,null,null,"39CL ",null,null,"MALCOLM NICOL  "]
["INDR          INDORE INDIA                   ",null,null,null,"39CM ",null,null,"MALLORY ECKSTUT  "]
["INDS          INDIAN SPRINGS NV              ",null,null,null,"39CN ",null,null,"MALWANE ANADA  "]
["INDU          INDUSTRY CITY CA               ",null,null,null,"39CP ",null,null,"MALWANE ANANDA  "]
["INGL          INGLEWOOD, CA                  ",null,null,null,"39CQ ",null,null,"MANDA TELLERIA  "]
["INNS          INNSBRUCK AUSTRIA              ",null,null,null,"39CR ",null,null,"MARCIA DITMYER  "]
["INYO          INYO  CA                       ",null,null,null,"39CW ",null,null,"MARCIA TURNER  "]
["IOWA          IOWA CITY IA                   ",null,null,null,"4006 ",null,null,"MARCUS ROTHENBERGER  "]
["IRAK          IRAKLION GREECE                ",null,null,null,"400C ",null,null,"MARDENE WRIGHT  "]
["IRON          IRON MOUNTAINS CA              ",null,null,null,"400D ",null,null,"MARGARET ALEXIS KENNEDY  "]
["IRVI          IRVINE CA                      ",null,null,null,"400E ",null,null,"MARGARET LYNEIS  "]
["ISCH          ISCHIA, ITALY                  ",null,null,null,"400F ",null,null,"MARGARET MARKARIAN  "]
["ISLI          ISLIP NY                       ",null,null,null,"400G ",null,null,"MARGARET N REES  "]
["ISMI          ISMIR TURKEY                   ",null,null,null,"400H ",null,null,"MARGARET REES  "]
["ISTA          ISTANBUL TURKEY                ",null,null,null,"400J ",null,null,"MARGARET SHIN  "]
["ITAS          ITASCA IL                      ",null,null,null,"400K ",null,null,"MARGARET WALSH  "]
["ITHA          ITHACA NY                      ",null,null,null,"400M ",null,null,"MARIA CASAS  "]
["IVAN          IVANPAH CA                     ",null,null,null,"400N ",null,null,"MARIA FIGUEROA  "]
["IVAP          IVANPAH NV                     ",null,null,null,"400T ",null,null,"MARIA GUENECHEA  "]
["IVIN          IVINS UT                       ",null,null,null,"4020 ",null,null,"MARIA MEYERSON  "]
["IZAL          IZALO LAPLAND                  ",null,null,null,"4030 ",null,null,"MARIA N RAMOS  "]
["JACH          JACKSON HOLE WY                ",null,null,null,"403M ",null,null,"MARIA RAMOS  "]
["JACK          JACKSON WY                     ",null,null,null,"403Y ",null,null,"MARIE TORRES  "]
["JACO          JACKSON MS                     ",null,null,null,"4044 ",null,null,"MARILYN MCKINNEY  "]
["JACP          JACKPOT NV                     ",null,null,null,"4045 ",null,null,"MARILYN THOMPSON  "]
["JACS          JACKSONVILLE FL                ",null,null,null,"4046 ",null,null,"MARIN DUBOIS  "]
["JACV          JACKSONVILLE TX                ",null,null,null,"404B ",null,null,"MARITZA WHITE  "]
["JAMS          JAMSHEDPUR INDIA               ",null,null,null,"404E ",null,null,"MARJORIE SPEER  "]
["JARB          JARBIDGE MTNS NV               ",null,null,null,"404G ",null,null,"MARK AQSHCRAFT  "]
["JEAN          JEAN NV                        ",null,null,null,"4051 ",null,null,"MARK ASHCRAFT  "]
["JEFF          JEFFERSON CITY MO              ",null,null,null,"4085 ",null,null,"MARK BUTNER  "]
["JEJU          JEJU ISLAND KOREA              ",null,null,null,"4092 ",null,null,"MARK BUTTNER  "]
["JEKY          JEKYLL ISLAND GA               ",null,null,null,"4104 ",null,null,"MARK FLOYD  "]
["JEME          JEMEZ MOUNTAINS NM             ",null,null,null,"4114 ",null,null,"MARK GUADAGNOLI  "]
["JERU          JERUSALEM ISRAEL               ",null,null,null,"4129 ",null,null,"MARK K MIYAMOTO  "]
["JINA          JINAN CHINA                    ",null,null,null,"4149 ",null,null,"MARK MIYAMOTO  "]
["JOHA          JOHANNESBURG SO AFRICA         ",null,null,null,"4176 ",null,null,"MARK OCAMPO  "]
["JOHN          JOHNSTON ATOLL                 ",null,null,null,"4181 ",null,null,"MARKUS MIKA  "]
["JOHO          JOHNSON VALLEY CA              ",null,null,null,"418A ",null,null,"MARSHA E MOON  "]
["JOHS          JOHNSTOWN PA                   ",null,null,null,"4191 ",null,null,"MARSHA GREEN  "]
["JOPL          JOPLIN MO                      ",null,null,null,"4193 ",null,null,"MARTHA KOCH  "]
["JOSH          JOSHUA TREE NAT'L PARK CA      ",null,null,null,"4282 ",null,null,"MARTHA WATSON  "]
["JUMP          JUMP CANYON AZ                 ",null,null,null,"4308 ",null,null,"MARTHA YOUNG  "]
["JUNC          JUNCTION UT                    ",null,null,null,"4310 ",null,null,"MARTI ASH  "]
["JUNE          JUNEAU AK                      ",null,null,null,"4312 ",null,null,"MARTIN ERWIN  "]
["JYVA          JYVASKYLA FINLAND              ",null,null,null,"4313 ",null,null,"MARY ANN BORGESEN  "]
["KAHL          KAHULUI MAUI                   ",null,null,null,"4314 ",null,null,"MARY BONDMASS  "]
["KAHU          KAHUKU HI                      ",null,null,null,"4318 ",null,null,"MARY DICKSON  "]
["KAIL          KAILUA-KONA HI                 ",null,null,null,"431D ",null,null,"MARY GUINAN  "]
["KAIS          KAISERLAUTERN GERMANY          ",null,null,null,"431E ",null,null,"MARY HANCOCK  "]
["KALA          KALAMAZOO MI                   ",null,null,null,"431F ",null,null,"MARY MILLS  "]
["KALI          KALISPELL  MT                  ",null,null,null,"431T ",null,null,"MARY VICUNA-HOWE  "]
["KAML          KAMLOOPS BC                    ",null,null,null,"431X ",null,null,"MARY WAHL  "]
["KAMP          KAMPALA UGANDA                 ",null,null,null,"4322 ",null,null,"MARY WILLIAM  "]
["KAMU          KAMUELA HAWAII                 ",null,null,null,"4323 ",null,null,"MARY WILLIAMS  "]
["KANA          KANSAS CITY KS                 ",null,null,null,"4324 ",null,null,"MARYANN BORGESEN  "]
["KANB          KANAB UT                       ",null,null,null,"4325 ",null,null,"MARYANN BORGESON  "]
["KANC          KANCHATSKY, RUSSIA             ",null,null,null,"4326 ",null,null,"MARYKAY ORGIL  "]
["KAND          KANDY SRI LANKA                ",null,null,null,"432E ",null,null,"MARYKAY ORGILL  "]
["KANE          KANEOHE OAHU HAWAII            ",null,null,null,"432W ",null,null,"MASARU TERAMOTO  "]
["KANI          KANSAI JAPAN                   ",null,null,null,"4330 ",null,null,"MATT GYGER  "]
["KANS          KANSAS CITY MO                 ",null,null,null,"4338 ",null,null,"MATT MULDOON  "]
["KAOH          KAOHSIUNG TAIWAN               ",null,null,null,"433A ",null,null,"MATT STOCK  "]
["KAPA          KAPAA KAUAI HAWAII             ",null,null,null,"433B ",null,null,"MATT THATCHER  "]
["KAPL          KAPALUA MAUI HAWAII            ",null,null,null,"433B ",null,null,"MATT TINCANI  "]
["KARL          KARLSUHE GERMANY               ",null,null,null,"433C ",null,null,"MATTHEW CUTLER  "]
["KATH          KATHERINES LANDING AZ          ",null,null,null,"433D ",null,null,"MATTHEW GYGER  "]
["KAUA          KAUAI HI                       ",null,null,null,"433E ",null,null,"MATTHEW LACHNIET  "]
["KEAR          KEARNEY NE                     ",null,null,null,"433F ",null,null,"MAURICE FINOCCHIARO  "]
["KEEL          KEELER CA                      ",null,null,null,"433G ",null,null,"MEGAN BECKER-LECKRONE  "]
["KEEN          KEENE NH                       ",null,null,null,"433H ",null,null,"MEGAN HUTSELL  "]
["KELO          KELOWNA BC CANADA              ",null,null,null,"433J ",null,null,"MEHMET ERDEM  "]
["KELS          KELSO CA                       ",null,null,null,"433K ",null,null,"MEHRAN TAMADONFAR  "]
["KENE          KENNEBUNKPORT MAINE            ",null,null,null,"433L ",null,null,"MEI YANG  "]
["KENN          KENNER LA                      ",null,null,null,"433M ",null,null,"MELANIE HAGEN  "]
["KENT          KENT OH                        ",null,null,null,"433N ",null,null,"MELISSA CLOSEK  "]
["KERN          KERNVILLE  CA                  ",null,null,null,"4341 ",null,null,"MELISSA NICHOLS  "]
["KERR          KERN RIVER CA                  ",null,null,null,"4342 ",null,null,"MELVA THOMPSON ROBINSON  "]
["KETC          KETCHIKAN ALASKA               ",null,null,null,"4346 ",null,null,"MELVA THOMPSON-ROBINSON  "]
["KETT          KETTLEMAN CA                   ",null,null,null,"4352 ",null,null,"MELVA THOMPSON-ROBIONSON  "]
["KEYS          KEYSTONE CO                    ",null,null,null,"4353 ",null,null,"MELVIN JAMESON  "]
["KEYW          KEY WEST  FL                   ",null,null,null,"4359 ",null,null,"MICHAEL BIESIADA  "]
["KHAR          KHARAGPUR INDIA                ",null,null,null,"4360 ",null,null,"MICHAEL BOWER  "]
["KHON          KHON KAEN THAILAND             ",null,null,null,"4362 ",null,null,"MICHAEL BOWERS  "]
["KIAW          KIAWAH SC                      ",null,null,null,"4391 ",null,null,"MICHAEL D KROELINGER  "]
["KIEL          KIEL GERMANY                   ",null,null,null,"4394 ",null,null,"MICHAEL H EADES  "]
["KIEV          KIEV UKRAINE                   ",null,null,null,"4399 ",null,null,"MICHAEL HALL  "]
["KIHE          KIHEI MAUI HAWAII              ",null,null,null,"43AQ ",null,null,"MICHAEL HAMMER  "]
["KILI          KILIMANJARO, TANZANIA          ",null,null,null,"4400 ",null,null,"MICHAEL HAMRICK  "]
["KILL          KILLEEN TX                     ",null,null,null,"4405 ",null,null,"MICHAEL LATOUR  "]
["KIMB          KIMBERELY SOUTH AFRICA         ",null,null,null,"4408 ",null,null,"MICHAEL LAWRENCE  "]
["KINB          KINGS BEACH CA                 ",null,null,null,"4418 ",null,null,"MICHAEL MARCOZZI  "]
["KING          KINGMAN AZ                     ",null,null,null,"4421 ",null,null,"MICHAEL MCCOLLUM  "]
["KINO          KINGSTON NY                    ",null,null,null,"4424 ",null,null,"MICHAEL MURRAY  "]
["KINP          KINGS PORT TN                  ",null,null,null,"442A ",null,null,"MICHAEL NICHOLL  "]
["KINS          KINGSTON JAMAICA               ",null,null,null,"442B ",null,null,"MICHAEL PRAVICA  "]
["KINT          KINGSTON CANADA                ",null,null,null,"442C ",null,null,"MICHAEL SAUER  "]
["KIOP          KING OF PRUSSIA PA             ",null,null,null,"442E ",null,null,"MICHAEL STITT  "]
["KIRD          KIRKWOOD, DE                   ",null,null,null,"442G ",null,null,"MICHAEL WELLS  "]
["KIRE          KIRKENES NORWAY                ",null,null,null,"442H ",null,null,"MICHEAL SAUER  "]
["KIRK          KIRKWOOD MO                    ",null,null,null,"442J ",null,null,"MICHELE CLARK  "]
["KISS          KISSIMMEE  FL                  ",null,null,null,"442K ",null,null,"MICHELE KRAUS  "]
["KITA          KITAMI JAPAN                   ",null,null,null,"442M ",null,null,"MICHELLE BAKER  "]
["KITT          KITT PEAK  AZ                  ",null,null,null,"4433 ",null,null,"MICHELLE CARRO  "]
["KLAA          KLAMATH MTNS CA                ",null,null,null,"4435 ",null,null,"MICHELLE CHINO  "]
["KLAM          KLAMATH FALLS OR               ",null,null,null,"4437 ",null,null,"MICHELLE ELEKONICH  "]
["KNOX          KNOXVILLE TN                   ",null,null,null,"443B ",null,null,"MICHELLE OLEKONICH  "]
["KOBE          KOBE JAPAN                     ",null,null,null,"443C ",null,null,"MICHELLE ROBINETTE  "]
["KOCH          KOCHI JAPAN                    ",null,null,null,"443G ",null,null,"MICHELLE TANNOCK  "]
["KODI          KODIAK AK                      ",null,null,null,"443H ",null,null,"MICHELLE TUSAN  "]
["KOHA          KOHALA COAST, HI               ",null,null,null,"443K ",null,null,"MIKE HAMRICK  "]
["KOKO          KOKOMO IN                      ",null,null,null,"443L ",null,null,"MIKE SAUER  "]
["KOLK          KOLKATA INDIA                  ",null,null,null,"443M ",null,null,"MILDRED MCCLAIN  "]
["KOLO          KOLOA KAUAI HAWAII             ",null,null,null,"443N ",null,null,"MIMI WOLVERTON  "]
["KONA          KONA HI                        ",null,null,null,"444A ",null,null,"MOHAMADALI SHARBATMALEKI  "]
["KONS          KONSTANZ GERMANY               ",null,null,null,"4451 ",null,null,"MOHAMED KASEKO  "]
["KORE          KOREA                          ",null,null,null,"4452 ",null,null,"MOHAMED TRABIA  "]
["KOTZ          KOTZENVE AK                    ",null,null,null,"4453 ",null,null,"MOHAMMAD ISLAM  "]
["KRAC          KRACOW POLAND                  ",null,null,null,"4454 ",null,null,"MOHAMMED ABDEL-AL  "]
["KRAK          KRAKOW POLAND                  ",null,null,null,"4455 ",null,null,"MOLLY MICHELMAN  "]
["KRAL          KRALENDIJK NETHERLANDS ANTILLE ",null,null,null,"4456 ",null,null,"MONICA BEISECKER  "]
["KRAM          KRAMER JUNCTION CA             ",null,null,null,"4459 ",null,null,"MONICA LOUNSBERY  "]
["KUAL          KUALA LUMPUR MALAYSIA          ",null,null,null,"4462 ",null,null,"MONICA MCNEELY  "]
["KUMA          KUMAMOTO JAPAN                 ",null,null,null,"4465 ",null,null,"MONICA MORADKHAN (2 OF SIGNATURES 2  "]
["KUMM          KUMMING CHINA                  ",null,null,null,"4468 ",null,null,"MONICA MORENO  "]
["KUSA          KUSADASI TURKEY                ",null,null,null,"4469 ",null,null,"MONIKA NEDA  "]
["KYEO          KYEONG NAM KOREA               ",null,null,null,"446A ",null,null,"MOSES KARAKOUZIAN  "]
["KYLE          KYLE CANYON NV                 ",null,null,null,"446B ",null,null,"MUKUND DANGETI  "]
["KYOT          KYOTO JAPAN                    ",null,null,null,"446P ",null,null,"MYRLENE LAMANCUSA  "]
["LACA          LACANAU FRANCE                 ",null,null,null,"446T ",null,null,"NADER GHAFFORI  "]
["LACE          LACEY WA                       ",null,null,null,"446W ",null,null,"NADER GHAFOORI  "]
["LACI          LA CIEBA HONDURAS              ",null,null,null,"4470 ",null,null,"NAKIA JACKSON-HALE"]
["LACR          LACROSSE WI                    ",null,null,null,"4471 ",null,null,"NANCY FLAGG  "]
["LACS          LA CRESCENTA CA                ",null,null,null,"4472 ",null,null,"NANCY MENZEL  "]
["LAFA          LAFAYETTE  IN                  ",null,null,null,"4477 ",null,null,"NANCY OSTROM  "]
["LAFY          LAFAYETTE LA                   ",null,null,null,"447A ",null,null,"NANCY SILEO  "]
["LAGH          LAGUNA HILLS CA                ",null,null,null,"447B ",null,null,"NANCY STROUSE  "]
["LAGN          LAGUNA NIGUEL CA               ",null,null,null,"4480 ",null,null,"NANCY YORK  "]
["LAGU          LAGUNA BEACH CA                ",null,null,null,"4481 ",null,null,"NASER DANESHVARY  "]
["LAHA          LAHAINA MAUI                   ",null,null,null,"4485 ",null,null,"NASSER DANESHVARY  "]
["LAIE          LAIE HI                        ",null,null,null,"448A ",null,null,"NATALIE BINDER  "]
["LAJO          LA JOLLA CA                    ",null,null,null,"4492 ",null,null,"NATE BYNUM  "]
["LAKA          LAKE O'HARA CANADA             ",null,null,null,"4496 ",null,null,"NATHAN HANKE  "]
["LAKB          LAKE BUENA VISTA FL            ",null,null,null,"4497 ",null,null,"NEAL SMATRASK  "]
["LAKC          LAKE CHARLES  LA               ",null,null,null,"449E ",null,null,"NEAL SMATRESK  "]
["LAKD          LAKESIDE CA                    ",null,null,null,"449G ",null,null,"NEAL STRUDLER  "]
["LAKE          LAKE TAHOE NV                  ",null,null,null,"4501 ",null,null,"NEIL OPFER  "]
["LAKF          LAKE FOREST IL                 ",null,null,null,"454A ",null,null,"NICOLAS HORCASITAS  "]
["LAKG          LAKE LAS VEGAS NV              ",null,null,null,"454B ",null,null,"NORM BEDFORD  "]
["LAKH          LAKE HAVASU AZ                 ",null,null,null,"4590 ",null,null,"NURULAIN KAUSAR  "]
["LAKI          LAKEVIEW OR                    ",null,null,null,"4651 ",null,null,"OLIVER HEMMERS  "]
["LAKL          LAKE PLACID NY                 ",null,null,null,"4652 ",null,null,"OLIVER TSCHAUNER  "]
["LAKM          LAKE MEAD  NV                  ",null,null,null,"4654 ",null,null,"OSRA O'NEAL  "]
["LAKN          LAKE CONSTANCE, GERMANY        ",null,null,null,"4655 ",null,null,"PAMELA BURNLEY  "]
["LAKO          LAKE MOHAVE NV                 ",null,null,null,"4657 ",null,null,"PAMELA GALLINA  "]
["LAKP          LAKE POWELL  UT                ",null,null,null,"4658 ",null,null,"PAMELA GALLION  "]
["LAKR          LAKE ARROWHEAD                 ",null,null,null,"4659 ",null,null,"PAMELA HICKS  "]
["LAKS          LAKE OSWEGO  OR                ",null,null,null,"4663 ",null,null,"PAMELA HICKSR  "]
["LAKT          LAKE TAHOE CA                  ",null,null,null,"4666 ",null,null,"PAMELA JERNIGAN  "]
["LAKV          LAKEVIEW CA                    ",null,null,null,"4669 ",null,null,"PAMELA LICERALDE  "]
["LAKW          LAKEWOOD CO                    ",null,null,null,"466C ",null,null,"PAMELA SALAZAR  "]
["LAKY          LAKE HARMONY PA                ",null,null,null,"466F ",null,null,"PAMELA SAMUOLIS  "]
["LAMI          LA MIRADA CA                   ",null,null,null,"466H ",null,null,"PANSY MC DOWELL  "]
["LANC          LANCASTER CA                   ",null,null,null,"466J ",null,null,"PAT LA PUTT  "]
["LANS          LANSING MI                     ",null,null,null,"466K ",null,null,"PAT MERL"]
["LAPA          LA PALMA CA                    ",null,null,null,"4671 ",null,null,"PATRICA BRAY-WARD  "]
["LAPL          LA PLAYA MEXICO                ",null,null,null,"4672 ",null,null,"PATRICE HOLLRAH  "]
["LAPO          LA POPA MEXICO                 ",null,null,null,"4681 ",null,null,"PATRICIA BALDWIN  "]
["LAPP          LA PAPA MEXICO                 ",null,null,null,"4682 ",null,null,"PATRICIA BIGHEM  "]
["LAPU          LA PUENTE, CA                  ",null,null,null,"4684 ",null,null,"PATRICIA CRUZ  "]
["LAPZ          LA PAZ MEXICO                  ",null,null,null,"4687 ",null,null,"PATRICIA HUNT  "]
["LAQU          LAQUINTA CA                    ",null,null,null,"468A ",null,null,"PATRICIA IANNUZZI  "]
["LARA          LARAMIE, WY                    ",null,null,null,"468B ",null,null,"PATRICIA LOOSBROOCK  "]
["LARE          LAREDO TX                      ",null,null,null,"4697 ",null,null,"PATRICIA MARMUROWSKI  "]
["LARN          LARNACA CYPRUS                 ",null,null,null,"4702 ",null,null,"PATRICIA PABLO  "]
["LASC          LAS CRUCES NM                  ",null,null,null,"4703 ",null,null,"PATRICIA PAVIET-HARTMANN  "]
["LASE          LA SERENA CHILI                ",null,null,null,"4704 ",null,null,"PATRICIA SUSKE  "]
["LASG          LAS VEGAS NM                   ",null,null,null,"4709 ",null,null,"PATRICK APFEL  "]
["LASI          LLA SILLA,  CHILE              ",null,null,null,"471B ",null,null,"PATRICK CARLTON  "]
["LASO          LAS CROABAS PUERTO RICO        ",null,null,null,"471C ",null,null,"PATRICK MCTEE  "]
["LASR          LASI ROMANIA                   ",null,null,null,"471D ",null,null,"PATRICK MOREO  "]
["LATH          LATHAM NY                      ",null,null,null,"471E ",null,null,"PATTI CHANCE  "]
["LATR          LATROBE PA                     ",null,null,null,"471H ",null,null,"PATTI J SHOCK  "]
["LATU          LA THUILE, ITALY               ",null,null,null,"471J ",null,null,"PATTI SHOCK  "]
["LAUG          LAUGHLIN NV                    ",null,null,null,"471K ",null,null,"PATTIE BALDWIN  "]
["LAUS          LAUSANNE SWITERLAND            ",null,null,null,"4731 ",null,null,"PATTY RICE  "]
["LAUT          LAUTOKA FIJI ISLANDS           ",null,null,null,"4733 ",null,null,"PAUL FORSTER  "]
["LAVE          LA VERNA CA                    ",null,null,null,"4734 ",null,null,"PAUL JARLEY  "]
["LAVR          LA VERKIN  UT                  ",null,null,null,"4736 ",null,null,"PAUL JONES  "]
["LAWE          LATHROP WELLS, NV              ",null,null,null,"4739 ",null,null,"PAUL KOPCZAK  "]
["LAWG          LAWRENCEVILLE, GA              ",null,null,null,"473F ",null,null,"PAUL KURZYNOWSKI  "]
["LAWR          LAWRENCE KS                    ",null,null,null,"473G ",null,null,"PAUL THISTLE  "]
["LAYT          LAYTON, UTAH                   ",null,null,null,"473M ",null,null,"PAUL WERTH  "]
["LEAD          LEADVILLE CO                   ",null,null,null,"473P ",null,null,"PAULA CASTILLO  "]
["LEBA          LEBANNON  NH                   ",null,null,null,"4740 ",null,null,"PAULA GONZALES  "]
["LECA          LECANTO FL                     ",null,null,null,"4741 ",null,null,"PAULA JACOBY-GARRETT  "]
["LEDY          LEDYARD CT                     ",null,null,null,"4742 ",null,null,"PAULETTE CONRAD  "]
["LEEC          LEE CANYON NV                  ",null,null,null,"4743 ",null,null,"PAULETTE R TANDY  "]
["LEED          LEEDS ENGLAND                  ",null,null,null,"4744 ",null,null,"PAULETTE TANDY  "]
["LEES          LEESBURG, VA                   ",null,null,null,"4748 ",null,null,"PEARL BREWER  "]
["LEEV          LEE VINING CA                  ",null,null,null,"4749 ",null,null,"PENGTAO SUN  "]
["LEID          LEIDEN NETHERLANDS             ",null,null,null,"474C ",null,null,"PENNY AMY  "]
["LEIP          LEIPZIG GERMANY                ",null,null,null,"474J ",null,null,"PERCY POON  "]
["LEMN          LEMNOS GREECE                  ",null,null,null,"474K ",null,null,"PETER GRAY  "]
["LESA          LES ARCS FRANCE                ",null,null,null,"474M ",null,null,"PETER HURLEY  "]
["LETH          LETHBRIDGE ALBERTA CANADA      ",null,null,null,"474N ",null,null,"PETER J.S. SHIUE  "]
["LEUV          LEUVEN BELGIUM                 ",null,null,null,"474P ",null,null,"PETER JAU-SHYONG SHIUE  "]
["LEWB          LEWISBURG WV",null,null,null,"474Q ",null,null,"PETER L STARKWEATHER  "]
["LEWI          LEWISTON ID                    ",null,null,null,"4756 ",null,null,"PETER MICHEL  "]
["LEWS          LEWISTON ME                    ",null,null,null,"4758 ",null,null,"PETER SHIUE  "]
["LEWV          LEWISVILLE TX                  ",null,null,null,"475H ",null,null,"PETER STARKWEATHER  "]
["LEXI          LEXINGTON KY                   ",null,null,null,"475R ",null,null,"PETER STUBBARD  "]
["LEYS          LEYSIN SWITZERLAND             ",null,null,null,"475Y ",null,null,"PETER STUBBERUD  "]
["LIEG          LIEGE BELGIUM                  ",null,null,null,"4765 ",null,null,"PHIL SHEALY  "]
["LIHU          LIHUE HI                       ",null,null,null,"477C ",null,null,"PHILLIP BURNS  "]
["LILL          LILLE FRANCE                   ",null,null,null,"4781 ",null,null,"PHILLIP PATTON  "]
["LIMA          LIMA PERU                      ",null,null,null,"4782 ",null,null,"PIRRO DOLLANI  "]
["LIME          LIMERICK IRELAND               ",null,null,null,"4783 ",null,null,"PORTER TROUTMAN  "]
["LINC          LINCOLN NE                     ",null,null,null,"4788 ",null,null,"PRADIP BHOWMIK  "]
["LIND          LINDAU GERMANY                 ",null,null,null,"478C ",null,null,"PRADIP K BHOWMIK  "]
["LINL          LINCOLN NEW ZEALAND            ",null,null,null,"478G ",null,null,"PRESIDENT  "]
["LINO          LINCOLN COUNTY NV              ",null,null,null,"4797 ",null,null,"PRESIDENT ELECT  "]
["LISB          LISBON PORTUGAL                ",null,null,null,"479C ",null,null,"PUSHKIN KACHROO  "]
["LITL          LITTLEFIELD AZ                 ",null,null,null,"479H ",null,null,"R KEITH SCHWER  "]
["LITT          LITTLE ROCK AR                 ",null,null,null,"479J ",null,null,"R. KEITH SCHWER  "]
["LIVE          LIVERMORE CA                   ",null,null,null,"479N ",null,null,"RAFAL BARGIEL  "]
["LIVP          LIVERPOOL ENGLAND              ",null,null,null,"479P ",null,null,"RALF SUDOWE  "]
["LJUB          LJUBLIJANA SLOVENIA            ",null,null,null,"479Q ",null,null,"RALPH BUECHLER  "]
["LKGN          LAKE GENEVA, WI                ",null,null,null,"47AA ",null,null,"RALPH REYNOLDS  "]
["LODZ          LODZ POLAND                    ",null,null,null,"47AB ",null,null,"RAMA VENKAT  "]
["LOGA          LOGAN UT                       ",null,null,null,"47BN ",null,null,"RAMONA BRINSON  "]
["LOGN          LOGANDALE NV                   ",null,null,null,"47BP ",null,null,"RAMONA DENBY  "]
["LOMA          LOMA LINDA, CA                 ",null,null,null,"47BW ",null,null,"RAMONA DENBY BRINSON  "]
["LOMP          LOMPOC CA                      ",null,null,null,"47CM ",null,null,"RAMONA DENBY-BRINSON  "]
["LONB          LONG BRANCH NJ                 ",null,null,null,"47DN ",null,null,"RANDAL HALE  "]
["LOND          LONDON ENGLAND                 ",null,null,null,"47DP ",null,null,"RANDALL BOONE  "]
["LONE          LONE PINE CA                   ",null,null,null,"47DQ ",null,null,"RANDALL MCCRILLIS  "]
["LONG          LONG BEACH CA                  ",null,null,null,"47DR ",null,null,"RAVHI KUMAR  "]
["LONI          LONG ISLAND NY                 ",null,null,null,"4806 ",null,null,"RAY KEELER  "]
["LONM          LONGMONT CO                    ",null,null,null,"4808 ",null,null,"RAYMOND KEELER  "]
["LONO          LONDON ONTARIO CANADA          ",null,null,null,"4819 ",null,null,"RAYMOND SCHWER  "]
["LONV          LONGVIEW TX                    ",null,null,null,"481F ",null,null,"REBECCA BOULTON  "]
["LORD          LORDSBURG NM                   ",null,null,null,"481X ",null,null,"REBECCA MILLS  "]
["LOSA          LOS ANGELES CA                 ",null,null,null,"4827 ",null,null,"REBECCA NATHANSON  "]
["LOSC          LOST CABIN WASH AZ             ",null,null,null,"482F ",null,null,"REETA SINHA  "]
["LOSL          LOS ALAMOS NM                  ",null,null,null,"482G ",null,null,"RENNAE DANESHVARY  "]
["LOSM          LOS ALAMITOS CA                ",null,null,null,"482H ",null,null,"REZA TORKZADEH  "]
["LOST          LOS ALTOS  CA                  ",null,null,null,"482J ",null,null,"RHETT VERTREES  "]
["LOUI          LOUISVILLE KY                  ",null,null,null,"482K ",null,null,"RHODA CHINAULT  "]
["LOVE          LOVELOCK  NV                   ",null,null,null,"4845 ",null,null,"RHONDA CHINAULT  "]
["LPBL          LA PAZ, BOLIVIA                ",null,null,null,"4851 ",null,null,"RHONDA SNOOK  "]
["LUBB          LUBBOCK TX                     ",null,null,null,"4852 ",null,null,"RICHARD AREND  "]
["LUCC          LUCCA, ITALY                   ",null,null,null,"4855 ",null,null,"RICHARD BLAIR  "]
["LUCE          LUCERNE VALLEY CA              ",null,null,null,"4856 ",null,null,"RICHARD C LEE  "]
["LUCK          LUCKY STRIKE CANYON NV         ",null,null,null,"4858 ",null,null,"RICHARD C LINSTROM  "]
["LUCR          LUCERNE SWITZERLAND            ",null,null,null,"485B ",null,null,"RICHARD CLARK  "]
["LUDL          LUDLOW ENGLAND                 ",null,null,null,"485F ",null,null,"RICHARD D TANDY  "]
["LUEB          LUEBECK GERMANY                ",null,null,null,"485G ",null,null,"RICHARD HOYT  "]
["LUGA          LUGANO SWITZERLAND             ",null,null,null,"485K ",null,null,"RICHARD LAPIDUS  "]
["LULE          LULEA SWEDEN                   ",null,null,null,"485P ",null,null,"RICHARD LEE  "]
["LUNA          LUNAR CRATER NM                ",null,null,null,"485Q ",null,null,"RICHARD LINSTROM  "]
["LUND          LUND NV                        ",null,null,null,"485R ",null,null,"RICHARD MCCORKLE  "]
["LUNE          LUNEBERG GERMANY               ",null,null,null,"485T ",null,null,"RICHARD N BLAIR JR  "]
["LUQU          LUQUILLO PUERTO RICO           ",null,null,null,"485X ",null,null,"RICHARD S LAPIDUS  "]
["LUSA          LUSANNE, SWITZERLAND           ",null,null,null,"485Y ",null,null,"RICHARD STORLIE  "]
["LUXE          LUXEMBOURG LUXEMBOURG          ",null,null,null,"4862 ",null,null,"RICHARD TANDY  "]
["LYNC          LYNCHBURG VA                   ",null,null,null,"486D ",null,null,"RICHARD WILEY  "]
["LYND          LYNDHURST UK                   ",null,null,null,"486F ",null,null,"RICHRD LAPIDUS  "]
["LYNN          LYNN UT                        ",null,null,null,"486G ",null,null,"RICK SHUKIS  "]
["LYNW          LYNWOOD CA                     ",null,null,null,"486H ",null,null,"RICK STORLIE  "]
["LYON          LYON FRANCE                    ",null,null,null,"486J ",null,null,"RIMI MARWAH  "]
["MAAS          MAASTRICHT, NETHERLANDS        ",null,null,null,"4880 ",null,null,"RITA M PENNY  "]
["MACA          MACAU, CHINA                   ",null,null,null,"488A ",null,null,"RITA PENNY  "]
["MACO          MACON, GA                      ",null,null,null,"488B ",null,null,"ROBERT A SCHILL  "]
["MADA          MADRAS INDIA                   ",null,null,null,"4894 ",null,null,"ROBERT AALBERTS  "]
["MADE          MADERA CA                      ",null,null,null,"4903 ",null,null,"ROBERT ABELLA  "]
["MADI          MADISON WI                     ",null,null,null,"4927 ",null,null,"ROBERT ACKERMAN  "]
["MADR          MADRID  SPAIN                  ",null,null,null,"4937 ",null,null,"ROBERT BOEHM  "]
["MAIN          MAINZ GERMANY                  ",null,null,null,"4942 ",null,null,"ROBERT BREWER  "]
["MALA          MALAWI AFRICA                  ",null,null,null,"4946 ",null,null,"ROBERT C MAXSON  "]
["MALG          MALAGA SPAIN                   ",null,null,null,"4951 ",null,null,"ROBERT CHATFIELD  "]
["MALI          MALIBU CA                      ",null,null,null,"4952 ",null,null,"ROBERT DORGAN  "]
["MALM          MALMO SWEDEN                   ",null,null,null,"4954 ",null,null,"ROBERT F BOEHM  "]
["MALT          MALTA, MALTA                   ",null,null,null,"4955 ",null,null,"ROBERT FUTRELL  "]
["MALV          MALVERN PA                     ",null,null,null,"4956 ",null,null,"ROBERT L ACKERMAN  "]
["MAMM          MAMMOUTH LAKES CA              ",null,null,null,"4973 ",null,null,"ROBERT LYNN  "]
["MANA          MANHATTAN NV                   ",null,null,null,"4976 ",null,null,"ROBERT MCCORD  "]
["MANB          MANHATTAN BEACH CA             ",null,null,null,"4977 ",null,null,"ROBERT O'BRIEN  "]
["MANC          MANCHESTER NH                  ",null,null,null,"4979 ",null,null,"ROBERT S SCHILL  "]
["MANE          MANCHESTER ENGLAND             ",null,null,null,"497B ",null,null,"ROBERT SCHILL  "]
["MANG          MANAGUA NICARAQUA              ",null,null,null,"497E ",null,null,"ROBERT SCHILL JR  "]
["MANH          MANHATTAN KS                   ",null,null,null,"497F ",null,null,"ROBERTA BARNES WEBB  "]
["MANI          MANILA PHILIPPINES             ",null,null,null,"4983 ",null,null,"ROBIN TOLES  "]
["MANK          MANKATO, MN                    ",null,null,null,"4985 ",null,null,"ROBYN HADDEN  "]
["MANO          MANOA HAWAII                   ",null,null,null,"4986 ",null,null,"ROCHELLE ATHEY  "]
["MANS          MANASSAS VA                    ",null,null,null,"498R ",null,null,"ROCHELLE BOYD  "]
["MANZ          MANZANILLO MEXICO              ",null,null,null,"4995 ",null,null,"ROCKY RUTLEDGE"]
["MARA          MARIANNA FL                    ",null,null,null,"4997 ",null,null,"RODNEY METCALF  "]
["MARB          MARBURG, GERMANY               ",null,null,null,"4998 ",null,null,"RODNEY V METCALF  "]
["MARC          MARCO ISLAND FL                ",null,null,null,"499P ",null,null,"ROGER RENNELS  "]
["MARD          MARKDORF GERMANY               ",null,null,null,"49AN ",null,null,"ROMONA BRINSON  "]
["MARE          MARSEILLE FRANCE               ",null,null,null,"49AT ",null,null,"RON SMITH  "]
["MARG          MARGARET RIVER AUSTRALIA       ",null,null,null,"49CA ",null,null,"RONALD E YASBIN  "]
["MARI          MARINA DEL RAY CA              ",null,null,null,"49CD ",null,null,"RONALD GARY  "]
["MARK          MARKAQAUNT PLATEAU UT          ",null,null,null,"49CH ",null,null,"RONALD SMITH  "]
["MARO          MARION IL                      ",null,null,null,"49DH ",null,null,"RONALD W SMITH  "]
["MARQ          MARQUETTE MI                   ",null,null,null,"49DN ",null,null,"RONALD YASBIN  "]
["MARR          MARRAKESH, MOROCCO             ",null,null,null,"49ET ",null,null,"ROSALIE GARCIA  "]
["MARS          MARSHALL CA                    ",null,null,null,"49FB ",null,null,"ROSEMARY WITT  "]
["MART          MARATEA ITALY                  ",null,null,null,"49FE ",null,null,"ROY OGAWA  "]
["MARU          MARCOULE FRANCE                ",null,null,null,"49FF ",null,null,"RUBY BYNUM  "]
["MARY          MARYSVILLE CA                  ",null,null,null,"49FX ",null,null,"RUBY FOWLER  "]
["MATA          MATARAM INDONESIA              ",null,null,null,"49GE ",null,null,"RYAN LARSEN  "]
["MATT          MATTHEWS NC                    ",null,null,null,"49GH ",null,null,"RYCHELLE TOMLIN  "]
["MATU          MATURIN, VENEZUELA             ",null,null,null,"49GR ",null,null,"S CHARUSHEELA  "]
["MAUI          MAUI HI                        ",null,null,null,"49HB ",null,null,"SABRINA SCHUEBBE  "]
["MAXW          MAXWELL AFB  AL                ",null,null,null,"49JA ",null,null,"SAHJENDRA N SINGH  "]
["MCAL          MCALLEN TX                     ",null,null,null,"49JE ",null,null,"SAHJENDRA SINGH  "]
["MCDE          MCDERMITT NV                   ",null,null,null,"49JF ",null,null,"SAJJAD AHMAD  "]
["MCGI          MCGILL NV                      ",null,null,null,"49JM ",null,null,"SALLEY SAWYER  "]
["MCLE          MCLEAN VA                      ",null,null,null,"49JW ",null,null,"SALLY A HAMILTON  "]
["MCMU          MCMURDO SOUND ANTARCTICA       ",null,null,null,"49KD ",null,null,"SALLY HAMILTON  "]
["MCQU          MCQUEEN NV                     ",null,null,null,"49KE ",null,null,"SALLY MILLER  "]
["MEAD          MEADOW VALLEY NV               ",null,null,null,"49KF ",null,null,"SAMAAN G LADKANY  "]
["MEAV          MEADVIEW AZ                    ",null,null,null,"49KG ",null,null,"SAMAAN LADKANY  "]
["MEDF          MEDFORD OREGON                 ",null,null,null,"49KH ",null,null,"SAMIR MOUJAES  "]
["MELB          MELBOURNE AUSTRALIA            ",null,null,null,"5001 ",null,null,"SANDI SCHEIDERER  "]
["MELO          MELBOURNE FL                   ",null,null,null,"5003 ",null,null,"SANDRA D OWENS  "]
["MEMP          MEMPHIS TN                     ",null,null,null,"5007 ",null,null,"SANDRA GAJKOWSKI  "]
["MEND          MENDOZA, ARGENTINA             ",null,null,null,"500F ",null,null,"SANDRA ODELL  "]
["MENL          MENLO PARK CA                  ",null,null,null,"500Q ",null,null,"SANDRA OWENS-KANE  "]
["MERC          MERCURY NV                     ",null,null,null,"500T ",null,null,"SANDY ZIEGLER  "]
["MERD          MERIDA MEXICO                  ",null,null,null,"5012 ",null,null,"SARAH HRUSECKY  "]
["MERI          MERIDEN NH                     ",null,null,null,"501A ",null,null,"SATISH BHATNAGAR  "]
["MESA          MESA AZ                        ",null,null,null,"501C ",null,null,"SAUNDRA PRATT  "]
["MESQ          MESQUITE NV                    ",null,null,null,"501W ",null,null,"SAVANNAH BALTERA  "]
["META          METARIE LA                     ",null,null,null,"5020 ",null,null,"SCHYLER RICHARDS  "]
["MEXI          MEXICO CITY MEXICO             ",null,null,null,"5023 ",null,null,"SCOTT ABELLA  "]
["MIAI          MIAMI OH                       ",null,null,null,"502B ",null,null,"SCOTT LEWANDOWSKI  "]
["MIAM          MIAMI FL                       ",null,null,null,"503N ",null,null,"SCOTT LOE  "]
["MIDD          MIDDLEBURY,VERMONT",null,null,null,"504B ",null,null,"SCOTT NOWICKI  "]
["MIDL          MIDLAND TX                     ",null,null,null,"504N ",null,null,"SCOTT S. SMITH  "]
["MIDW          MIDWAY UT                      ",null,null,null,"504Y ",null,null,"SCOTT SMITH  "]
["MILA          MILAN  ITALY                   ",null,null,null,"5051 ",null,null,"SEAN CONNOLLY  "]
["MILB          MILLBRAE, CA                   ",null,null,null,"505B ",null,null,"SEAN HSIEH  "]
["MILF          MILFORD PA                     ",null,null,null,"505D ",null,null,"SEAN KAU  "]
["MILL          MILLARD CITY UT                ",null,null,null,"505G ",null,null,"SEAN MULCAHY  "]
["MILW          MILWAUKEE WI                   ",null,null,null,"505Q ",null,null,"SEAN NEISWENTER  "]
["MIMB          MIMBRES NM                     ",null,null,null,"505R ",null,null,"SECRETARY-ELECT  "]
["MIND          MINDEN NV                      ",null,null,null,"505Y ",null,null,"SEYHMUS BALOGLU  "]
["MINN          MINNEAPOLIS-ST PAUL MN         ",null,null,null,"5061 ",null,null,"SHAHRAM LATIFI  "]
["MINS          MINSK  BELARUS                 ",null,null,null,"5061 ",null,null,"SHAMIM BEGUM  "]
["MISC          USED BY DISB. ONLY             ",null,null,null,"506T ",null,null,"SHANNON CROZIER  "]
["MISI          MISSION HILLS CA               ",null,null,null,"506X ",null,null,"SHANNON SUMPTER  "]
["MISO          MISSOULA MT                    ",null,null,null,"5076 ",null,null,"SHARON ALTMAN  "]
["MISS          MISSION VIEJO CA               ",null,null,null,"507C ",null,null,"SHARON TROTTER  "]
["MIYA          MIYAZAKI JAPAN                 ",null,null,null,"507L ",null,null,"SHARON YOUNG  "]
["MNTE          MONTELLO NV                    ",null,null,null,"507X ",null,null,"SHARRIE MAYDEN  "]
["MOAB          MOAB UT                        ",null,null,null,"507Y ",null,null,"SHASHI NAMBISAN  "]
["MOAP          MOAPA VALLEY NV                ",null,null,null,"5084 ",null,null,"SHASHI S NAMBISAN  "]
["MOBI          MOBILE AL                      ",null,null,null,"5086 ",null,null,"SHAUN SEWELL  "]
["MODE          MODESTO CA                     ",null,null,null,"508B ",null,null,"SHAWN GERSTENBERGER  "]
["MOHA          MOHAVE AZ                      ",null,null,null,"508F ",null,null,"SHAWN GUSTENBERGER  "]
["MOHV          MOHAVE NATIONAL PRESERV CA     ",null,null,null,"508H ",null,null,"SHEILA GREGORY  "]
["MOJA          MOJAVE CA                      ",null,null,null,"508X ",null,null,"SHEILA STRIKE  "]
["MOLI          MOLINE IL                      ",null,null,null,"5095 ",null,null,"SHENG (MONICA) WANG  "]
["MONA          MONTAUK LONG ISLAND NY         ",null,null,null,"5097 ",null,null,"SHENIZ MOONIE  "]
["MONC          MONTE CARLO MONACO             ",null,null,null,"509G ",null,null,"SHERRI PAYNE  "]
["MONE          MONTREAUX  SWITZERLAND         ",null,null,null,"509P ",null,null,"SHERRI THERIAULT  "]
["MONG          MONTGOMERY AL                  ",null,null,null,"509Q ",null,null,"SHERRY EARLY  "]
["MONI          MONTPELIER VT                  ",null,null,null,"509T ",null,null,"SHERRY MARKS  "]
["MONK          MONO LAKE CA                   ",null,null,null,"509Y ",null,null,"SHIZHI QIAN  "]
["MONL          MONTALCINO ITALY               ",null,null,null,"50AA ",null,null,"SHIZHI QIAN (SEPERATED ON 6/30/08)  "]
["MONM          MONGOMERY TX                   ",null,null,null,"50AE ",null,null,"SKY HIEDA  "]
["MONN          MONCTON NB CANADA              ",null,null,null,"50AK ",null,null,"SONIA RANDOLPH  "]
["MONO          MONROE LA                      ",null,null,null,"50BK ",null,null,"SONIA TAYLOR  "]
["MONP          MONTPELLIER FRANCE             ",null,null,null,"50BW ",null,null,"SOOK HOLLINGSHEAD  "]
["MONR          MONTREAL CANADA                ",null,null,null,"50DE ",null,null,"SOPHIE PARISE  "]
["MONS          MONTROSE CO                    ",null,null,null,"50EA ",null,null,"SPENCER STEINBERG  "]
["MONT          MONTEREY CA                    ",null,null,null,"50EH ",null,null,"SRINIVAS PULUGURTHA  "]
["MONU          MONMOUTH OR                    ",null,null,null,"50EM ",null,null,"SRINIVAS S PULUGURTHA  "]
["MONV          MONVROVIA CA                   ",null,null,null,"50ET ",null,null,"STACEY HARDY-DESMOND  "]
["MONY          MONTEREY MEXICO                ",null,null,null,"50EX ",null,null,"STACY MANTOOTH  "]
["MON1          MONTCLAIR NJ                   ",null,null,null,"50EY ",null,null,"STACY RODRIGUES  "]
["MON2          MONTEGO BAY JAMAICA            ",null,null,null,"50FD ",null,null,"STAN HILLYARD  "]
["MON3          MONTEVIDEO, URUGUAY            ",null,null,null,"50FM ",null,null,"STAN SMITH  "]
["MOOR          MOORPARK CA                    ",null,null,null,"50GJ ",null,null,"STANLEY D CLOUD  "]
["MORA          MORAGA CA                      ",null,null,null,"50GM ",null,null,"STANLEY D HILLYARD  "]
["MORE          MORENO VALLEY CA               ",null,null,null,"50GQ ",null,null,"STANLEY HILLYARD  "]
["MORG          MORGANTOWN WV                  ",null,null,null,"50HC ",null,null,"STANLEY SMITH  "]
["MORL          MORELIA MEXICO                 ",null,null,null,"50HD ",null,null,"STEEN MADSEN  "]
["MORM          MORMON MESA NV                 ",null,null,null,"50HE ",null,null,"STEPHEN CARPER  "]
["MOSC          MOSCOW ID                      ",null,null,null,"50HF ",null,null,"STEPHEN FIFE  "]
["MOSE          MOSES LAKE  WA                 ",null,null,null,"50HJ ",null,null,"STEPHEN H LEPP  "]
["MOSO          MOSCOW RUSSIA                  ",null,null,null,"50HM ",null,null,"STEPHEN L RICE  "]
["MTBR          MOUNT BERRY, GA                ",null,null,null,"50HP ",null,null,"STEPHEN LEPP  "]
["MTCA          MT CARMEL UT                   ",null,null,null,"50HQ ",null,null,"STEPHEN M MILLER  "]
["MTCH          MT CHARLESTON NV               ",null,null,null,"50HW ",null,null,"STEPHEN MILLER  "]
["MTDE          MT DELLENBAUGH                 ",null,null,null,"50HX ",null,null,"STEPHEN RICE  "]
["MTHL          MT HOLYOKE MA                  ",null,null,null,"50JC ",null,null,"STEPHEN ROBERTS  "]
["MTHO          MT HOOD OR                     ",null,null,null,"50JG ",null,null,"STEPHEN ROWLAND  "]
["MTLA          MT LAGUNA  CA                  ",null,null,null,"50JH ",null,null,"STERLING SADDLER  "]
["MTLO          MT. LOGAN, AZ                  ",null,null,null,"50JJ ",null,null,"STEVE CURTIS  "]
["MTPA          MT PASS CA                     ",null,null,null,"50MD ",null,null,"STEVE DEBELLE  "]
["MTPE          MT PERKINS AZ                  ",null,null,null,"50MK ",null,null,"STEVE ROBERTS  "]
["MTPL          MT PLEASANT MI                 ",null,null,null,"50RF ",null,null,"STEVE STRAUB  "]
["MTRA          MT RAINER NATIONAL PARK        ",null,null,null,"50RK ",null,null,"STEVEN DE BELLE  "]
["MTTR          MT TRUMBULL AZ                 ",null,null,null,"50TC ",null,null,"STEVEN DEBELLE  "]
["MUDD          MUDDY MOUNTAINS NV             ",null,null,null,"50TK ",null,null,"STEVEN MAGLIO  "]
["MUMB          MUMBAI INDIA                   ",null,null,null,"50TP ",null,null,"STEVEN PHELAN  "]
["MUNC          MUNCIE IN                      ",null,null,null,"50WB ",null,null,"STORLIE RICHARD  "]
["MUNI          MUNICH  GERMANY                ",null,null,null,"50WC ",null,null,"STUART H MANN  "]
["MUNS          MUNSTER GERMANY                ",null,null,null,"50YA ",null,null,"STUART MANN  "]
["MUSC          MUSCANTEEN IA                  ",null,null,null,"50YC ",null,null,"STUART TENNANT  "]
["MUTE          MUT EQYPT                      ",null,null,null,"50YJ ",null,null,"SUE BRAUN  "]
["MYRT          MYRTLE BEACH SC                ",null,null,null,"50YK ",null,null,"SUE FAWN CHUNG  "]
["MYSI          MYSTIC LAKE MN                 ",null,null,null,"5101 ",null,null,"SUE SCHUERMAN  "]
["MYST          MYSTIC CT",null,null,null,"5103 ",null,null,"SUJI LEE  "]
["NADI          NADI FIJI                      ",null,null,null,"5105 ",null,null,"SUNA CURRY  "]
["NAGA          NAGASAKI JAPAN                 ",null,null,null,"5109 ",null,null,"SUNNY GITTENS  "]
["NAGO          NAGOYA JAPAN                   ",null,null,null,"5114 ",null,null,"SUNSHINE GITTENS  "]
["NAIR          NAIROBI AFRICA                 ",null,null,null,"5118 ",null,null,"SUSAN D'ANIELLO  "]
["NAMI          NAMIBIA, AFRICA                ",null,null,null,"5119 ",null,null,"SUSAN DONALDSON  "]
["NANC          NANCY FRANCE                   ",null,null,null,"511B ",null,null,"SUSAN HENDRICKS  "]
["NANJ          NANJING CHINA                  ",null,null,null,"511C ",null,null,"SUSAN KOWALSKI  "]
["NANT          NANTUCKET MA                   ",null,null,null,"511G ",null,null,"SUSAN M BOZARTH  "]
["NAPA          NAPA CA                        ",null,null,null,"511H ",null,null,"SUSAN M SCHILLER  "]
["NAPE          NAPERVILLE, IL                 ",null,null,null,"511J ",null,null,"SUSAN M THOMPSON  "]
["NAPL          NAPLES ITALY                   ",null,null,null,"511L ",null,null,"SUSAN M WILSON  "]
["NAPS          NAPLES,FL                      ",null,null,null,"511M ",null,null,"SUSAN MEACHAM  "]
["NARA          NARA JAPAN                     ",null,null,null,"511N ",null,null,"SUSAN MICHAEL  "]
["NASH          NASHVILLE TN                   ",null,null,null,"511P ",null,null,"SUSAN R MICHAEL  "]
["NASS          NASSAU BAHAMAS",null,null,null,"511Q ",null,null,"SUSAN SANDERS  "]
["NASU          NASHUA NH                      ",null,null,null,"511R ",null,null,"SUSAN SCHILLER  "]
["NATC          NATCHITOCHES LA                ",null,null,null,"5121 ",null,null,"SUSAN SILVERTON  "]
["NATI          NATIONAL HARBOR, MD",null,null,null,"5128 ",null,null,"SUSAN SUMMERS  "]
["NAVA          NAVAJO LAKE UT                 ",null,null,null,"5130 ",null,null,"SUSAN TACKSTROM  "]
["NEED          NEEDLES CA                     ",null,null,null,"5136 ",null,null,"SUSAN THOMPSON  "]
["NELL          NELLIS AFB NV                  ",null,null,null,"5139 ",null,null,"SUSANNA PRIEST  "]
["NELS          NELSON BC CANADA               ",null,null,null,"513A ",null,null,"SUSIE LAFRENTZ  "]
["NEPT          NEWPORT, RHODE ISLAND          ",null,null,null,"513B ",null,null,"SUZANNE BECKER  "]
["NEUC          NEUCHATEL SWITZERLAND          ",null,null,null,"5142 ",null,null,"SUZANNE ESPINOZA  "]
["NEUV          NEUVO SAN JUAN                 ",null,null,null,"5144 ",null,null,"SUZANNE LA VOPA  "]
["NEVA          NEVADA TEST SITE NV            ",null,null,null,"5151 ",null,null,"SUZANNE LAVOPA  "]
["NEWA          NEWARK NJ                      ",null,null,null,"5154 ",null,null,"SUZANNE SANDERS LAVOPA  "]
["NEWB          NEW BERN NC                    ",null,null,null,"5171 ",null,null,"SYBIL STRANO PERRY  "]
["NEWC          NEW CHATTEL SWITZERLAND        ",null,null,null,"5175 ",null,null,"SYBIL STRANO-PERRY  "]
["NEWD          NEW DELHI INDIA",null,null,null,"5180 ",null,null,"TAD MCDOWELL  "]
["NEWE          NEWARK DELAWARE                ",null,null,null,"5197 ",null,null,"TAKIYAH BECKETT  "]
["NEWH          NEW HAVEN  CT                  ",null,null,null,"5201 ",null,null,"TAO PANG  "]
["NEWK          NEW YORK MOUNTAINS CA          ",null,null,null,"5202 ",null,null,"TASCHA SPEARS  "]
["NEWL          NEW PALTZ NY                   ",null,null,null,"5204 ",null,null,"TED JELEN  "]
["NEWN          NEWTON MA                      ",null,null,null,"5205 ",null,null,"TEM SEDGWICK  "]
["NEWO          NEW ORLEANS LA                 ",null,null,null,"5209 ",null,null,"TEM SIDGWICK  "]
["NEWP          NEWPORT BEACH CA               ",null,null,null,"5210 ",null,null,"TERANCE D MIETHE  "]
["NEWR          NEWARK NY                      ",null,null,null,"5226 ",null,null,"TERANCE MIETHE  "]
["NEWS          NEW CASTLE UK                  ",null,null,null,"5227 ",null,null,"TERESA DONNELLY MAJOR  "]
["NEWT          NEWPORT VIRGINIA               ",null,null,null,"5228 ",null,null,"TERESA DONNELLY-MAJOR  "]
["NEWU          NEW BRUNSWICK  NJ              ",null,null,null,"5234 ",null,null,"TERESA DONNELY MAJOR  "]
["NEWY          NEW YORK NY                    ",null,null,null,"5235 ",null,null,"TERESA JORDAN  "]
["NEW1          NEW LONDON CT                  ",null,null,null,"5238 ",null,null,"TERESITA CONSTANCIO  "]
["NIAG          NIAGRA FALL CANADA             ",null,null,null,"5240 ",null,null,"TERESTA CONSTANCIO  "]
["NIAR          NIAGRA BY THE LAKE ONTARIO CAN",null,null,null,"5244 ",null,null,"TERRY ANN ELSE  "]
["NICE          NICE FRANCE                    ",null,null,null,"5248 ",null,null,"TERRY COTTLE  "]
["NICO          NICOSIA CYPRUS                 ",null,null,null,"5249 ",null,null,"TERRY D PIPER  "]
["NIIG          NIIGATA JAPAN                  ",null,null,null,"524A ",null,null,"TERRY H TERUYA  "]
["NIJM          NIJMEGEN NETHERLANDS           ",null,null,null,"524K ",null,null,"TERRY KOHLMEIER  "]
["NIPT          NIPTON CA                      ",null,null,null,"524N ",null,null,"TERRY MIETHE  "]
["NLAS          NORTH LAS VEGAS NV             ",null,null,null,"524T ",null,null,"TERRY P CULP  "]
["NOGA          NOGATA JAPAN                   ",null,null,null,"524W ",null,null,"TERRY PIPER  "]
["NOOR          NOORDWIJKERHOUT NETHERLANDS    ",null,null,null,"5251 ",null,null,"TERRY SPELL  "]
["NOPA          NOPAH RANGE CA                 ",null,null,null,"5253 ",null,null,"THERESE CHARLET  "]
["NORA          NORMAL IL                      ",null,null,null,"5255 ",null,null,"THERSE CHARLET  "]
["NORC          NORCO CA                       ",null,null,null,"5256 ",null,null,"THOMAS A NARTKER  "]
["NORF          NORFORK VA                     ",null,null,null,"5258 ",null,null,"THOMAS BEAN  "]
["NORH          NORTHFIELD MN                  ",null,null,null,"5259 ",null,null,"THOMAS BURKHOLDER  "]
["NORK          NORWALK CA                     ",null,null,null,"525A ",null,null,"THOMAS C PIECHOTA  "]
["NORL          NORWALK CT",null,null,null,"525E ",null,null,"THOMAS F REILLY  "]
["NORM          NORMAN  OK                     ",null,null,null,"525F ",null,null,"THOMAS HARTMANN  "]
["NORO          NORFOLK VA                     ",null,null,null,"525G ",null,null,"THOMAS JONES  "]
["NORP          NORTHHAMPTON MA                ",null,null,null,"525H ",null,null,"THOMAS L SEXTON  "]
["NORT          NORTHRIDGE CA                  ",null,null,null,"525M ",null,null,"THOMAS LAMATSCH  "]
["NORW          NORWICH ENGLAND                ",null,null,null,"525N ",null,null,"THOMAS NARTKER  "]
["NOR1          NORTH LAS VEGAS NV             ",null,null,null,"525T ",null,null,"THOMAS PIECHOTA  "]
["NOR2          NORTHERN NV                    ",null,null,null,"525W ",null,null,"THOMAS PIERCE  "]
["NOTE          NOTRE DAME FRANCE              ",null,null,null,"5263 ",null,null,"THOMAS R BURKHOLDER  "]
["NOTR          NOTRE DAME IN                  ",null,null,null,"5265 ",null,null,"THOMAS R BURKSOLDER  "]
["NOTT          NOTTINGHAM ENGLAND             ",null,null,null,"5268 ",null,null,"THOMAS SEXTON  "]
["NOVA          NOVA GORICA SLOVENIA           ",null,null,null,"526C ",null,null,"THOMAS WILLIAMS  "]
["NOVG          NOVGOROD, RUSSIA               ",null,null,null,"526D ",null,null,"TIM GAUTHIER  "]
["NOVI          NOVIGRAD, CROATIA              ",null,null,null,"526E ",null,null,"TIM ROBITZ  "]
["NOVO          NOVOSIBIRSK, RUSSIA            ",null,null,null,"526F ",null,null,"TIMOTHY FARNHAM  "]
["NTSA          NTS AREA 5 NV",null,null,null,"526H ",null,null,"TIMOTHY HART  "]
["NURE          NUREMBERG GERMANY              ",null,null,null,"526K ",null,null,"TIMOTHY JONES  "]
["NUUK          NUUK GREENLAND                 ",null,null,null,"526N ",null,null,"TINA SADDLER  "]
["NWTN          NEWTON SQUARE PA               ",null,null,null,"526P ",null,null,"TINI ARCADIPANE  "]
["NYEC          NYE COUNTY NV                  ",null,null,null,"526X ",null,null,"TISH SMYER  "]
["OAHU          OAHU HI                        ",null,null,null,"526Y ",null,null,"TODD JONES  "]
["OAKB          OAKBROOK IL                    ",null,null,null,"5270 ",null,null,"TOM BURKHOLDER  "]
["OAKH          OAKHURST CA                    ",null,null,null,"5271 ",null,null,"TOM FLAGG  "]
["OAKI          OAKRIDGE OR                    ",null,null,null,"5276 ",null,null,"TOM GABBARD  "]
["OAKL          OAKLAND CA                     ",null,null,null,"5277 ",null,null,"TOM NARTKER  "]
["OAKR          OAK RIDGE TN                   ",null,null,null,"5278 ",null,null,"TOM PIECHOTA  "]
["OAKY          OAKLEY ID                      ",null,null,null,"527D ",null,null,"TOM PIERCE  "]
["OARA          OARAI JAPAN                    ",null,null,null,"527E ",null,null,"TOM SEXTON  "]
["OAXA          OAXACA MEXICO                  ",null,null,null,"527F ",null,null,"TONI ARCADIPANE  "]
["OBNI          OBNINSK RUSSIA                 ",null,null,null,"5282 ",null,null,"TONI LEE  "]
["OCCI          OCCIENTAL CA",null,null,null,"5283 ",null,null,"TONY HENTHORNE  "]
["OCEA          OCEAN CITY MD                  ",null,null,null,"5286 ",null,null,"TONYA THOMAS  "]
["OCEN          OCEAN NJ                       ",null,null,null,"5287 ",null,null,"TONYA THOMAS (OBJ CODE 32 ONLY)  "]
["OCE2          OCEANSIDE CA                   ",null,null,null,"5292 ",null,null,"TRACY FISK  "]
["OCON          OCONEE SC                      ",null,null,null,"5293 ",null,null,"TREVOR WILCOX  "]
["ODEN          ODENSE DENMARK                 ",null,null,null,"5294 ",null,null,"TRINIDAD MORRA  "]
["ODES          ODESSA TX                      ",null,null,null,"5295 ",null,null,"TYE BROWN  "]
["OGDE          OGDEN UT                       ",null,null,null,"5299 ",null,null,"V P FINANCE  "]
["OGEN          ODGENSBURG NY                  ",null,null,null,"5301 ",null,null,"V.P. FINANCE  "]
["OJAI          OJAI CA                        ",null,null,null,"5303 ",null,null,"VAUNE KADLUBEK  "]
["OKLA          OKLAHOMA CITY OK               ",null,null,null,"5304 ",null,null,"VENCENT EADE  "]
["OLAT          OLATHE CO                      ",null,null,null,"5307 ",null,null,"VENHATESAN MUTHUKUMAS  "]
["OLDT          OLD TUCSON AZ                  ",null,null,null,"5309 ",null,null,"VENKATESAN MUTHUKUMAR  "]
["OLYM          OLYMPIA WA                     ",null,null,null,"530D ",null,null,"VEONA HUNSINGER  "]
["OLYP          OLYMPIC VALLEY CA              ",null,null,null,"530K ",null,null,"VERN HODGE  "]
["OMAH          OMAHA NE",null,null,null,"5312 ",null,null,"VERNON HODGE  "]
["OMNI          OMNI HONG KONG                 ",null,null,null,"5314 ",null,null,"VERNON WELLS  "]
["ONTA          ONTARIO CA                     ",null,null,null,"5315 ",null,null,"VICE PROVOST/EDUC OUTREACH  "]
["ONTR          ONTARIO CANADA                 ",null,null,null,"5316 ",null,null,"VICKI HOLMES  "]
["OPOR          OPORTO PORTUGAL                ",null,null,null,"5317 ",null,null,"VICKY HOFFMAN  "]
["ORAC          ORACLE AZ                      ",null,null,null,"5318 ",null,null,"VICTOR H S KWONG  "]
["ORAE          ORANCE BEACH AL                ",null,null,null,"5320 ",null,null,"VICTOR KWONG  "]
["ORAG          ORANGE CITY CA                 ",null,null,null,"5321 ",null,null,"VICTOR SANDOVAL  "]
["ORAN          ORANGE CA                      ",null,null,null,"5322 ",null,null,"VIK SEHDEV  "]
["OREB          OREBRO SWEDEN                  ",null,null,null,"5323 ",null,null,"VIKTORIA HEMMINGS  "]
["OREM          OREM UT                        ",null,null,null,"5324 ",null,null,"VINCE EADE  "]
["ORLA          ORLANDO FL                     ",null,null,null,"5326 ",null,null,"VINCE JUARISTI  "]
["ORON          ORONO ME                       ",null,null,null,"532B ",null,null,"VINCENT EADE  "]
["OSAK          OSAKA  JAPAN                   ",null,null,null,"532E ",null,null,"VINCENT H EADE  "]
["OSHK          OSHKOSH WI                     ",null,null,null,"532H ",null,null,"VINOD VASUDEVAN  "]
["OSLO          OSLO NORWAY",null,null,null,"532J ",null,null,"VINOD VESUDEVAN  "]
["OSNA          OSNABRUECK GERMANY             ",null,null,null,"5330 ",null,null,"VIRGINIA USNICK  "]
["OSWE          OSWEGO NY                      ",null,null,null,"5340 ",null,null,"VIRKO BALEY  "]
["OTRA          OTRANTO, ITALY                 ",null,null,null,"5341 ",null,null,"VP FINANCE  "]
["OTSU          OTSU JAPAN                     ",null,null,null,"5401 ",null,null,"VP FOR ACADEMIC RESOURCES  "]
["OTTA          OTTAWA  CANADA                 ",null,null,null,"5402 ",null,null,"VP FOR RESEARCH AND GRADUATE  "]
["OUAG          OUAGADOUGOU BURKINA AFRICA     ",null,null,null,"5403 ",null,null,"VP FOR RESEARCH AND GRADUATE DEAN  "]
["OURA          OURAY CO                       ",null,null,null,"5404 ",null,null,"VP OF STUDENT LIFE  "]
["OVER          OVERLAND KS                    ",null,null,null,"5405 ",null,null,"VP OF STUDETN LIFE  "]
["OVET          OVERTON  NV                    ",null,null,null,"5406 ",null,null,"VP OF STUDNET LIFE  "]
["OWEN          OWENS LAKE CA                  ",null,null,null,"5408 ",null,null,"W PAUL JONES  "]
["OWYH          OWYHEE, NV                     ",null,null,null,"5411 ",null,null,"WADE ISHIMOTO  "]
["OXFD          OXFORD ENGLAND                 ",null,null,null,"5412 ",null,null,"WALTER C VODRAZKA  "]
["OXFO          OXFORD OH                      ",null,null,null,"5413 ",null,null,"WALTER VODRAZKA  "]
["OXFR          OXFORD MS                      ",null,null,null,"5459 ",null,null,"WANDA DECORTE  "]
["OXNA          OXNARD CA",null,null,null,"5462 ",null,null,"WANDA TAYLOR  "]
["PAAM          PANAMA CITY PANAMA             ",null,null,null,"5465 ",null,null,"WARREN BURGGREN  "]
["PABC          PABCO GYPSUM LAKE MEAD NV      ",null,null,null,"5470 ",null,null,"WARREN COBB  "]
["PABL          PABLO MT                       ",null,null,null,"5473 ",null,null,"WARREN W BURGGREN  "]
["PACI          PACIFIC GROVE  CA              ",null,null,null,"5479 ",null,null,"WENDY D MEYERS  "]
["PADA          PADUA ITALY                    ",null,null,null,"5480 ",null,null,"WENDY MEYERS  "]
["PADE          PADEBORN GERMANY               ",null,null,null,"5488 ",null,null,"WESLEY MC WHORTER  "]
["PADO          PADOVA ITALY                   ",null,null,null,"5489 ",null,null,"WESLEY NILES  "]
["PADU          PADUCAH KY                     ",null,null,null,"5490 ",null,null,"WILISHA DANIELS  "]
["PAGE          PAGE  AZ                       ",null,null,null,"5492 ",null,null,"WILLAIM HARMAN  "]
["PAGO          PAGOSA SPRINGS  CO             ",null,null,null,"5493 ",null,null,"WILLIAM BOLDT  "]
["PAGP          PAGO PAGO AMERICAN SAMOA       ",null,null,null,"5494 ",null,null,"WILLIAM COOK  "]
["PAHA          PAHRANAGAT VALLEY UT           ",null,null,null,"5496 ",null,null,"WILLIAM CULBRETH  "]
["PAHR          PAHRUMP NV                     ",null,null,null,"5501 ",null,null,"WILLIAM GIESER  "]
["PALA          PALMA DE MALLORCA SPAIN        ",null,null,null,"5502 ",null,null,"WILLIAM HARMAN  "]
["PALB          PALM BEACH FL",null,null,null,"5507 ",null,null,"WILLIAM HARMON  "]
["PALD          PALMDALE CA                    ",null,null,null,"5508 ",null,null,"WILLIAM HOLCOMB  "]
["PALE          PALM BEACH ARUBA               ",null,null,null,"5509 ",null,null,"WILLIAM JAMES SMITH  "]
["PALG          PALM BEACH GARDENS FL          ",null,null,null,"5510 ",null,null,"WILLIAM R HOLCOMB  "]
["PALL          PALLISADES NY                  ",null,null,null,"5512 ",null,null,"WILLIAM R WELLS  "]
["PALM          PALM SPRINGS CA                ",null,null,null,"5513 ",null,null,"WILLIAM SCHULZE  "]
["PALO          PALO ALTO CA                   ",null,null,null,"5514 ",null,null,"WILLIAM SMITH  "]
["PALR          PALMERSTON NEW ZEALAND         ",null,null,null,"5516 ",null,null,"WILLIAM SOUSA  "]
["PALS          PALM DESERT CA                 ",null,null,null,"551D ",null,null,"WILLIAM SPEER  "]
["PANA          PANACA NV                      ",null,null,null,"551E ",null,null,"WILLIAM SULLIVAN  "]
["PANG          PANGUITCH UT                   ",null,null,null,"551F ",null,null,"WILLIAM THEODORE CUMMINGS  "]
["PANM          PANAMA CITY  FL                ",null,null,null,"551H ",null,null,"WILLIAM WOOD  "]
["PANP          PANAMA CITY PANAMA             ",null,null,null,"551J ",null,null,"WOLFGANG BEIN  "]
["PANQ          PANQUITCH UT                   ",null,null,null,"5521 ",null,null,"WOOSOON YIM  "]
["PAPH          PAPHOS CYPRUS                  ",null,null,null,"5524 ",null,null,"XAVIER GLAUDAS  "]
["PARA          PARADOR SAN JAVIER MEXICO",null,null,null,"5527 ",null,null,"XIAOYIN ZHANG  "]
["PARH          PARASHANT AZ                   ",null,null,null,"5528 ",null,null,"XIAOYIN ZHANG (OBJ CODE 32 ONLY)  "]
["PARI          PARIS FRANCE                   ",null,null,null,"552A ",null,null,"XIAOYIN ZHANG(OBJ CODE 32 ONLY)  "]
["PARK          PARK CITY UT                   ",null,null,null,"552D ",null,null,"XIAOYIN ZHANGT  "]
["PARM          PARMA ITALY                    ",null,null,null,"552E ",null,null,"XIN MAI  "]
["PARO          PAROWAN UT                     ",null,null,null,"552F ",null,null,"YAHIA BAGHZOUZ  "]
["PARR          PARK RAPIDS MN                 ",null,null,null,"552G ",null,null,"YAHIA BAGZOUZ  "]
["PARS          PARASHANT MT                   ",null,null,null,"552H ",null,null,"YING TAO JIANG  "]
["PARV          PARK VALLEY UT                 ",null,null,null,"552K ",null,null,"YINGTAO JIANG  "]
["PASA          PASADENA CA                    ",null,null,null,"552M ",null,null,"YITUNG CHEN  "]
["PASC          PASCO-RICHLAND WA              ",null,null,null,"552N ",null,null,"YI-TUNG CHEN  "]
["PASS          PASSAU GERMANY                 ",null,null,null,"552P ",null,null,"YOLANDA COVINGTON  "]
["PATR          PATRICK AFB FL                 ",null,null,null,"552Q ",null,null,"YOOHWAN KIM  "]
["PAUF          PAU FRANCE                     ",null,null,null,"5532 ",null,null,"YU XU  "]
["PAYS          PAYSON AZ                      ",null,null,null,"5536 ",null,null,"YUANXIN TENG  "]
["PEAB          PEABODY MA",null,null,null,"5538 ",null,null,"YVETTE KELL  "]
["PEAC          PEACH SPRINGS, AZ              ",null,null,null,"5543 ",null,null,"YVETTE WALTON  "]
["PEBB          PEBBLE BEACH CA                ",null,null,null,"5545 ",null,null,"ZHIYONG WANG  "]
["PEND          PENDLETON OR                   ",null,null,null,"5548 ",null,null,"ZHONGBO YU  "]
["PENL          PENLAND NC                     ",null,null,null,"5551 "]
["PENO          PENOYER VALLEY NV              ",null,null,null,"5552 "]
["PENS          PENSACOLA FL                   ",null,null,null,"5565 "]
["PEOI          PEORIA AZ                      ",null,null,null,"5566 "]
["PEOR          PEORIA IL                      ",null,null,null,"5567 "]
["PERR          PERRY GA                       ",null,null,null,"5568 "]
["PERT          PERTH AUSTRAILIA               ",null,null,null,"5569 "]
["PETA          PETALUMA CA                    ",null,null,null,"5591 "]
["PETR          PETROPAVLOVSK RUSSIA           ",null,null,null,"5592 "]
["PHEA          PHEASANT RUN IL                ",null,null,null,"5593 "]
["PHIL          PHILADELPHIA PA                ",null,null,null,"5594 "]
["PHOE          PHOENIX AZ",null,null,null,"5601 "]
["PHUK          PHUKET THAILAND                ",null,null,null,"5603 "]
["PICA          PICATINNY NJ                   ",null,null,null,"5604 "]
["PINE          PINEHURST NC                   ",null,null,null,"5605 "]
["PINO          PINON AZ                       ",null,null,null,"5606 "]
["PIOC          PIOCHE NV                      ",null,null,null,"5608 "]
["PISA          PISA ITALY                     ",null,null,null,"5609 "]
["PISC          PISCATAWAY NJ                  ",null,null,null,"560A "]
["PITS          PITTSFIELD MS                  ",null,null,null,"560D "]
["PITT          PITTSBURGH PA                  ",null,null,null,"560E "]
["PIXI          PIXIE NAT'L FOREST UT          ",null,null,null,"560G "]
["PLAC          PLACERVILLE CA                 ",null,null,null,"5610 "]
["PLAE          PLACENTIA CA                   ",null,null,null,"5613 "]
["PLAN          PLANO TX                       ",null,null,null,"5618 "]
["PLAT          PLATTSBURGH NY                 ",null,null,null,"5619 "]
["PLEA          PLEASANTON CA",null,null,null,"561B "]
["PLMR          PALMERA, COLUMBIA              ",null,null,null,"561D "]
["PLYM          PLYMOUTH MI                    ",null,null,null,"561F "]
["PLYO          PLYMOUTH NH                    ",null,null,null,"561K "]
["POCA          POCATELLO ID                   ",null,null,null,"561P "]
["POEL          PORT ELIZABETH, SO. AFRICA",null,null,null,"561Q "]
["POHA          POHANGO,KOREA                  ",null,null,null,"561R "]
["POHN          POHNPEI                        ",null,null,null,"561T "]
["POIN          POINT CLEAR AL                 ",null,null,null,"5636 "]
["POLS          POLSON  MT                     ",null,null,null,"5637 "]
["POMO          POMONA CA                      ",null,null,null,"5640 "]
["PONT          PONTEDERA ITALY                ",null,null,null,"5641 "]
["POON          POONA INDIA                    ",null,null,null,"5642 "]
["POPL          POPLAR BLUFFS MO               ",null,null,null,"5643 "]
["PORA          PORTAL AZ                      ",null,null,null,"5644 "]
["PORC          PORT ST.LUCIE FL",null,null,null,"5645 "]
["PORL          PORTLAND ME                    ",null,null,null,"5646 "]
["PORM          PORTSMOUTH VA                  ",null,null,null,"5647 "]
["PORO          PORT OF SPAIN TRINIDAD         ",null,null,null,"5648 "]
["PORS          PORTSMOUTH NH                  ",null,null,null,"564A "]
["PORT          PORTLAND OR                    ",null,null,null,"564C "]
["PORU          PORT ARTHUR TX                 ",null,null,null,"564D "]
["POUG          POUGHKEEPSIE  NY               ",null,null,null,"564M "]
["POUL          POULTNEY VT                    ",null,null,null,"564X "]
["POZN          POZNAN POLAND                  ",null,null,null,"5653 "]
["PRAG          PRAGUE CZECH REPUBLIC          ",null,null,null,"5656 "]
["PRAY          PRAY MT                        ",null,null,null,"566A "]
["PRES          PRESCOTT AZ                    ",null,null,null,"5679 "]
["PRIC          PRICE UT                       ",null,null,null,"567C "]
["PRIE          PRINCE GEORGE CANADA           ",null,null,null,"567F "]
["PRIM          PRIMM NV",null,null,null,"567K "]
["PRIN          PRINCETON  NJ                  ",null,null,null,"567R "]
["PROI          PROVIDENCE RHODE ISLAND        ",null,null,null,"567W "]
["PROV          PROVO UT                       ",null,null,null,"567X "]
["PRTL          PORTALES, NM                   ",null,null,null,"5683 "]
["PUEB          PUEBLO NM                      ",null,null,null,"5691 "]
["PUEL          PUEBLA MEXICO                  ",null,null,null,"5694 "]
["PUEM          PUERTO MONTT CHILE             ",null,null,null,"569Q "]
["PUER          PUERTO VALLARTA MEXICO         ",null,null,null,"569W "]
["PULL          PULLMAN WA                     ",null,null,null,"569Y "]
["PUNT          PUNTARENAS COSTA RICA          ",null,null,null,"5701 "]
["PURD          PURDUE IN                      ",null,null,null,"5702 "]
["PUSA          PUSAN KOREA                    ",null,null,null,"5703 "]
["PYRA          PYRAMID LAKE NV                ",null,null,null,"5705 "]
["QUAN          QUANTICO VA                    ",null,null,null,"5706 "]
["QUAR          QUARTZSITE AZ",null,null,null,"5708 "]
["QUEB          QUEBEC CANADA                  ",null,null,null,"5709 "]
["QUEE          QUEENSLANDS AUSTRALIA          ",null,null,null,"570A "]
["QUER          QUERETARO CITY MX              ",null,null,null,"570B "]
["QUIC          QUINCY MA                      ",null,null,null,"570C "]
["QUIN          QUINCY CA                      ",null,null,null,"570D "]
["QUIT          QUITO, ECUADOR                 ",null,null,null,"570E "]
["QUNZ          QUNZHOU CHINA                  ",null,null,null,"570F "]
["QUOG          QUOGUE NY                      ",null,null,null,"570G "]
["RACH          RACHEL NV                      ",null,null,null,"5710 "]
["RACI          RACINE WI                      ",null,null,null,"5711 "]
["RAIL          RAILROAD VALLEY, NV            ",null,null,null,"5712 "]
["RAIN          RAINBOW GARDENS NV             ",null,null,null,"5713 "]
["RALE          RALEIGH-DURHAM NC              ",null,null,null,"5714 "]
["RAMA          RAM ALLAH ISRAEL               ",null,null,null,"5717 "]
["RAMO          RAMONA CA",null,null,null,"5718 "]
["RANC          RANCHO MIRAGE  CA              ",null,null,null,"571G "]
["RAND          RANDOLPH MA                    ",null,null,null,"571H "]
["RANE          RANGELY CO                     ",null,null,null,"571M "]
["RANG          RANGLEY CO                     ",null,null,null,"571N "]
["RANH          RANCHO DOMINQUEZ CA            ",null,null,null,"571P "]
["RANM          RANCHO CUCAMONGA CA            ",null,null,null,"571R "]
["RANO          RANCHO SANTA FE CA             ",null,null,null,"5720 "]
["RAPI          RAPID CITY SD                  ",null,null,null,"572E "]
["READ          READING ENGLAND                ",null,null,null,"572L "]
["REDA          RED BANK, NJ                   ",null,null,null,"572T "]
["REDB          RED BLUFF CA                   ",null,null,null,"5732 "]
["REDD          REDDING CA                     ",null,null,null,"573C "]
["REDL          REDLANDS CA                    ",null,null,null,"573D "]
["REDM          REDMOND OR                     ",null,null,null,"573H "]
["REDO          REDONDO BEACH CA",null,null,null,"573K "]
["REDR          RED ROCK MTNS NV               ",null,null,null,"573N "]
["REDS          RED ROCK SPRINGS AZ            ",null,null,null,"573Q "]
["REDW          REDMOND WA                     ",null,null,null,"573Y "]
["REGI          REGINA CANADA                  ",null,null,null,"574A "]
["RENN          RENNES FRANCE                  ",null,null,null,"574E "]
["RESE          RESEDA CA                      ",null,null,null,"574F "]
["REST          RESTON VA                      ",null,null,null,"574G "]
["RETH          RETHYMNON CRETE                ",null,null,null,"574Q "]
["REVI          REVILLE RANGE, NV              ",null,null,null,"5752 "]
["REXB          REXBERG ID                     ",null,null,null,"575C "]
["REYK          REYKJAVIK ICELAND              ",null,null,null,"575D "]
["RHIN          RHINELANDER WI                 ",null,null,null,"575H "]
["RIAL          RIALTO CA                      ",null,null,null,"575K "]
["RICF          RICHFIELD UT",null,null,null,"575N "]
["RICH          RICHMOND VA                    ",null,null,null,"5761 "]
["RICL          RICHLAND WA                    ",null,null,null,"576A "]
["RICM          RICHMOND BC CANADA             ",null,null,null,"576D "]
["RICO          RICHMOND CA                    ",null,null,null,"576G "]
["RIDD          RISGEDALE MO                   ",null,null,null,"576H "]
["RIDG          RIDGECREST CA                  ",null,null,null,"576J "]
["RIGA          RIGA LATVIA                    ",null,null,null,"576K "]
["RIGG          RIGGINS ID                     ",null,null,null,"576M "]
["RIMI          RIMINI IT                      ",null,null,null,"576N "]
["RIMN          RICHMOND, MN                   ",null,null,null,"576P "]
["RIOD          RIO DE JANEIRO BRAZIL          ",null,null,null,"576Q "]
["RIOI          RIO RICO AZ                    ",null,null,null,"576R "]
["RIOR          RIO RANCHO NM                  ",null,null,null,"576T "]
["RIVA          RIVANIEMI  FINLAND             ",null,null,null,"5778 "]
["RIVE          RIVERSIDE CA",null,null,null,"5781 "]
["RIVH          RIVERHEAD                      ",null,null,null,"5783 "]
["RIVM          RIVER MTNS NV                  ",null,null,null,"5788 "]
["RIVR          RIVERSIDE NV                   ",null,null,null,"578C "]
["ROAN          ROANOKE VA                     ",null,null,null,"578D "]
["ROCE          ROCHESTER MN                   ",null,null,null,"578F "]
["ROCF          ROCKFORD, IL                   ",null,null,null,"578G "]
["ROCH          ROCHESTER NY                   ",null,null,null,"578H "]
["ROCK          ROCKVILLE MD                   ",null,null,null,"578J "]
["RODE          RODEO AZ                       ",null,null,null,"578K "]
["ROGE          ROGERS SPRING NV               ",null,null,null,"578M "]
["ROHN          ROHNERT PARK CA                ",null,null,null,"578N "]
["ROLL          ROLLA, MISSOURI                ",null,null,null,"5790 "]
["ROMA          ROMANIA                        ",null,null,null,"5797 "]
["ROME          ROME ITALY                     ",null,null,null,"5802 "]
["ROSE          ROSEMEAD  CA",null,null,null,"5803 "]
["ROSK          ROSKILDE DENMARK               ",null,null,null,"580A "]
["ROSV          ROSEVILLE MN                   ",null,null,null,"580B "]
["ROTT          ROTTERDAM NETHERLANDS          ",null,null,null,"580C "]
["ROUN          ROUND MT  NV                   ",null,null,null,"580D "]
["RUED          RUEDESHEIM GERMANY             ",null,null,null,"5811 "]
["RUID          RUIDOSO NM                     ",null,null,null,"5814 "]
["SAAR          SAARBRUCHEN GERMANY            ",null,null,null,"5819 "]
["SABO          SANTA CRUZ BOLIVIA             ",null,null,null,"5820 "]
["SACK          SACKVILLE NB CANADA            ",null,null,null,"5826 "]
["SACR          SACRAMENTO  CA                 ",null,null,null,"5827 "]
["SADD          SADDLE COVE NV                 ",null,null,null,"5831 "]
["SAFF          SAFFORD  AZ                    ",null,null,null,"5834 "]
["SAGI          SAGINAW, MI                    ",null,null,null,"5836 "]
["SAIP          SAIPAN MARIANA GUAM            ",null,null,null,"5837 "]
["SALA          SALAMANCA SPAIN",null,null,null,"583A "]
["SALE          SALEM, OR                      ",null,null,null,"583C "]
["SALI          SALINAS CA                     ",null,null,null,"583D "]
["SALM          SALMON RIVER ID                ",null,null,null,"583E "]
["SALN          SALINA KANSAS                  ",null,null,null,"583F "]
["SALO          SALTON SEA CA                  ",null,null,null,"583G "]
["SALS          SALISBURY MD                   ",null,null,null,"5845 "]
["SALT          SALT LAKE CITY UT              ",null,null,null,"5851 "]
["SALV          SALVADOR BRAZIL                ",null,null,null,"5852 "]
["SALZ          SALZBURG, AUSTRIA              ",null,null,null,"5853 "]
["SAMA          SAMARA RUSSIA                  ",null,null,null,"5855 "]
["SAMM         SAN MATEO"]
["SANA          SAN ANTONIO  TX                ",null,null,null,"5858 "]
["SANB          SANTA BARBARA   CA             ",null,null,null,"5862 "]
["SANC          SAN CLEMENTE CA                ",null,null,null,"5863 "]
["SAND          SAN DIEGO  CA                  ",null,null,null,"5864 "]
["SANE          SAN BERNARDINO CA",null,null,null,"5870 "]
["SANF          SAN FRANCISCO  CA              ",null,null,null,"5871 "]
["SANG          SANTIAGO  CHILE                ",null,null,null,"5872 "]
["SANI          SANTA CLARITA  CA              ",null,null,null,"5875 "]
["SANJ          SAN JOSE CA                    ",null,null,null,"5877 "]
["SANL          SAN LUIS OBISPO CA             ",null,null,null,"5878 "]
["SANM          SAN MARINO CA                  ",null,null,null,"5879 "]
["SANN          SANTE FE ARGENTINA             ",null,null,null,"5880 "]
["SANO          SANTA MONICA CA                ",null,null,null,"5881 "]
["SANP          SAN PEDRO SULA HONDURAS        ",null,null,null,"5884 "]
["SANR          SAN RAFAEL CA                  ",null,null,null,"5885 "]
["SANS          SAN MARCOS CA                  ",null,null,null,"5888 "]
["SANT          SANTA FE NM                    ",null,null,null,"5905 "]
["SANU          SAN JUAN PUERTO RICO           ",null,null,null,"5906 "]
["SANV          SANTA ANA PUEBLO NM            ",null,null,null,"5907 "]
["SANX          SAN MARCOS TX",null,null,null,"5921 "]
["SANY          SANDY VALLEY NV                ",null,null,null,"5923 "]
["SAN0          SANTA CLARA UT                 ",null,null,null,"5924 "]
["SAN1          SANTA CLARA  CA                ",null,null,null,"5925 "]
["SAN2          SANTA ANA CA                   ",null,null,null,"5961 "]
["SAN3          SAN BERNADINO  CA              ",null,null,null,"5963 "]
["SAN4          SAN JOSE COSTA RICA            ",null,null,null,"5964 "]
["SAN5          SAN SEBASTIAN SPAIN            ",null,null,null,"5976 "]
["SAN6          SANDY UTAH                     ",null,null,null,"5977 "]
["SAN7          SANTA ROSA  CA                 ",null,null,null,"5980 "]
["SAN8          SANDPOINT ID                   ",null,null,null,"5981 "]
["SAN9          SANTA CRUZ  CA                 ",null,null,null,"598C "]
["SAOP          SAO PAULO BRAZIL               ",null,null,null,"598D "]
["SAPD          SAN PEDRO CA                   ",null,null,null,"598G "]
["SAPP          SAPPORO JAPAN                  ",null,null,null,"598K "]
["SARA          SARASOTA FL",null,null,null,"6002 "]
["SARJ          SARAJEVO BOSNIA                ",null,null,null,"6004 "]
["SARO          SANTA ROSA RANGE, NV           ",null,null,null,"6013 "]
["SART          SARATOGA SPRINGS  NY           ",null,null,null,"6015 "]
["SASK          SASKATOON CANADA               ",null,null,null,"6016 "]
["SAUS          SAUSALITO CA                   ",null,null,null,"6020 "]
["SAVA          SAVANNAH GA                    ",null,null,null,"6024 "]
["SAVL          SALINE VALLEY, CA              ",null,null,null,"6026 "]
["SA10          SAN CARLOS MEXICO              ",null,null,null,"6032 "]
["SA11          SAN FERNANDO CA                ",null,null,null,"6033 "]
["SA12          SANTA CLARE UT                 ",null,null,null,"6034 "]
["SA13          SANTA MARIA CA                 ",null,null,null,"6035 "]
["SA14          SANTA CRUZ BOLIVIA             ",null,null,null,"6036 "]
["SA15          SAN MARCOS TX                  ",null,null,null,"6061 "]
["SA16          SAN JOSE MEXICO                ",null,null,null,"6063 "]
["SA17          SAN LUCES MEXICO",null,null,null,"6067 "]
["SA18          SAN LOIS POTOSI MEXICO         ",null,null,null,"6075 "]
["SA19          SAN PEDRO CA                   ",null,null,null,"6077 "]
["SA20          SAN BRUNO CA                   ",null,null,null,"6096 "]
["SA21          SANTA ANA PUEBLO NM            ",null,null,null,"6104 "]
["SA22          SAN POTOSI MEXICO              ",null,null,null,"6105 "]
["SA23          SANTHOFEIN GERMANY             ",null,null,null,"611A "]
["SA24          SANTA FE SPRINGS CA            ",null,null,null,"611B "]
["SA25          SAN RAMON, CA                  ",null,null,null,"611C "]
["SA26          SANTA CLARITA CA",null,null,null,"6128 "]
["SCAR          SCARBOROUGH NY                 ",null,null,null,"612E "]
["SCHA          SCHAUMBURG IL                  ",null,null,null,"612R "]
["SCHE          SCHENCTADY NY                  ",null,null,null,"612T "]
["SCHU          SCHURZ NV                      ",null,null,null,"612Y "]
["SCOS          SCOTTSBLUFF NE                 ",null,null,null,"6131 "]
["SCOT          SCOTTSDALE AZ",null,null,null,"6132 "]
["SEAL          SEAL BEACH CA                  ",null,null,null,"613E "]
["SEAR          SEARCHLIGHT NV                 ",null,null,null,"6140 "]
["SEAS          SEASIDE CA                     ",null,null,null,"6146 "]
["SEAT          SEATTLE WA                     ",null,null,null,"6149 "]
["SECA          SECAUCUS NJ                    ",null,null,null,"614C "]
["SECO          SECOND MESA AZ                 ",null,null,null,"6158 "]
["SEDO          SEDONA AZ                      ",null,null,null,"615K "]
["SEEH          SEEHEIM, GERMANY               ",null,null,null,"6166 "]
["SEIB          SEIBERSDORF AUSTRIA            ",null,null,null,"6167 "]
["SEND          SENDAI JAPAN                   ",null,null,null,"6168 "]
["SEOU          SEOUL  KOREA                   ",null,null,null,"6171 "]
["SEVI          SEVILLE SPAIN                  ",null,null,null,"6174 "]
["SHAN          SHANGHAI CHINA                 ",null,null,null,"6175 "]
["SHAO          SHANNON IRELAND                ",null,null,null,"6179 "]
["SHAR          SHARJAH UNITED ARAB EMIRATES",null,null,null,"617G "]
["SHAU          IRVINE CA                      ",null,null,null,"617J "]
["SHAW          SHAWNEE, KS                    ",null,null,null,"617R "]
["SHEE          SHEEP PASS CANYON NV           ",null,null,null,"617Y "]
["SHEF          SHEFFIELD UK                   ",null,null,null,"618M "]
["SHEI          SHERIDAN WY                    ",null,null,null,"618Q "]
["SHEN          SHENZHEN CHINA                 ",null,null,null,"618T "]
["SHEP          SHEPERDSTOWN WV                ",null,null,null,"618Y "]
["SHER          SHERMAN OAKS CA                ",null,null,null,"619C "]
["SHIP          SHIPROCK  AZ                   ",null,null,null,"619D "]
["SHIV          SHIVWITS UT                    ",null,null,null,"619E "]
["SHIW          SHIVWITS PLATEAU AZ            ",null,null,null,"619F "]
["SHOS          SHOSHONE  CA                   ",null,null,null,"6216 "]
["SHRE          SHREVEPORT LA                  ",null,null,null,"6217 "]
["SIAP          SIAPAN NO MARIANA ISL          ",null,null,null,"6218 "]
["SIBE          SIBERIA RUSSIA",null,null,null,"621B "]
["SICI          SICILY ITALY                   ",null,null,null,"621D "]
["SIDN          SIDNEY AUSTRALIA               ",null,null,null,"621F "]
["SIEN          SIENA  ITALY                   ",null,null,null,"621G "]
["SIER          SIERRA MADRE CA                ",null,null,null,"621K "]
["SIGA          SIGATOKA, FIJI                 ",null,null,null,"621L "]
["SILE          SILVER SPRINGS, NV             ",null,null,null,"621M "]
["SILS          SILVER SPRINGS, MD             ",null,null,null,"621P "]
["SILV          SILVER CITY  NM                ",null,null,null,"621R "]
["SIMI          SIMI VALLEY CA                 ",null,null,null,"621T "]
["SING          SINGAPORE                      ",null,null,null,"621W "]
["SIOU          SIOUX FALLS SD                 ",null,null,null,"621Y "]
["SIOX          SIOUX CITY IA                  ",null,null,null,"6224 "]
["SIRE          SIRET FRANCE                   ",null,null,null,"622A "]
["SITG          SITGES, SPAIN",null,null,null,"622B "]
["SIVA          SIVAKASHI, INDIA",null,null,null,"622C "]
["SIXF          SIX FLAGS, CA (SANTA CLARITA)  ",null,null,null,"622E "]
["SKOK          SKOKIE  IL                     ",null,null,null,"622F "]
["SLVI          SALINE VALLEY, CA              ",null,null,null,"622G "]
["SMIT          SMITH NV                       ",null,null,null,"622J "]
["SNAE          SNAKE CREEK NV                 ",null,null,null,"622K "]
["SNAK          SNAKE VALLEY NV                ",null,null,null,"622M "]
["SNOM          SNOWMASS CO                    ",null,null,null,"622P "]
["SNOW          SNOWBIRD UT                    ",null,null,null,"622Q "]
["SNRA          SONORA RESORT, ALASKA          ",null,null,null,"622R "]
["SOCH          SOCHI RUSSIA                   ",null,null,null,"622T "]
["SOCO          SOCORRO  NM                    ",null,null,null,"622W "]
["SODE          SODERTALJE SWEDEN              ",null,null,null,"622Y "]
["SOFI          SOFIA BULGARIA                 ",null,null,null,"6230 "]
["SONI          SONOITA AZ                     ",null,null,null,"6232 "]
["SONM          SONORA MEXICO",null,null,null,"623D "]
["SONO          SONOMA CA                      ",null,null,null,"623E "]
["SONR          SONORA CA                      ",null,null,null,"623G "]
["SONT          SONTHOFEN GERMANY              ",null,null,null,"623J "]
["SOUA          SOUTHAMPTON ENGLAND            ",null,null,null,"623K "]
["SOUH          SOUTH HADLEY MA                ",null,null,null,"623M "]
["SOUT          SOUTH BEND IN                  ",null,null,null,"623P "]
["SOUX          SIOUX FALLS SD                 ",null,null,null,"623Q "]
["SPAK          SPARKS NV                      ",null,null,null,"623R "]
["SPAN          SPANISH FORK UT                ",null,null,null,"623T "]
["SPAR          SPARTANBURG SC                 ",null,null,null,"623W "]
["SPEA          SPEARFISH SD                   ",null,null,null,"623X "]
["SPEN          SPENCER'S HOT SPRINGS          ",null,null,null,"623Y "]
["SPIT          SPITZINGSEE GERMANY            ",null,null,null,"6241 "]
["SPOK          SPOKANE WA                     ",null,null,null,"6242 "]
["SPRA          SPRINGDALE AR",null,null,null,"6243 "]
["SPRD          SPRINGDALE UT                  ",null,null,null,"6244 "]
["SPRE          SPRINGERVILLE AZ               ",null,null,null,"624B "]
["SPRF          SPRINGFIELD MO                 ",null,null,null,"624C "]
["SPRG          SPRINGFIELD IL                 ",null,null,null,"624H "]
["SPRI          SPRINGFIELD MA                 ",null,null,null,"624N "]
["SPRM          SPRING MOUNTAINS NV            ",null,null,null,"624R "]
["SPRN          SPRINGFIELD NJ                 ",null,null,null,"624W "]
["SPRO          SPRINGFIELD OH                 ",null,null,null,"6257 "]
["SQUA          SQUAW VALLEY CA                ",null,null,null,"625K "]
["STAD          ST ANDREWS SCOTLAND            ",null,null,null,"625T "]
["STAE          STATELINE NV                   ",null,null,null,"625W "]
["STAH          STANHOPE NJ                    ",null,null,null,"625X "]
["STAL          STARE LESNA SLOVAKIA           ",null,null,null,"625Y "]
["STAM          STAMFORD CT                    ",null,null,null,"6263 "]
["STAN          STANFORD CA",null,null,null,"626A "]
["STAO          STANTON NH                     ",null,null,null,"626B "]
["STAR          STARKVILLE MS                  ",null,null,null,"627A "]
["STAT          STATE COLLEGE PA               ",null,null,null,"627C "]
["STAU          ST AUGUSTINE FL                ",null,null,null,"627F "]
["STCA          ST CATHARINES ONTARIO CANADA   ",null,null,null,"627H "]
["STCH          ST CHARLES IL                  ",null,null,null,"627J "]
["STCL          ST CHARLES MO                  ",null,null,null,"627K "]
["STCR          ST CROIX, US VIRGIN ISLANDS    ",null,null,null,"627M "]
["STDI          ST DIDIER FRANCE               ",null,null,null,"627N "]
["STEA          STEAMBOAT SPRINGS CO           ",null,null,null,"627T "]
["STER          STEARS POINT NV                ",null,null,null,"627W "]
["STEV          STEVENS POINT WI               ",null,null,null,"628A "]
["STEW          STEWART ISLAND NEW ZEALAND     ",null,null,null,"628B "]
["STGE          ST GEORGE UT                   ",null,null,null,"628C "]
["STIL          STILLWATER OK",null,null,null,"628D "]
["STJH          ST JOHN  VIRGIN ISLANDS        ",null,null,null,"628E "]
["STJO          ST JOHNS NFLD CANADA           ",null,null,null,"628H "]
["STLO          ST LOUIS MO                    ",null,null,null,"628Q "]
["STMA          ST MALO FRANCE                 ",null,null,null,"628R "]
["STOC          STOCKTON CA                    ",null,null,null,"628T "]
["STOK          STOCKHOLM SWEDEN               ",null,null,null,"628W "]
["STON          STONEY BROOK  NY               ",null,null,null,"628Y "]
["STOR          STORRS CONNECTICUT             ",null,null,null,"629A "]
["STOU          STOUGHTON WI                   ",null,null,null,"629B "]
["STOV          STOVEPIPE WELLS CA             ",null,null,null,"629D "]
["STPA          ST PAUL MN                     ",null,null,null,"629F "]
["STPE          ST PETERSBURG  FL              ",null,null,null,"629G "]
["STPT          ST PETERSBURG RUSSIA           ",null,null,null,"629H "]
["STRA          STRASBOURG FRANCE              ",null,null,null,"629N "]
["STSI          ST SIMONS ISLAND GA",null,null,null,"629P "]
["STTH          ST THOMAS VIRGIN ISLANDS       ",null,null,null,"629Q "]
["STTO          ST THOMAS, NV                  ",null,null,null,"629R "]
["STUA          STUART FLORIDA                 ",null,null,null,"629W "]
["STUD          STUDIO CITY CA                 ",null,null,null,"629X "]
["STUT          STUTTGART GERMANY              ",null,null,null,"6301 "]
["STVO          STEVENSON, WA                  ",null,null,null,"6302 "]
["SUCR          SUCRE BOLIVIA                  ",null,null,null,"6305 "]
["SUDB          SUDBURY CANADA                 ",null,null,null,"6307 "]
["SUNA          SUN VALLEY ID                  ",null,null,null,"630A "]
["SUNN          SUNNYVALE CA                   ",null,null,null,"630B "]
["SUNR          SUNRIVER OR                    ",null,null,null,"630C "]
["SUNV          SUN VALLEY ID                  ",null,null,null,"630E "]
["SURF          SURFER'S PARADISE AUSTRALIA    ",null,null,null,"630G "]
["SURR          SURREY, UNITED KINGDOM         ",null,null,null,"630H "]
["SUSA          SUSANVILLE CA",null,null,null,"630K "]
["SWEE          SWEENEY MTNS CA                ",null,null,null,"630L "]
["SWIT          SWITZERLAND                    ",null,null,null,"630M "]
["SYDN          SYDNEY AUSTRALIA               ",null,null,null,"630N "]
["SYLM          SYLMAR CA                      ",null,null,null,"630P "]
["SYRA          SYRACUSE NY                    ",null,null,null,"630R "]
["TACO          TACOMA WA                      ",null,null,null,"630S "]
["TAFT          TAFT CA                        ",null,null,null,"630T "]
["TAGE          TAGERNSEE GERMANY              ",null,null,null,"6311 "]
["TAHE          TAHOE VISTA CA                 ",null,null,null,"6312 "]
["TAHO          TAHOE CITY CA                  ",null,null,null,"6319 "]
["TAIC          TAICHUNG TAIWAN                ",null,null,null,"631E "]
["TAIP          TAIPEI TAIWAN                  ",null,null,null,"631F "]
["TAIY          TAIYUAN CHINA                  ",null,null,null,"631G "]
["TALI          TALLIN ESTONIA                 ",null,null,null,"631H "]
["TALL          TALLAHASSEE FL",null,null,null,"631P "]
["TALN          TALLINN ESTONIA                ",null,null,null,"631Q "]
["TAME          TAMPERE FINLAND                ",null,null,null,"6320 "]
["TAMI          TAMIL NADU INDIA               ",null,null,null,"6324 "]
["TAMP          TAMPA FL                       ",null,null,null,"6326 "]
["TAOS          TAOS NM                        ",null,null,null,"6327 "]
["TARP          TARPON SPRINGS FL              ",null,null,null,"6329 "]
["TARR          TARRYTOWN NY                   ",null,null,null,"632B "]
["TASS          TASSI RANCH AZ                 ",null,null,null,"632E "]
["TBIL          TPIBISI GEORGIA                ",null,null,null,"632F "]
["TEAN          TEANECK NJ                     ",null,null,null,"632G "]
["TECO          TECOPA HOT SPRINGS CA          ",null,null,null,"632H "]
["TEGU          TEGUCIGALPA HONDURAS           ",null,null,null,"632J "]
["TEHA          TEHACHAPI, CA                  ",null,null,null,"632K "]
["TEHR          TEHRAN IRAN                    ",null,null,null,"632L "]
["TELA          TEL AVIV ISRAEL",null,null,null,"632M "]
["TELL          TELLURIDE CO                   ",null,null,null,"632N "]
["TEMC          TEMECULA CA                    ",null,null,null,"632P "]
["TEME          TEMECULA CA                    ",null,null,null,"632Q "]
["TEML          TEMPLE BAR AZ                  ",null,null,null,"632R "]
["TEMP          TEMPE AZ                       ",null,null,null,"632T "]
["TENE          TENERIFE SPAIN                 ",null,null,null,"632W "]
["TERR          TERRE HAUTE IN                 ",null,null,null,"632X "]
["TEXA          TEXARKANA AR                   ",null,null,null,"632Y "]
["THER          THERMOPOLIS WY                 ",null,null,null,"6335 "]
["THES          THESSALONIKI GREECE            ",null,null,null,"633A "]
["THOU          THOUSAND OAKS CA               ",null,null,null,"633B "]
["THUD          THUNDER BAY ONTARIO CANADA     ",null,null,null,"633C "]
["THUN          THUNDERBIRD AZ                 ",null,null,null,"633D "]
["TIAN          TIANJIN CHINA                  ",null,null,null,"633E "]
["TIJU          TIJUANA MEXICO",null,null,null,"633F "]
["TILB          TILBUR,NETHERLANDS",null,null,null,"633G "]
["TILO          TILTON, OH                     ",null,null,null,"633J "]
["TILT          TILTON NH                      ",null,null,null,"633K "]
["TIMP          TIMPAHUTE RANGE, NV",null,null,null,"633P "]
["TIRA          TIRANA, ALBANIA                ",null,null,null,"633Q "]
["TIRR          TIRRENIA, ITALY                ",null,null,null,"633R "]
["TOKY          TOKYO JAPAN                    ",null,null,null,"633Y "]
["TOLD          TOLEDO SPAIN                   ",null,null,null,"6340 "]
["TOLE          TOLEDO OH                      ",null,null,null,"6342 "]
["TOLL          TOLLAND CT                     ",null,null,null,"6344 "]
["TOMS          TOMSK RUSSIA                   ",null,null,null,"6346 "]
["TONO          TONOPAH NV                     ",null,null,null,"6347 "]
["TOPE          TOPEKA KS                      ",null,null,null,"634B "]
["TOPO          TOPOK CA                       ",null,null,null,"634C "]
["TORC          TRUTH OR CONSEQUENCES NM         O",null,null,null,"634E "]
["TORE          TORREON MEXICO                 ",null,null,null,"634F "]
["TORI          TORINO ITALY                   ",null,null,null,"634G "]
["TORO          TORONTO CANADA                 ",null,null,null,"634H "]
["TORR          TORRANCE CA                    ",null,null,null,"634J "]
["TORU          TORUN POLAND                   ",null,null,null,"634K "]
["TOUL          TOULIU TAIWAN                  ",null,null,null,"634M "]
["TOUR          TOURS FRANCE                   ",null,null,null,"634N "]
["TOWN          TOWNSVILLE AUSTRALIA           ",null,null,null,"634P "]
["TOWS          TOWSON MD                      ",null,null,null,"634Q "]
["TOYA          TOYAMA JAPAN                   ",null,null,null,"634W "]
["TRAN          TRANI ITALY                    ",null,null,null,"634X "]
["TREN          TRENTO ITALY                   ",null,null,null,"634Y "]
["TRIA          TRIANGLE PARK NC               ",null,null,null,"6350 "]
["TRIE          TRIER GERMANY                  ",null,null,null,"635A "]
["TRIN          TRINITY NAT'L FORREST CA",null,null,null,"635B "]
["TRIS          TRIESTE IT                     ",null,null,null,"635C "]
["TROD          TRONDHJEN, NORWAY              ",null,null,null,"635D "]
["TROI          TROIA PORTUGAL                 ",null,null,null,"635F "]
["TRON          TRONA CA                       ",null,null,null,"635H "]
["TROP          TROPIC UT                      ",null,null,null,"635J "]
["TROU          TROUGH AZ                      ",null,null,null,"635K "]
["TROY          TROY NY                        ",null,null,null,"635M "]
["TRUC          TRUCKEE CA                     ",null,null,null,"635N "]
["TRUK          TRUCKEE NV                     ",null,null,null,"635R "]
["TRUM          TRUMBULL BLM AZ                ",null,null,null,"635T "]
["TSAI          TSAILE AZ                      ",null,null,null,"635Y "]
["TSUK          TSUKUBA JAPAN                  ",null,null,null,"6361 "]
["TUBA          TUBA AZ                        ",null,null,null,"6367 "]
["TUCS          TUCSON AZ                      ",null,null,null,"636H "]
["TULA          TULARE CA",null,null,null,"636I "]
["TULL          TULLAHOMA TN                   ",null,null,null,"636Y "]
["TULS          TULSA OK                       ",null,null,null,"636Z "]
["TUNC          TUNICA MS                      ",null,null,null,"6371 "]
["TUNI          TUNIS TUNISIA                  ",null,null,null,"6372 "]
["TUNU          TUNUAK AK                      ",null,null,null,"6373 "]
["TUPE          TUPELO MS                      ",null,null,null,"637P "]
["TURC          TURKS AND CAICOS ISLANDS       ",null,null,null,"638V "]
["TURI          TURIN ITALY                    ",null,null,null,"638Z "]
["TURK          TURKU,FINLAND",null,null,null,"640L "]
["TURL          TURLOCK CA                     ",null,null,null,"640M "]
["TUSA          TUSCANY IT                     ",null,null,null,"641J "]
["TUSC          TUSCALOOSA AL                  ",null,null,null,"6422 "]
["TUSK          TUSKEGEE AL                    ",null,null,null,"6423 "]
["TUST          TUSTIN CA                      ",null,null,null,"6424 "]
["TUWE          TUWEEP AZ",null,null,null,"6427 "]
["TWEN          TWENTY NINE PALMS CA           ",null,null,null,"6429 "]
["TWIN          TWIN FALLS ID                  ",null,null,null,"642L "]
["TYLE          TYLER TX                       ",null,null,null,"642M "]
["TYSO          TYSONS CORNER VA               ",null,null,null,"642W "]
["UKIA          UKIAH CA                       ",null,null,null,"6431 "]
["ULMG          ULM GERMANY                    ",null,null,null,"6432 "]
["UMEA          UMEA SWEDEN                    ",null,null,null,"6434 "]
["UNIE          UNIVERSAL CITY CA              ",null,null,null,"6436 "]
["UNIM          UNIVERSITY, MS                 ",null,null,null,"6437 "]
["UNIO          UNIONDALE NY                   ",null,null,null,"643X "]
["UNIV          UNIVERSITY PARK PA             ",null,null,null,"6441 "]
["UPPS          UPPSALA SWEDEN                 ",null,null,null,"6445 "]
["UPSI          UPSILANI MI                    ",null,null,null,"6446 "]
["UPTO          UPTON NY                       ",null,null,null,"644L "]
["URBA          URBANA IL",null,null,null,"644M "]
["UTAH          UTAH                           ",null,null,null,"644N "]
["UTRE          UTRECHT NETHERLANDS            ",null,null,null,"644P "]
["VACA          VACAVILLE CA                   ",null,null,null,"644W "]
["VAIL          VAIL CO                        ",null,null,null,"644X "]
["VALA          VALETTA MALTA                  ",null,null,null,"644Y "]
["VALE          VALENCIA CA                    ",null,null,null,"6454 "]
["VALJ          VALLEJO CA                     ",null,null,null,"646E "]
["VALL          VALLEY OF FIRE NAT'L PARK NV   ",null,null,null,"6471 "]
["VALN          VALENCIA SPAIN                 ",null,null,null,"6472 "]
["VALP          VALPARAISO CHILE               ",null,null,null,"6473 "]
["VALT          VAL THORENS FRANCE             ",null,null,null,"6476 "]
["VANC          VANCOUVER BRIT COLUMBIA CANADA ",null,null,null,"6477 "]
["VAND          VANDENBERG AIR FORCE BASE CA   ",null,null,null,"6478 "]
["VANN          VAN NUYS CA                    ",null,null,null,"6479 "]
["VANO          VANCOUVER WA",null,null,null,"647F "]
["VENI          VENICE ITALY                   ",null,null,null,"647G "]
["VENT          VENTURA CA                     ",null,null,null,"647H "]
["VERA          VERA CRUZ MEXICO               ",null,null,null,"647J "]
["VERD          VERDI NV                       ",null,null,null,"647K "]
["VERN          VERNAL, UT                     ",null,null,null,"647M "]
["VERO          VERO FL                        ",null,null,null,"647N "]
["VICO          VICTORIA BRIT COLUMBIA CANADA  ",null,null,null,"647P "]
["VICT          VICTORVILLE CA                 ",null,null,null,"647R "]
["VIEN          VIENNA AUSTRIA                 ",null,null,null,"648W "]
["VIET          VIENTIANE LAOS                 ",null,null,null,"6498 "]
["VIGO          VIGO SPAIN                     ",null,null,null,"6499 "]
["VILN          VILNIUS LITHUANIA              ",null,null,null,"649E "]
["VIRB          VIRGIN BOWL, NV                ",null,null,null,"649W "]
["VIRG          VIRGINIA CITY NV               ",null,null,null,"64CC "]
["VIRM          VIRGIN MOUNTAINS NV",null,null,null,"64CD "]
["VIRN          VIRGINIA BEACH VA              ",null,null,null,"64CK "]
["VIRR          VIRGIN RIVER NV                ",null,null,null,"64CP "]
["VISA          VISALLIA CA                    ",null,null,null,"64DB "]
["WABR          WALKING BOX RANCH NV           ",null,null,null,"64EM "]
["WACO          WACO TX                        ",null,null,null,"64EP "]
["WADE          WADERN GERMANY                 ",null,null,null,"64EQ "]
["WADS          WADSWORTH NV                   ",null,null,null,"64FF "]
["WAIK          WAIKIKI HI                     ",null,null,null,"64FW "]
["WAIL          WAILEA MAUI HI                 ",null,null,null,"64HC "]
["WAIO          WAIKOLOA HI                    ",null,null,null,"64HP "]
["WALI          WALLINGFORD CT                 ",null,null,null,"64HW "]
["WALK          WALKER CA                      ",null,null,null,"64JN "]
["WALL          WALLA WALLA WA                 ",null,null,null,"64JP "]
["WALN          WALNUT CREEK CA                ",null,null,null,"64JT "]
["WALT          WALTHAM MA",null,null,null,"64KF "]
["WARM          WARM SPRINGS NV                ",null,null,null,"64KR "]
["WARN          WARNER SPRINGS CA              ",null,null,null,"64KW "]
["WARS          WARSAW POLAND                  ",null,null,null,"64NC "]
["WASH          WASHINGTON DC                  ",null,null,null,"64NJ "]
["WATE          WATERVILLE VALLEY NH           ",null,null,null,"64NP "]
["WATL          WATERLOO ONTARIO CANADA        ",null,null,null,"64PD "]
["WATR          WATERLOO IA                    ",null,null,null,"64PE "]
["WDCL          WOODCLIFF LAKE, NJ             ",null,null,null,"64PT "]
["WEAV          WEAVERVILLE CA                 ",null,null,null,"64PX "]
["WEED          WEED CA                        ",null,null,null,"64PY "]
["WEET          WEE-THUMP WILDERNESS NV        ",null,null,null,"64QA "]
["WEIH          WEIHAI CHINA                   ",null,null,null,"64QB "]
["WEIS          WEISER RIDGE NV                ",null,null,null,"64QC "]
["WELE          WELLESLEY, MA                  ",null,null,null,"64QD "]
["WELL          WELLINGTON NEW ZEALAND",null,null,null,"64QE "]
["WELS          WELLS NV                       ",null,null,null,"64QF "]
["WEND          WENDOVER NV                    ",null,null,null,"64QG "]
["WESA          WEST PALM BEACH FL             ",null,null,null,"64QH "]
["WESC          WESTCHESTER CA                 ",null,null,null,"64QL "]
["WESE          WESTERVILLE OH                 ",null,null,null,"64QM "]
["WESH          WESTCHESTER NY                 ",null,null,null,"64QN "]
["WESI          WEST ISLIP NY                  ",null,null,null,"64RC "]
["WESM          WESTMINSTER CA                 ",null,null,null,"64RD "]
["WESO          WEST COVINA CA                 ",null,null,null,"64RE "]
["WESP          WEST POINT NY                  ",null,null,null,"64RK "]
["WESR          WESTERN STATES",null,null,null,"64RQ "]
["WEST          WESTMINSTER CO                 ",null,null,null,"64TC "]
["WESW          WEST WENDOVER NV               ",null,null,null,"64TD "]
["WHEA          WHEATON MD                     ",null,null,null,"64TE "]
["WHEE          WHEELING WV",null,null,null,"64TF "]
["WHIE          WHITEHORSE BC CANADA           ",null,null,null,"64TJ "]
["WHIF          WHITEFISH MT                   ",null,null,null,"64TM "]
["WHIM          WHITE MTN CA                   ",null,null,null,"64TQ "]
["WHIP          WHITE PLAINS NY                ",null,null,null,"64TT "]
["WHIS          WHISTLER BC CANADA             ",null,null,null,"64TW "]
["WHIT          WHITTIER CA                    ",null,null,null,"64TX "]
["WICH          WICHITA KS                     ",null,null,null,"64TY "]
["WICK          WICKENBURG AZ                  ",null,null,null,"64WA "]
["WILA          WILLIAMSTOWN MA                ",null,null,null,"64WD "]
["WILB          WILLIAMSBURG VA                ",null,null,null,"64WE "]
["WILC          WILLOWS CA                     ",null,null,null,"64WF "]
["WILI          WILMINGTON NC                  ",null,null,null,"64WF "]
["WILK          WILKES-BARRE PA                ",null,null,null,"64WG "]
["WILL          WILLIAMS AZ                    ",null,null,null,"64WH "]
["WILM          WILMINGTON DE",null,null,null,"64WJ "]
["WILO          WILLOW BEACH  AZ               ",null,null,null,"64WL "]
["WILP          WILLIAMSPORT PA                ",null,null,null,"64WM "]
["WILS          WILSONVILLE OR                 ",null,null,null,"64WN "]
["WILV          WILLIAMSBURG VA                ",null,null,null,"64WP "]
["WILW          WILLOW CREED NV                ",null,null,null,"64WQ "]
["WINB          WINBER PA                      ",null,null,null,"64WW "]
["WINC          WINCHESTER VA                  ",null,null,null,"64WX "]
["WIND          WINDOW ROCK AZ                 ",null,null,null,"64XB "]
["WINE          WINNEPEG CANADA                ",null,null,null,"64XD "]
["WINN          WINNEMUCCA NV                  ",null,null,null,"64YB "]
["WINO          WINDSOR CANADA                 ",null,null,null,"64YC "]
["WINR          WIND RIVER CO                  ",null,null,null,"64YE "]
["WINS          WINSTON-SALEM NC               ",null,null,null,"64YF "]
["WINT          WINTERGREEN VA                 ",null,null,null,"64YG "]
["WIN1          WINSOR LOCKS CT",null,null,null,"64YH "]
["WLAF          WEST LAFAYETTE IN              ",null,null,null,"64YJ "]
["WLNT          WALNUT  CA                     ",null,null,null,"6501 "]
["WLSP          WILSON POINT NV                ",null,null,null,"6502 "]
["WOLF          WOLFEBORO NH                   ",null,null,null,"6504 "]
["WOLP          WOLF POINT MI                  ",null,null,null,"651E "]
["WOOD          WOODLAND HILLS CA              ",null,null,null,"651F "]
["WOOS          WOODSTOCK VT                   ",null,null,null,"651W "]
["WORC          WORCESTER MA                   ",null,null,null,"6521 "]
["WRIG          WRIGHT-PATTERSON AFB           ",null,null,null,"6524 "]
["WROC          WROCLAW POLAND                 ",null,null,null,"652A "]
["WUER          WUERZBURG GERMANY              ",null,null,null,"652E "]
["WUHA          WUHAM CHINA                    ",null,null,null,"652T "]
["XIAM          XIAMEM CHINA                   ",null,null,null,"653E "]
["XIAN          XIAN CHINA                     ",null,null,null,"653M "]
["YAKI          YAKIMA WA",null,null,null,"653P "]
["YCCA          YUCCA AZ                       ",null,null,null,"6551 "]
["YELL          YELLOWSTONE MT                 ",null,null,null,"6555 "]
["YERI          YERINGTON NEVADA               ",null,null,null,"655A "]
["YERM          YERMO CA                       ",null,null,null,"655D "]
["YICH          YICHANG CHINA                  ",null,null,null,"655R "]
["YOGY          YOGYAKARTA INDONESIA           ",null,null,null,"656J "]
["YOKO          YOKOHAMA JAPAN                 ",null,null,null,"6576 "]
["YORB          YORBA LINDA CA                 ",null,null,null,"6577 "]
["YORK          YORK PA                        ",null,null,null,"657C "]
["YOR1          YORK, UK",null,null,null,"658J "]
["YOSE          YOSEMITE NATIONAL PARK CA      ",null,null,null,"659Q "]
["YOUN          YOUNGSTOWN OH                  ",null,null,null,"659T "]
["YPSI          YPSILANTI MI                   ",null,null,null,"659W "]
["YREK          YREKA CA                       ",null,null,null,"659X "]
["YUCA          YUCCA VALLEY CA                  O",null,null,null,"65AH "]
["YUCC          YUCCA MTN NV                   ",null,null,null,"65AK "]
["YUCE          YUCEA  AZ                      ",null,null,null,"65AM "]
["YUCI          YUCAIPA CA                     ",null,null,null,"65AY "]
["YUMA          YUMA AZ                        ",null,null,null,"65BB "]
["ZACA          ZACATECA MEXICO                ",null,null,null,"65BC "]
["ZAGA          ZAGAZIG EGYPT                  ",null,null,null,"65BH "]
["ZAGR          ZAGREB CROATIA                 ",null,null,null,"65BJ "]
["ZEEL          ZEELAND, MI                    ",null,null,null,"65BL "]
["ZEPH          ZEPHYR COVE NV                 ",null,null,null,"65BN "]
["ZERM          ZERMOTT SWITZERLAND            ",null,null,null,"65BQ "]
["ZHUH          ZHUHAI CHINA                   ",null,null,null,"65BR "]
["ZION          ZION NAT'L PARK UT             ",null,null,null,"65BT "]
["ZUNI          ZUNI BASIN NM                  ",null,null,null,"65CB "]
["ZURI          ZURICH SWITZERLAND             ",null,null,null,"65CC "]
["ZZYZ          ZZYZX CA",null,null,null,"65CD "]
[null,null,null,null,"65CE "]
[null,null,null,null,"65PA "]
[null,null,null,null,"65PB "]
[null,null,null,null,"65PC "]
[null,null,null,null,"65PD "]
[null,null,null,null,"65PE "]
[null,null,null,null,"65PF "]
[null,null,null,null,"65PG "]
[null,null,null,null,"65PH "]
[null,null,null,null,"65PK "]
[null,null,null,null,"65PR "]
[null,null,null,null,"65PT "]
[null,null,null,null,"65PW "]
[null,null,null,null,"65QC "]
[null,null,null,null,"65QE "]
[null,null,null,null,"65QG "]
[null,null,null,null,"65QH "]
[null,null,null,null,"65QK "]
[null,null,null,null,"65QM "]
[null,null,null,null,"65QN "]
[null,null,null,null,"65QT "]
[null,null,null,null,"65QW "]
[null,null,null,null,"65QX "]
[null,null,null,null,"65QY "]
[null,null,null,null,"65RA "]
[null,null,null,null,"65RB "]
[null,null,null,null,"65RC "]
[null,null,null,null,"65RE "]
[null,null,null,null,"65RG "]
[null,null,null,null,"65RH "]
[null,null,null,null,"65RJ "]
[null,null,null,null,"6601 "]
[null,null,null,null,"6602 "]
[null,null,null,null,"660A "]
[null,null,null,null,"660B "]
[null,null,null,null,"6611 "]
[null,null,null,null,"661D "]
[null,null,null,null,"6628 "]
[null,null,null,null,"6629 "]
[null,null,null,null,"665A "]
[null,null,null,null,"665B "]
[null,null,null,null,"665C "]
[null,null,null,null,"665D "]
[null,null,null,null,"665F "]
[null,null,null,null,"665G "]
[null,null,null,null,"665H "]
[null,null,null,null,"665J "]
[null,null,null,null,"665K "]
[null,null,null,null,"665L "]
[null,null,null,null,"665M "]
[null,null,null,null,"665N "]
[null,null,null,null,"665P "]
[null,null,null,null,"665R "]
[null,null,null,null,"665T "]
[null,null,null,null,"665V "]
[null,null,null,null,"665W "]
[null,null,null,null,"665X "]
[null,null,null,null,"665Y "]
[null,null,null,null,"666B "]
[null,null,null,null,"666C "]
[null,null,null,null,"666E "]
[null,null,null,null,"666F "]
[null,null,null,null,"666H "]
[null,null,null,null,"666M "]
[null,null,null,null,"666N "]
[null,null,null,null,"666P "]
[null,null,null,null,"666R "]
[null,null,null,null,"666T "]
[null,null,null,null,"668A "]
[null,null,null,null,"668B "]
[null,null,null,null,"668D "]
[null,null,null,null,"668E "]
[null,null,null,null,"668Y "]
[null,null,null,null,"6693 "]
[null,null,null,null,"6694 "]
[null,null,null,null,"669B "]
[null,null,null,null,"669H "]
[null,null,null,null,"669R "]
[null,null,null,null,"669T "]
[null,null,null,null,"6701 "]
[null,null,null,null,"6703 "]
[null,null,null,null,"6704 "]
[null,null,null,null,"6705 "]
[null,null,null,null,"6706 "]
[null,null,null,null,"6707 "]
[null,null,null,null,"6708 "]
[null,null,null,null,"6709 "]
[null,null,null,null,"670D "]
[null,null,null,null,"6710 "]
[null,null,null,null,"6711 "]
[null,null,null,null,"6713 "]
[null,null,null,null,"6723 "]
[null,null,null,null,"672A "]
[null,null,null,null,"672B "]
[null,null,null,null,"672C "]
[null,null,null,null,"672E "]
[null,null,null,null,"672F "]
[null,null,null,null,"672G "]
[null,null,null,null,"672H "]
[null,null,null,null,"672J "]
[null,null,null,null,"672K "]
[null,null,null,null,"672L "]
[null,null,null,null,"672M "]
[null,null,null,null,"672P "]
[null,null,null,null,"672Q "]
[null,null,null,null,"672R "]
[null,null,null,null,"672W "]
[null,null,null,null,"672X "]
[null,null,null,null,"672Y "]
[null,null,null,null,"6739 "]
[null,null,null,null,"673A "]
[null,null,null,null,"673B "]
[null,null,null,null,"673C "]
[null,null,null,null,"673D "]
[null,null,null,null,"673E "]
[null,null,null,null,"673F "]
[null,null,null,null,"673G "]
[null,null,null,null,"673H "]
[null,null,null,null,"673L "]
[null,null,null,null,"673N "]
[null,null,null,null,"673P "]
[null,null,null,null,"673T "]
[null,null,null,null,"673W "]
[null,null,null,null,"673Y "]
[null,null,null,null,"673Y "]
[null,null,null,null,"6749 "]
[null,null,null,null,"674C "]
[null,null,null,null,"674H "]
[null,null,null,null,"674J "]
[null,null,null,null,"674K "]
[null,null,null,null,"674N "]
[null,null,null,null,"674P "]
[null,null,null,null,"674Q "]
[null,null,null,null,"674R "]
[null,null,null,null,"674W "]
[null,null,null,null,"6751 "]
[null,null,null,null,"6756 "]
[null,null,null,null,"675B "]
[null,null,null,null,"675C "]
[null,null,null,null,"675D "]
[null,null,null,null,"675E "]
[null,null,null,null,"675F "]
[null,null,null,null,"675H "]
[null,null,null,null,"675J "]
[null,null,null,null,"675K "]
[null,null,null,null,"675M "]
[null,null,null,null,"675N "]
[null,null,null,null,"675P "]
[null,null,null,null,"675Q "]
[null,null,null,null,"675R "]
[null,null,null,null,"675T "]
[null,null,null,null,"675W "]
[null,null,null,null,"675Y "]
[null,null,null,null,"6761 "]
[null,null,null,null,"676A "]
[null,null,null,null,"676B "]
[null,null,null,null,"676C "]
[null,null,null,null,"676E "]
[null,null,null,null,"676F "]
[null,null,null,null,"676G "]
[null,null,null,null,"676H "]
[null,null,null,null,"676K "]
[null,null,null,null,"676L "]
[null,null,null,null,"676M "]
[null,null,null,null,"676N "]
[null,null,null,null,"676Q "]
[null,null,null,null,"676R "]
[null,null,null,null,"676T "]
[null,null,null,null,"676W "]
[null,null,null,null,"6771 "]
[null,null,null,null,"6774 "]
[null,null,null,null,"677A "]
[null,null,null,null,"677B "]
[null,null,null,null,"677C "]
[null,null,null,null,"677D "]
[null,null,null,null,"677E "]
[null,null,null,null,"677F "]
[null,null,null,null,"677H "]
[null,null,null,null,"677J "]
[null,null,null,null,"677K "]
[null,null,null,null,"677L "]
[null,null,null,null,"677N "]
[null,null,null,null,"677P "]
[null,null,null,null,"677Q "]
[null,null,null,null,"677R "]
[null,null,null,null,"677T "]
[null,null,null,null,"677W "]
[null,null,null,null,"677X "]
[null,null,null,null,"677Y "]
[null,null,null,null,"678A "]
[null,null,null,null,"678C "]
[null,null,null,null,"678D "]
[null,null,null,null,"678E "]
[null,null,null,null,"678F "]
[null,null,null,null,"678G "]
[null,null,null,null,"678J "]
[null,null,null,null,"678K "]
[null,null,null,null,"678L "]
[null,null,null,null,"678M "]
[null,null,null,null,"678N "]
[null,null,null,null,"678P "]
[null,null,null,null,"678R "]
[null,null,null,null,"678T "]
[null,null,null,null,"678W "]
[null,null,null,null,"678X "]
[null,null,null,null,"678Y "]
[null,null,null,null,"679A "]
[null,null,null,null,"679B "]
[null,null,null,null,"679C "]
[null,null,null,null,"679D "]
[null,null,null,null,"679E "]
[null,null,null,null,"679F "]
[null,null,null,null,"679G "]
[null,null,null,null,"679H "]
[null,null,null,null,"679J "]
[null,null,null,null,"679M "]
[null,null,null,null,"679N "]
[null,null,null,null,"679P "]
[null,null,null,null,"679Q "]
[null,null,null,null,"679R "]
[null,null,null,null,"679T "]
[null,null,null,null,"679W "]
[null,null,null,null,"679X "]
[null,null,null,null,"679Y "]
[null,null,null,null,"67K1 "]
[null,null,null,null,"680B "]
[null,null,null,null,"680C "]
[null,null,null,null,"680D "]
[null,null,null,null,"680E "]
[null,null,null,null,"680F "]
[null,null,null,null,"680H "]
[null,null,null,null,"680J "]
[null,null,null,null,"680K "]
[null,null,null,null,"680L "]
[null,null,null,null,"680M "]
[null,null,null,null,"680N "]
[null,null,null,null,"680P "]
[null,null,null,null,"680Q "]
[null,null,null,null,"680R "]
[null,null,null,null,"680T "]
[null,null,null,null,"680W "]
[null,null,null,null,"680X "]
[null,null,null,null,"680Y "]
[null,null,null,null,"681A "]
[null,null,null,null,"681B "]
[null,null,null,null,"681C "]
[null,null,null,null,"681D "]
[null,null,null,null,"681E "]
[null,null,null,null,"681F "]
[null,null,null,null,"681G "]
[null,null,null,null,"681J "]
[null,null,null,null,"681K "]
[null,null,null,null,"681L "]
[null,null,null,null,"681M "]
[null,null,null,null,"681N "]
[null,null,null,null,"681P "]
[null,null,null,null,"681Q "]
[null,null,null,null,"681R "]
[null,null,null,null,"681T "]
[null,null,null,null,"681W "]
[null,null,null,null,"681Y "]
[null,null,null,null,"682B "]
[null,null,null,null,"682C "]
[null,null,null,null,"682D "]
[null,null,null,null,"682E "]
[null,null,null,null,"682F "]
[null,null,null,null,"682G "]
[null,null,null,null,"682H "]
[null,null,null,null,"682J "]
[null,null,null,null,"682K "]
[null,null,null,null,"682L "]
[null,null,null,null,"682N "]
[null,null,null,null,"682P "]
[null,null,null,null,"682Q "]
[null,null,null,null,"682R "]
[null,null,null,null,"682T "]
[null,null,null,null,"682W "]
[null,null,null,null,"682X "]
[null,null,null,null,"682Y "]
[null,null,null,null,"683A "]
[null,null,null,null,"683B "]
[null,null,null,null,"683C "]
[null,null,null,null,"683D "]
[null,null,null,null,"683E "]
[null,null,null,null,"683F "]
[null,null,null,null,"683G "]
[null,null,null,null,"683H "]
[null,null,null,null,"683J "]
[null,null,null,null,"683K "]
[null,null,null,null,"683M "]
[null,null,null,null,"683N "]
[null,null,null,null,"683P "]
[null,null,null,null,"683Q "]
[null,null,null,null,"683R "]
[null,null,null,null,"683T "]
[null,null,null,null,"683W "]
[null,null,null,null,"683X "]
[null,null,null,null,"683Y "]
[null,null,null,null,"684A "]
[null,null,null,null,"684B "]
[null,null,null,null,"684C "]
[null,null,null,null,"684D "]
[null,null,null,null,"684E "]
[null,null,null,null,"684F "]
[null,null,null,null,"684G "]
[null,null,null,null,"684H "]
[null,null,null,null,"684J "]
[null,null,null,null,"684K "]
[null,null,null,null,"684L "]
[null,null,null,null,"684M "]
[null,null,null,null,"684N "]
[null,null,null,null,"684P "]
[null,null,null,null,"684Q "]
[null,null,null,null,"684R "]
[null,null,null,null,"684T "]
[null,null,null,null,"684U "]
[null,null,null,null,"684W "]
[null,null,null,null,"684X "]
[null,null,null,null,"684Y "]
[null,null,null,null,"6851 "]
[null,null,null,null,"6852 "]
[null,null,null,null,"6853 "]
[null,null,null,null,"6858 "]
[null,null,null,null,"685A "]
[null,null,null,null,"685B "]
[null,null,null,null,"685C "]
[null,null,null,null,"685D "]
[null,null,null,null,"685E "]
[null,null,null,null,"685F "]
[null,null,null,null,"685G "]
[null,null,null,null,"685H "]
[null,null,null,null,"685J "]
[null,null,null,null,"685L "]
[null,null,null,null,"685M "]
[null,null,null,null,"685N "]
[null,null,null,null,"685P "]
[null,null,null,null,"685Q "]
[null,null,null,null,"685R "]
[null,null,null,null,"685T "]
[null,null,null,null,"685W "]
[null,null,null,null,"685X "]
[null,null,null,null,"685Y "]
[null,null,null,null,"6860 "]
[null,null,null,null,"6863 "]
[null,null,null,null,"6865 "]
[null,null,null,null,"6866 "]
[null,null,null,null,"6868 "]
[null,null,null,null,"686A "]
[null,null,null,null,"686B "]
[null,null,null,null,"686C "]
[null,null,null,null,"686D "]
[null,null,null,null,"686E "]
[null,null,null,null,"686F "]
[null,null,null,null,"686G "]
[null,null,null,null,"686H "]
[null,null,null,null,"686J "]
[null,null,null,null,"686K "]
[null,null,null,null,"686L "]
[null,null,null,null,"686M "]
[null,null,null,null,"686N "]
[null,null,null,null,"686P "]
[null,null,null,null,"686Q "]
[null,null,null,null,"686R "]
[null,null,null,null,"686T "]
[null,null,null,null,"686W "]
[null,null,null,null,"686X "]
[null,null,null,null,"686Y "]
[null,null,null,null,"687A "]
[null,null,null,null,"687B "]
[null,null,null,null,"687C "]
[null,null,null,null,"687D "]
[null,null,null,null,"687E "]
[null,null,null,null,"687F "]
[null,null,null,null,"687G "]
[null,null,null,null,"687H "]
[null,null,null,null,"687J "]
[null,null,null,null,"687K "]
[null,null,null,null,"687L "]
[null,null,null,null,"687M "]
[null,null,null,null,"687N "]
[null,null,null,null,"687P "]
[null,null,null,null,"687Q "]
[null,null,null,null,"687R "]
[null,null,null,null,"687T "]
[null,null,null,null,"687W "]
[null,null,null,null,"687X "]
[null,null,null,null,"6901 "]
[null,null,null,null,"6906 "]
[null,null,null,null,"690B "]
[null,null,null,null,"690C "]
[null,null,null,null,"690D "]
[null,null,null,null,"690E "]
[null,null,null,null,"6911 "]
[null,null,null,null,"6913 "]
[null,null,null,null,"6917 "]
[null,null,null,null,"6921 "]
[null,null,null,null,"6922 "]
[null,null,null,null,"6923 "]
[null,null,null,null,"6926 "]
[null,null,null,null,"6928 "]
[null,null,null,null,"6930 "]
[null,null,null,null,"6932 "]
[null,null,null,null,"6938 "]
[null,null,null,null,"6941 "]
[null,null,null,null,"6942 "]
[null,null,null,null,"6943 "]
[null,null,null,null,"6945 "]
[null,null,null,null,"6948 "]
[null,null,null,null,"6951 "]
[null,null,null,null,"6953 "]
[null,null,null,null,"6956 "]
[null,null,null,null,"6959 "]
[null,null,null,null,"6963 "]
[null,null,null,null,"6965 "]
[null,null,null,null,"6967 "]
[null,null,null,null,"6968 "]
[null,null,null,null,"6969 "]
[null,null,null,null,"6975 "]
[null,null,null,null,"6980 "]
[null,null,null,null,"6981 "]
[null,null,null,null,"6988 "]
[null,null,null,null,"7001 "]
[null,null,null,null,"7005 "]
[null,null,null,null,"7014 "]
[null,null,null,null,"7015 "]
[null,null,null,null,"7016 "]
[null,null,null,null,"7124 "]
[null,null,null,null,"7125 "]
[null,null,null,null,"7129 "]
[null,null,null,null,"7131 "]
[null,null,null,null,"7134 "]
[null,null,null,null,"7139 "]
[null,null,null,null,"7141 "]
[null,null,null,null,"7142 "]
[null,null,null,null,"7144 "]
[null,null,null,null,"7145 "]
[null,null,null,null,"7147 "]
[null,null,null,null,"7148 "]
[null,null,null,null,"7149 "]
[null,null,null,null,"7150 "]
[null,null,null,null,"7161 "]
[null,null,null,null,"7167 "]
[null,null,null,null,"7170 "]
[null,null,null,null,"7174 "]
[null,null,null,null,"7299 "]
[null,null,null,null,"7304 "]
[null,null,null,null,"7305 "]
[null,null,null,null,"7306 "]
[null,null,null,null,"7307 "]
[null,null,null,null,"7308 "]
[null,null,null,null,"7309 "]
[null,null,null,null,"7310 "]
[null,null,null,null,"7311 "]
[null,null,null,null,"7312 "]
[null,null,null,null,"7315 "]
[null,null,null,null,"7328 "]
[null,null,null,null,"7330 "]
[null,null,null,null,"7331 "]
[null,null,null,null,"7333 "]
[null,null,null,null,"7338 "]
[null,null,null,null,"7339 "]
[null,null,null,null,"7387 "]
[null,null,null,null,"7390 "]
[null,null,null,null,"7391 "]
[null,null,null,null,"7392 "]
[null,null,null,null,"7394 "]
[null,null,null,null,"7395 "]
[null,null,null,null,"7396 "]
[null,null,null,null,"7397 "]
[null,null,null,null,"7398 "]
[null,null,null,null,"7399 "]
[null,null,null,null,"7450 "]
[null,null,null,null,"7453 "]
[null,null,null,null,"7471 "]
[null,null,null,null,"7472 "]
[null,null,null,null,"7473 "]
[null,null,null,null,"7474 "]
[null,null,null,null,"7489 "]
[null,null,null,null,"7494 "]
[null,null,null,null,"7495 "]
[null,null,null,null,"7496 "]
[null,null,null,null,"7497 "]
[null,null,null,null,"7498 "]
[null,null,null,null,"7499 "]
[null,null,null,null,"7501 "]
[null,null,null,null,"7504 "]
[null,null,null,null,"7505 "]
[null,null,null,null,"7506 "]
[null,null,null,null,"7511 "]
[null,null,null,null,"7516 "]
[null,null,null,null,"7517 "]
[null,null,null,null,"7522 "]
[null,null,null,null,"7523 "]
[null,null,null,null,"7524 "]
[null,null,null,null,"7533 "]
[null,null,null,null,"7536 "]
[null,null,null,null,"7537 "]
[null,null,null,null,"7540 "]
[null,null,null,null,"7542 "]
[null,null,null,null,"7546 "]
[null,null,null,null,"7547 "]
[null,null,null,null,"7548 "]
[null,null,null,null,"7551 "]
[null,null,null,null,"7552 "]
[null,null,null,null,"7554 "]
[null,null,null,null,"7555 "]
[null,null,null,null,"755D "]
[null,null,null,null,"755E "]
[null,null,null,null,"755F "]
[null,null,null,null,"755J "]
[null,null,null,null,"755K "]
[null,null,null,null,"755Q "]
[null,null,null,null,"755R "]
[null,null,null,null,"755T "]
[null,null,null,null,"755W "]
[null,null,null,null,"755X "]
[null,null,null,null,"7561 "]
[null,null,null,null,"7567 "]
[null,null,null,null,"756G "]
[null,null,null,null,"756H "]
[null,null,null,null,"756J "]
[null,null,null,null,"756K "]
[null,null,null,null,"756M "]
[null,null,null,null,"756N "]
[null,null,null,null,"756R "]
[null,null,null,null,"756T "]
[null,null,null,null,"756W "]
[null,null,null,null,"756X "]
[null,null,null,null,"757B "]
[null,null,null,null,"757C "]
[null,null,null,null,"757G "]
[null,null,null,null,"757M "]
[null,null,null,null,"757P "]
[null,null,null,null,"757R "]
[null,null,null,null,"757X "]
[null,null,null,null,"758B "]
[null,null,null,null,"758C "]
[null,null,null,null,"758D "]
[null,null,null,null,"758E "]
[null,null,null,null,"758P "]
[null,null,null,null,"758Q "]
[null,null,null,null,"758R "]
[null,null,null,null,"758W "]
[null,null,null,null,"758X "]
[null,null,null,null,"759D "]
[null,null,null,null,"759F "]
[null,null,null,null,"759J "]
[null,null,null,null,"759W "]
[null,null,null,null,"759X "]
[null,null,null,null,"759Y "]
[null,null,null,null,"7601 "]
[null,null,null,null,"7603 "]
[null,null,null,null,"760N "]
[null,null,null,null,"760W "]
[null,null,null,null,"761N "]
[null,null,null,null,"762T "]
[null,null,null,null,"762X "]
[null,null,null,null,"762Y "]
[null,null,null,null,"764R "]
[null,null,null,null,"764X "]
[null,null,null,null,"766A "]
[null,null,null,null,"766B "]
[null,null,null,null,"766C "]
[null,null,null,null,"766D "]
[null,null,null,null,"766E "]
[null,null,null,null,"766F "]
[null,null,null,null,"766G "]
[null,null,null,null,"766H "]
[null,null,null,null,"766J "]
[null,null,null,null,"766K "]
[null,null,null,null,"766L "]
[null,null,null,null,"766M "]
[null,null,null,null,"766N "]
[null,null,null,null,"766T "]
[null,null,null,null,"767H "]
[null,null,null,null,"76BE "]
[null,null,null,null,"76EB "]
[null,null,null,null,"76FX "]
[null,null,null,null,"76GN "]
[null,null,null,null,"76GT "]
[null,null,null,null,"76GX "]
[null,null,null,null,"76HT "]
[null,null,null,null,"76HY "]
[null,null,null,null,"76JA "]
[null,null,null,null,"76JB "]
[null,null,null,null,"76JG "]
[null,null,null,null,"76JL "]
[null,null,null,null,"76JM "]
[null,null,null,null,"76JW "]
[null,null,null,null,"76KE "]
[null,null,null,null,"76KG "]
[null,null,null,null,"76KH "]
[null,null,null,null,"76KL "]
[null,null,null,null,"76KN "]
[null,null,null,null,"76KR "]
[null,null,null,null,"76KT "]
[null,null,null,null,"76KW "]
[null,null,null,null,"76LA "]
[null,null,null,null,"76LB "]
[null,null,null,null,"76LC "]
[null,null,null,null,"76LD "]
[null,null,null,null,"76LE "]
[null,null,null,null,"76LF "]
[null,null,null,null,"76LG "]
[null,null,null,null,"76LH "]
[null,null,null,null,"76LJ "]
[null,null,null,null,"76LK "]
[null,null,null,null,"76LM "]
[null,null,null,null,"76LN "]
[null,null,null,null,"76LP "]
[null,null,null,null,"76LQ "]
[null,null,null,null,"76LR "]
[null,null,null,null,"76LT "]
[null,null,null,null,"76LW "]
[null,null,null,null,"76LX "]
[null,null,null,null,"76LY "]
[null,null,null,null,"76MA "]
[null,null,null,null,"76MB "]
[null,null,null,null,"76PH "]
[null,null,null,null,"76PJ "]
[null,null,null,null,"76WA "]
[null,null,null,null,"76WG "]
[null,null,null,null,"76WH "]
[null,null,null,null,"76WJ "]
[null,null,null,null,"7716 "]
[null,null,null,null,"7722 "]
[null,null,null,null,"7723 "]
[null,null,null,null,"7725 "]
[null,null,null,null,"7727 "]
[null,null,null,null,"7740 "]
[null,null,null,null,"7741 "]
[null,null,null,null,"7742 "]
[null,null,null,null,"7743 "]
[null,null,null,null,"7744 "]
[null,null,null,null,"7750 "]
[null,null,null,null,"7751 "]
[null,null,null,null,"7752 "]
[null,null,null,null,"7753 "]
[null,null,null,null,"7754 "]
[null,null,null,null,"7755 "]
[null,null,null,null,"7756 "]
[null,null,null,null,"7757 "]
[null,null,null,null,"7758 "]
[null,null,null,null,"7759 "]
[null,null,null,null,"7760 "]
[null,null,null,null,"7761 "]
[null,null,null,null,"7762 "]
[null,null,null,null,"7763 "]
[null,null,null,null,"7764 "]
[null,null,null,null,"7766 "]
[null,null,null,null,"7767 "]
[null,null,null,null,"7851 "]
[null,null,null,null,"7852 "]
[null,null,null,null,"7927 "]
[null,null,null,null,"7928 "]
[null,null,null,null,"7930 "]
[null,null,null,null,"7933 "]
[null,null,null,null,"7935 "]
[null,null,null,null,"7938 "]
[null,null,null,null,"7943 "]
[null,null,null,null,"7944 "]
[null,null,null,null,"7948 "]
[null,null,null,null,"7973 "]
[null,null,null,null,"7974 "]
[null,null,null,null,"7975 "]
[null,null,null,null,"7977 "]
[null,null,null,null,"7991 "]
[null,null,null,null,"800B "]
[null,null,null,null,"800C "]
[null,null,null,null,"800D "]
[null,null,null,null,"8067 "]
[null,null,null,null,"8072 "]
[null,null,null,null,"8073 "]
[null,null,null,null,"8080 "]
[null,null,null,null,"8081 "]
[null,null,null,null,"8082 "]
[null,null,null,null,"8084 "]
[null,null,null,null,"8089 "]
[null,null,null,null,"8090 "]
[null,null,null,null,"8093 "]
[null,null,null,null,"8095 "]
[null,null,null,null,"8097 "]
[null,null,null,null,"8099 "]
[null,null,null,null,"8100 "]
[null,null,null,null,"8102 "]
[null,null,null,null,"8103 "]
[null,null,null,null,"8107 "]
[null,null,null,null,"8109 "]
[null,null,null,null,"8110 "]
[null,null,null,null,"8112 "]
[null,null,null,null,"8113 "]
[null,null,null,null,"8114 "]
[null,null,null,null,"8115 "]
[null,null,null,null,"8116 "]
[null,null,null,null,"8119 "]
[null,null,null,null,"8120 "]
[null,null,null,null,"8121 "]
[null,null,null,null,"8122 "]
[null,null,null,null,"8211 "]
[null,null,null,null,"8212 "]
[null,null,null,null,"8222 "]
[null,null,null,null,"8224 "]
[null,null,null,null,"8229 "]
[null,null,null,null,"8232 "]
[null,null,null,null,"8233 "]
[null,null,null,null,"8261 "]
[null,null,null,null,"8261 "]
[null,null,null,null,"8262 "]
[null,null,null,null,"8263 "]
[null,null,null,null,"8265 "]
[null,null,null,null,"8267 "]
[null,null,null,null,"8268 "]
[null,null,null,null,"832A "]
[null,null,null,null,"832B "]
[null,null,null,null,"832C "]
[null,null,null,null,"832D "]
[null,null,null,null,"832E "]
[null,null,null,null,"832F "]
[null,null,null,null,"832G "]
[null,null,null,null,"832H "]
[null,null,null,null,"832J "]
[null,null,null,null,"832K "]
[null,null,null,null,"832L "]
[null,null,null,null,"832M "]
[null,null,null,null,"832N "]
[null,null,null,null,"832P "]
[null,null,null,null,"832Q "]
[null,null,null,null,"832R "]
[null,null,null,null,"832T "]
[null,null,null,null,"832W "]
[null,null,null,null,"832X "]
[null,null,null,null,"832Y "]
[null,null,null,null,"8335 "]
[null,null,null,null,"8339 "]
[null,null,null,null,"833B "]
[null,null,null,null,"833C "]
[null,null,null,null,"833D "]
[null,null,null,null,"833E "]
[null,null,null,null,"833F "]
[null,null,null,null,"833G "]
[null,null,null,null,"833H "]
[null,null,null,null,"833J "]
[null,null,null,null,"833K "]
[null,null,null,null,"833L "]
[null,null,null,null,"833M "]
[null,null,null,null,"833N "]
[null,null,null,null,"833P "]
[null,null,null,null,"833Q "]
[null,null,null,null,"833R "]
[null,null,null,null,"833T "]
[null,null,null,null,"833W "]
[null,null,null,null,"835C "]
[null,null,null,null,"835D "]
[null,null,null,null,"835E "]
[null,null,null,null,"835F "]
[null,null,null,null,"835G "]
[null,null,null,null,"835H "]
[null,null,null,null,"835J "]
[null,null,null,null,"835K "]
[null,null,null,null,"835L "]
[null,null,null,null,"835M "]
[null,null,null,null,"835N "]
[null,null,null,null,"835P "]
[null,null,null,null,"835Q "]
[null,null,null,null,"835R "]
[null,null,null,null,"835W "]
[null,null,null,null,"835X "]
[null,null,null,null,"835Y "]
[null,null,null,null,"835Z "]
[null,null,null,null,"8365 "]
[null,null,null,null,"8367 "]
[null,null,null,null,"840E "]
[null,null,null,null,"840F "]
[null,null,null,null,"840G "]
[null,null,null,null,"840H "]
[null,null,null,null,"840J "]
[null,null,null,null,"840K "]
[null,null,null,null,"840M "]
[null,null,null,null,"840N "]
[null,null,null,null,"840P "]
[null,null,null,null,"840Q "]
[null,null,null,null,"840R "]
[null,null,null,null,"8411 "]
[null,null,null,null,"8412 "]
[null,null,null,null,"8415 "]
[null,null,null,null,"8465 "]
[null,null,null,null,"8466 "]
[null,null,null,null,"8511 "]
[null,null,null,null,"8512 "]
[null,null,null,null,"8513 "]
[null,null,null,null,"8514 "]
[null,null,null,null,"8515 "]
[null,null,null,null,"8516 "]
[null,null,null,null,"8518 "]
[null,null,null,null,"8520 "]
[null,null,null,null,"8521 "]
[null,null,null,null,"8522 "]
[null,null,null,null,"8523 "]
[null,null,null,null,"8524 "]
[null,null,null,null,"8525 "]
[null,null,null,null,"8527 "]
[null,null,null,null,"8529 "]
[null,null,null,null,"8530 "]
[null,null,null,null,"8531 "]
[null,null,null,null,"8532 "]
[null,null,null,null,"8533 "]
[null,null,null,null,"8536 "]
[null,null,null,null,"8539 "]
[null,null,null,null,"8541 "]
[null,null,null,null,"8561 "]
[null,null,null,null,"8562 "]
[null,null,null,null,"8564 "]
[null,null,null,null,"8566 "]
[null,null,null,null,"8569 "]
[null,null,null,null,"8577 "]
[null,null,null,null,"857C "]
[null,null,null,null,"857F "]
[null,null,null,null,"857H "]
[null,null,null,null,"857M "]
[null,null,null,null,"857N "]
[null,null,null,null,"857P "]
[null,null,null,null,"857Q "]
[null,null,null,null,"857W "]
[null,null,null,null,"8581 "]
[null,null,null,null,"8584 "]
[null,null,null,null,"8585 "]
[null,null,null,null,"8586 "]
[null,null,null,null,"8587 "]
[null,null,null,null,"8590 "]
[null,null,null,null,"8601 "]
[null,null,null,null,"8602 "]
[null,null,null,null,"8605 "]
[null,null,null,null,"8612 "]
[null,null,null,null,"8613 "]
[null,null,null,null,"8622 "]
[null,null,null,null,"8623 "]
[null,null,null,null,"8624 "]
[null,null,null,null,"8625 "]
[null,null,null,null,"8626 "]
[null,null,null,null,"8627 "]
[null,null,null,null,"8628 "]
[null,null,null,null,"8629 "]
[null,null,null,null,"8631 "]
[null,null,null,null,"8633 "]
[null,null,null,null,"8634 "]
[null,null,null,null,"8635 "]
[null,null,null,null,"8636 "]
[null,null,null,null,"8637 "]
[null,null,null,null,"8638 "]
[null,null,null,null,"8639 "]
[null,null,null,null,"8640 "]
[null,null,null,null,"8641 "]
[null,null,null,null,"8642 "]
[null,null,null,null,"8644 "]
[null,null,null,null,"8647 "]
[null,null,null,null,"8648 "]
[null,null,null,null,"8649 "]
[null,null,null,null,"8650 "]
[null,null,null,null,"8651 "]
[null,null,null,null,"8652 "]
[null,null,null,null,"8654 "]
[null,null,null,null,"8655 "]
[null,null,null,null,"8656 "]
[null,null,null,null,"8660 "]
[null,null,null,null,"8661 "]
[null,null,null,null,"8662 "]
[null,null,null,null,"8663 "]
[null,null,null,null,"8665 "]
[null,null,null,null,"8670 "]
[null,null,null,null,"8675 "]
[null,null,null,null,"8676 "]
[null,null,null,null,"8677 "]
[null,null,null,null,"8678 "]
[null,null,null,null,"8679 "]
[null,null,null,null,"8680 "]
[null,null,null,null,"8785 "]
[null,null,null,null,"881A "]
[null,null,null,null,"881B "]
[null,null,null,null,"881C "]
[null,null,null,null,"8850 "]
[null,null,null,null,"8853 "]
[null,null,null,null,"8855 "]
[null,null,null,null,"8857 "]
[null,null,null,null,"8858 "]
[null,null,null,null,"8859 "]
[null,null,null,null,"885H "]
[null,null,null,null,"8862 "]
[null,null,null,null,"8863 "]
[null,null,null,null,"886L "]
[null,null,null,null,"886X "]
[null,null,null,null,"886Y "]
[null,null,null,null,"886Z "]
[null,null,null,null,"887K "]
[null,null,null,null,"888E "]
[null,null,null,null,"888L "]
[null,null,null,null,"888M "]
[null,null,null,null,"888N "]
[null,null,null,null,"888P "]
[null,null,null,null,"888Q "]
[null,null,null,null,"888R "]
[null,null,null,null,"888T "]
[null,null,null,null,"888W "]
[null,null,null,null,"888X "]
[null,null,null,null,"888Y "]
[null,null,null,null,"889A "]
[null,null,null,null,"889B "]
[null,null,null,null,"889C "]
[null,null,null,null,"889D "]
[null,null,null,null,"889E "]
[null,null,null,null,"889L "]
[null,null,null,null,"889P "]
[null,null,null,null,"889R "]
[null,null,null,null,"889W "]
[null,null,null,null,"889X "]
[null,null,null,null,"889Y "]
[null,null,null,null,"891A "]
[null,null,null,null,"891B "]
[null,null,null,null,"891C "]
[null,null,null,null,"891D "]
[null,null,null,null,"891E "]
[null,null,null,null,"891F "]
[null,null,null,null,"891G "]
[null,null,null,null,"891J "]
[null,null,null,null,"891N "]
[null,null,null,null,"891P "]
[null,null,null,null,"891R "]
[null,null,null,null,"891T "]
[null,null,null,null,"891X "]
[null,null,null,null,"891Y "]
[null,null,null,null,"892B "]
[null,null,null,null,"8938 "]
[null,null,null,null,"89AA "]
[null,null,null,null,"89AB "]
[null,null,null,null,"89AC "]
[null,null,null,null,"89AD "]
[null,null,null,null,"89AE "]
[null,null,null,null,"89AF "]
[null,null,null,null,"89AJ "]
[null,null,null,null,"89AK "]
[null,null,null,null,"89AL "]
[null,null,null,null,"89AM "]
[null,null,null,null,"89AN "]
[null,null,null,null,"89AP "]
[null,null,null,null,"89AQ "]
[null,null,null,null,"89AY "]
[null,null,null,null,"89BA "]
[null,null,null,null,"9030 "]
[null,null,null,null,"9401 "]
[null,null,null,null,"9404 "]
[null,null,null,null,"940A "]
[null,null,null,null,"940C "]
[null,null,null,null,"9411 "]
[null,null,null,null,"9412 "]
[null,null,null,null,"9414 "]
[null,null,null,null,"9416 "]
[null,null,null,null,"9417 "]
[null,null,null,null,"9419 "]
[null,null,null,null,"941B "]
[null,null,null,null,"9420 "]
[null,null,null,null,"9421 "]
[null,null,null,null,"9422 "]
[null,null,null,null,"9423 "]
[null,null,null,null,"9424 "]
[null,null,null,null,"9426 "]
[null,null,null,null,"9427 "]
[null,null,null,null,"9428 "]
[null,null,null,null,"9431 "]
[null,null,null,null,"9433 "]
[null,null,null,null,"9434 "]
[null,null,null,null,"943H "]
[null,null,null,null,"9441 "]
[null,null,null,null,"9442 "]
[null,null,null,null,"9443 "]
[null,null,null,null,"944F "]
[null,null,null,null,"944J "]
[null,null,null,null,"944R "]
[null,null,null,null,"944X "]
[null,null,null,null,"9451 "]
[null,null,null,null,"9454 "]
[null,null,null,null,"945P "]
[null,null,null,null,"9462 "]
[null,null,null,null,"9471 "]
[null,null,null,null,"9472 "]
[null,null,null,null,"9476 "]
[null,null,null,null,"9477 "]
[null,null,null,null,"947M "]
[null,null,null,null,"947N "]
[null,null,null,null,"947P "]
[null,null,null,null,"947Q "]
[null,null,null,null,"947T "]
[null,null,null,null,"9481 "]
[null,null,null,null,"9484 "]
[null,null,null,null,"9486 "]
[null,null,null,null,"9487 "]
[null,null,null,null,"948C "]
[null,null,null,null,"948E "]
[null,null,null,null,"948P "]
[null,null,null,null,"948R "]
[null,null,null,null,"948T "]
[null,null,null,null,"9490 "]
[null,null,null,null,"9492 "]
[null,null,null,null,"9498 "]
[null,null,null,null,"949A "]
[null,null,null,null,"949C "]
[null,null,null,null,"949F "]
[null,null,null,null,"949G "]
[null,null,null,null,"949M "]
[null,null,null,null,"949N "]
[null,null,null,null,"949R "]
[null,null,null,null,"949T "]
[null,null,null,null,"949W "]
[null,null,null,null,"949Y "]
[null,null,null,null,"94A1 "]
[null,null,null,null,"94A2 "]
[null,null,null,null,"94A7 "]
[null,null,null,null,"94AJ "]
[null,null,null,null,"94AX "]
[null,null,null,null,"94BH "]
[null,null,null,null,"94BJ "]
[null,null,null,null,"94BN "]
[null,null,null,null,"94BQ "]
[null,null,null,null,"94BR "]
[null,null,null,null,"94BW "]
[null,null,null,null,"94BX "]
[null,null,null,null,"94DE "]
[null,null,null,null,"94DK "]
[null,null,null,null,"94DL "]
[null,null,null,null,"94EA "]
[null,null,null,null,"94FA "]
[null,null,null,null,"94FC "]
[null,null,null,null,"94FD "]
[null,null,null,null,"94FE "]
[null,null,null,null,"9501 "]
[null,null,null,null,"9503 "]
[null,null,null,null,"9504 "]
[null,null,null,null,"9505 "]
[null,null,null,null,"9506 "]
[null,null,null,null,"9509 "]
[null,null,null,null,"9510 "]
[null,null,null,null,"9511 "]
[null,null,null,null,"9515 "]
[null,null,null,null,"9516 "]
[null,null,null,null,"9519 "]
[null,null,null,null,"9520 "]
[null,null,null,null,"9521 "]
[null,null,null,null,"9522 "]
[null,null,null,null,"9525 "]
[null,null,null,null,"9526 "]
[null,null,null,null,"9527 "]
[null,null,null,null,"9528 "]
[null,null,null,null,"9532 "]
[null,null,null,null,"9533 "]
[null,null,null,null,"9534 "]
[null,null,null,null,"9535 "]
[null,null,null,null,"9536 "]
[null,null,null,null,"9538 "]
[null,null,null,null,"9539 "]
[null,null,null,null,"9542 "]
[null,null,null,null,"9543 "]
[null,null,null,null,"9545 "]
[null,null,null,null,"9546 "]
[null,null,null,null,"9548 "]
[null,null,null,null,"9560 "]
[null,null,null,null,"9561 "]
[null,null,null,null,"9562 "]
[null,null,null,null,"9563 "]
[null,null,null,null,"9565 "]
[null,null,null,null,"9567 "]
[null,null,null,null,"9568 "]
[null,null,null,null,"9569 "]
[null,null,null,null,"956B "]
[null,null,null,null,"956C "]
[null,null,null,null,"956D "]
[null,null,null,null,"956F "]
[null,null,null,null,"956K "]
[null,null,null,null,"9570 "]
[null,null,null,null,"9572 "]
[null,null,null,null,"9573 "]
[null,null,null,null,"9574 "]
[null,null,null,null,"9576 "]
[null,null,null,null,"9577 "]
[null,null,null,null,"9578 "]
[null,null,null,null,"9586 "]
[null,null,null,null,"9587 "]
[null,null,null,null,"9591 "]
[null,null,null,null,"9592 "]
[null,null,null,null,"9598 "]
[null,null,null,null,"9618 "]
[null,null,null,null,"9646 "]
[null,null,null,null,"9647 "]
[null,null,null,null,"9648 "]
[null,null,null,null,"9649 "]
[null,null,null,null,"9650 "]
[null,null,null,null,"9651 "]
[null,null,null,null,"9652 "]
[null,null,null,null,"9653 "]
[null,null,null,null,"9654 "]
[null,null,null,null,"9655 "]
[null,null,null,null,"9656 "]
[null,null,null,null,"9657 "]
[null,null,null,null,"9658 "]
[null,null,null,null,"9659 "]
[null,null,null,null,"9660 "]
[null,null,null,null,"9661 "]
[null,null,null,null,"9662 "]
[null,null,null,null,"9663 "]
[null,null,null,null,"9664 "]
[null,null,null,null,"9665 "]
[null,null,null,null,"9666 "]
[null,null,null,null,"9667 "]
[null,null,null,null,"9668 "]
[null,null,null,null,"9669 "]
[null,null,null,null,"9670 "]
[null,null,null,null,"9671 "]
[null,null,null,null,"9672 "]
[null,null,null,null,"9673 "]
[null,null,null,null,"9674 "]
[null,null,null,null,"9676 "]
[null,null,null,null,"9677 "]
[null,null,null,null,"9678 "]
[null,null,null,null,"9679 "]
[null,null,null,null,"9680 "]
[null,null,null,null,"9681 "]
[null,null,null,null,"9682 "]
[null,null,null,null,"9683 "]
[null,null,null,null,"9684 "]
[null,null,null,null,"9685 "]
[null,null,null,null,"9686 "]
[null,null,null,null,"9687 "]
[null,null,null,null,"9688 "]
[null,null,null,null,"9689 "]
[null,null,null,null,"9690 "]
[null,null,null,null,"9691 "]
[null,null,null,null,"9692 "]
[null,null,null,null,"9693 "]
[null,null,null,null,"9694 "]
[null,null,null,null,"9695 "]
[null,null,null,null,"9697 "]
[null,null,null,null,"9698 "]
[null,null,null,null,"9699 "]
[null,null,null,null,"9700 "]
[null,null,null,null,"9701 "]
[null,null,null,null,"9702 "]
[null,null,null,null,"9703 "]
[null,null,null,null,"9704 "]
[null,null,null,null,"9705 "]
[null,null,null,null,"9706 "]
[null,null,null,null,"9707 "]
[null,null,null,null,"9708 "]
[null,null,null,null,"9709 "]
[null,null,null,null,"9710 "]
[null,null,null,null,"9711 "]
[null,null,null,null,"9712 "]
[null,null,null,null,"9715 "]
[null,null,null,null,"9716 "]
[null,null,null,null,"9717 "]
[null,null,null,null,"9718 "]
[null,null,null,null,"9719 "]
[null,null,null,null,"9720 "]
[null,null,null,null,"980A "]
[null,null,null,null,"980B "]
[null,null,null,null,"980C "]
[null,null,null,null,"980E "]
[null,null,null,null,"980F "]
[null,null,null,null,"980G "]
[null,null,null,null,"980H "]
[null,null,null,null,"980J "]
[null,null,null,null,"980K "]
[null,null,null,null,"980L "]
[null,null,null,null,"980M "]
[null,null,null,null,"980N "]
[null,null,null,null,"980R "]
[null,null,null,null,"980T "]
[null,null,null,null,"980W "]
[null,null,null,null,"980X "]
[null,null,null,null,"980Y "]
[null,null,null,null,"983A "]
[null,null,null,null,"983B "]
[null,null,null,null,"983C "]
[null,null,null,null,"983D "]
[null,null,null,null,"983E "]
[null,null,null,null,"983F "]
[null,null,null,null,"983J "]
[null,null,null,null,"983K "]
[null,null,null,null,"983M "]
[null,null,null,null,"996K "]
[null,null,null,null,"99AA "]
[null,null,null,null,"99AB "]
[null,null,null,null,"99AC "]
[null,null,null,null,"99AD "]
[null,null,null,null,"99AE "]
[null,null,null,null,"99AF "]
[null,null,null,null,"99AH "]
[null,null,null,null,"99AJ "]
[null,null,null,null,"99AK "]
[null,null,null,null,"99AN "]
[null,null,null,null,"99AP "]
[null,null,null,null,"99AQ "]
[null,null,null,null,"99AR "]
[null,null,null,null,"99AT "]
[null,null,null,null,"99AX "]
[null,null,null,null,"99AY "]
[null,null,null,null,"99AZ "]
[null,null,null,null,"99BA "]
[null,null,null,null,"99BB "]
[null,null,null,null,"99BC "]
[null,null,null,null,"99BD "]
[null,null,null,null,"99BE "]
[null,null,null,null,"99BF "]
[null,null,null,null,"99BG "]
[null,null,null,null,"99BJ "]
[null,null,null,null,"99BK "]
[null,null,null,null,"99BM "]
[null,null,null,null,"99BP "]
[null,null,null,null,"99BT "]
[null,null,null,null,"99BW "]
[null,null,null,null,"99BX "]
[null,null,null,null,"99CA "]
[null,null,null,null,"99CB "]
[null,null,null,null,"99CC "]
[null,null,null,null,"99CD "]
[null,null,null,null,"99CG "]
[null,null,null,null,"99CH "]
[null,null,null,null,"99CJ "]
[null,null,null,null,"99CK "]
[null,null,null,null,"99CL "]
[null,null,null,null,"99CM "]
[null,null,null,null,"99CN "]
[null,null,null,null,"99CP "]
[null,null,null,null,"99CQ "]
[null,null,null,null,"99CR "]
[null,null,null,null,"99CT "]
[null,null,null,null,"99CW "]
[null,null,null,null,"99CX "]
[null,null,null,null,"99CY "]
[null,null,null,null,"99DA "]
[null,null,null,null,"99XX "]
[null,null,null,null,"AS00 "]

{"sheet":"TIW","index":2,"n_rows":32,"n_cols":19,"rows_kept":32,"cut":false,"hidden":false,"merged":[[29,5,29,6],[29,9,33,18],[30,5,30,6],[31,5,31,6],[22,10,23,10],[22,11,23,11],[22,12,23,12],[22,15,23,15],[22,17,23,17],[22,0,23,0],[22,3,23,3],[22,4,23,4],[22,5,23,5],[22,9,23,9],[20,10,21,10],[20,11,21,11],[20,12,21,12],[20,15,21,15],[20,17,21,17],[20,0,21,0],[20,3,21,3],[20,4,21,4],[20,5,21,5],[20,9,21,9],[18,10,19,10],[18,11,19,11],[18,12,19,12],[18,15,19,15],[18,17,19,17],[18,0,19,0],[18,3,19,3],[18,4,19,4],[18,5,19,5],[18,9,19,9],[16,10,17,10],[16,11,17,11],[16,12,17,12],[16,15,17,15],[16,17,17,17],[16,0,17,0],[16,3,17,3],[16,4,17,4],[16,5,17,5],[16,9,17,9],[14,10,15,10],[14,11,15,11],[14,12,15,12],[14,15,15,15],[14,17,15,17],[14,0,15,0],[14,3,15,3],[14,4,15,4],[14,5,15,5],[14,9,15,9],[12,10,13,10],[12,11,13,11],[12,12,13,12],[12,15,13,15],[12,17,13,17],[12,0,13,0],[12,3,13,3],[12,4,13,4],[12,5,13,5],[12,9,13,9],[8,18,9,18],[10,0,11,0],[10,3,11,3],[10,4,11,4],[10,5,11,5],[10,9,11,9],[10,10,11,10],[10,11,11,11],[10,12,11,12],[10,15,11,15],[10,17,11,17],[6,11,6,17],[8,0,9,0],[8,1,9,1],[8,2,9,2],[8,3,9,3],[8,4,9,4],[8,5,9,5],[8,9,8,11],[8,14,9,14],[8,16,9,16],[8,17,9,17],[0,0,4,0],[0,2,1,2],[0,3,0,10],[1,3,1,10],[1,16,1,18],[2,3,2,10],[2,16,2,18],[3,2,3,13]]}
["UNLV",null,"Select","University of Nevada, Las Vegas"]
[null,null,null,"TRAVEL ITINERARY WORKSHEET",null,null,null,null,null,null,null,null,null,null,null,"TD# ",{"$f":"'TRAVEL DOCUMENT'!C1","v":"XXXXX"}]
[null,null,null,null,null,null,null,null,null,null,null,null,null,null,null,"2PV","Xxxxxxx"]
[null,null,"***  Use Drop down Menu in upper left hand corner for Pre-Travel and Post Travel ***"]
[null,null,null,null,null,null,null,null,null,null,null,null,null,null,1,"Page","of",null,"Pages"]
[]
["Traveler's Name: ",null,{"$f":"'TRAVEL DOCUMENT'!B5","v":"Last"},{"$f":"'TRAVEL DOCUMENT'!E5","v":"First"},null,null,null,null,"Traveler's Vendor Number:  ",null,null,{"$f":"'TRAVEL DOCUMENT'!B6","v":0}]
[]
["DATE","TIME","LOCATION","*METHOD OF TRAVEL","Amount for Method of Travel","Type of Mileage","Mileage",null,"*LODGING","MEALS & INCIDENTALS",null,null,"Foreign","*Host Expense","*Registration","*Car Rental","Taxi, Bus, Etc.","Parking","Other"]
[null,null,null,null,null,null,"Form",null,"Form","BREAKFAST","LUNCH","DINNER","Incidental","Form",null,"Form"]
[null,"08:50:00","Destination","Air",null,"Select Mileage Type",null,"Room Rate"]
[null,"00:00:00","Destination",null,null,null,{"$f":"IF(F11=\"CY 16 Personal\",G11*0.27,IF(F11=\"CY 16 UNLV\",G11*0.54,IF(F11=\"CY 17 Personal\",G11*0.2675, IF(F11=\"CY 17 UNLV\",G11*0.535,\"0.00\"))))","v":"0.00"},"Tax"]
[null,null,"Destination",null,null,null,null,"Room Rate"]
[null,null,"Destination",null,null,null,{"$f":"IF(F13=\"CY 16 Personal\",G13*0.27,IF(F13=\"CY 16 UNLV\",G13*0.54,IF(F13=\"CY 17 Personal\",G13*0.2675, IF(F13=\"CY 17 UNLV\",G13*0.535,\"0.00\"))))","v":"0.00"},"Tax"]
[null,null,"Destination",null,null,null,null,"Room Rate"]
[null,null,"Destination",null,null,null,{"$f":"IF(F15=\"CY 16 Personal\",G15*0.27,IF(F15=\"CY 16 UNLV\",G15*0.54,IF(F15=\"CY 17 Personal\",G15*0.2675, IF(F15=\"CY 17 UNLV\",G15*0.535,\"0.00\"))))","v":"0.00"},"Tax"]
[null,null,"Destination",null,null,null,null,"Room Rate"]
[null,null,"Destination",null,null,null,{"$f":"IF(F17=\"CY 16 Personal\",G17*0.27,IF(F17=\"CY 16 UNLV\",G17*0.54,IF(F17=\"CY 17 Personal\",G17*0.2675, IF(F17=\"CY 17 UNLV\",G17*0.535,\"0.00\"))))","v":"0.00"},"Tax"]
[null,null,"Destination",null,null,null,null,"Room Rate"]
[null,null,"Destination",null,null,null,{"$f":"IF(F19=\"CY 16 Personal\",G19*0.27,IF(F19=\"CY 16 UNLV\",G19*0.54,IF(F19=\"CY 17 Personal\",G19*0.2675, IF(F19=\"CY 17 UNLV\",G19*0.535,\"0.00\"))))","v":"0.00"},"Tax"]
[null,null,"Destination",null,null,null,null,"Room Rate"]
[null,null,"Destination",null,null,null,{"$f":"IF(F21=\"CY 16 Personal\",G21*0.27,IF(F21=\"CY 16 UNLV\",G21*0.54,IF(F21=\"CY 17 Personal\",G21*0.2675, IF(F21=\"CY 17 UNLV\",G21*0.535,\"0.00\"))))","v":"0.00"},"Tax"]
[null,null,"Destination",null,null,null,null,"Room Rate"]
[null,null,"Destination",null,null,null,{"$f":"IF(F23=\"CY 16 Personal\",G23*0.27,IF(F23=\"CY 16 UNLV\",G23*0.54,IF(F23=\"CY 17 Personal\",G23*0.2675, IF(F23=\"CY 17 UNLV\",G23*0.535,\"0.00\"))))","v":"0.00"},"Tax"]
[null,null,"Travel Itineray Page 1 TOTALS  ",null,{"$f":"SUM(E11:E24)","v":0},null,{"$f":"SUM(G12,G14,G16,G18,G20,G22,G24)","v":0},null,{"$f":"SUM(I11:I24)","v":0},{"$f":"SUM(J11:J24)","v":0},{"$f":"SUM(K11:K24)","v":0},0,{"$f":"SUM(M11:M24)","v":0},{"$f":"SUM(N11:N24)","v":0},{"$f":"SUM(O11:O24)","v":0},0,0,0,0]
[null,null,"Travel Itineray Page 2, 3, & 4 TOTALS  ",null,{"$f":"('TIW-2'!E25)+('TIW-3'!E25)+('TIW-4'!E25)","v":0},null,{"$f":"('TIW-2'!G25)+('TIW-3'!G25)+('TIW-4'!G25)","v":0},null,{"$f":"('TIW-2'!I25)+('TIW-3'!I25)+('TIW-4'!I25)","v":0},{"$f":"('TIW-2'!J25)+('TIW-3'!J25)+('TIW-4'!J25)","v":0},{"$f":"('TIW-2'!K25)+('TIW-3'!K25)+('TIW-4'!K25)","v":0},{"$f":"('TIW-2'!L25)+('TIW-3'!L25)+('TIW-4'!L25)","v":0},{"$f":"('TIW-2'!M25)+('TIW-3'!M25)+('TIW-4'!M25)","v":0},{"$f":"('TIW-2'!N25)+('TIW-3'!N25)+('TIW-4'!N25)","v":0},{"$f":"('TIW-2'!O25)+('TIW-3'!O25)+('TIW-4'!O25)","v":0},{"$f":"('TIW-2'!P25)+('TIW-3'!P25)+('TIW-4'!P25)","v":0},{"$f":"('TIW-2'!Q25)+('TIW-3'!Q25)+('TIW-4'!Q25)","v":0},{"$f":"('TIW-2'!R25)+('TIW-3'!R25)+('TIW-4'!R25)","v":0},{"$f":"('TIW-2'!S25)+('TIW-3'!S25)+('TIW-4'!S25)","v":0}]
[null,null,null,null,null,null,null,null,null,"Meals Page 1",{"$f":"SUM(J25:M25)","v":0},"Meals Page 2",{"$f":"SUM(J26:M26)","v":0}]
[]
[]
[null,null,null,"Total of Page (1)",null,{"$f":"SUM(E25,G25,I25:S25)","v":0},null,null,null,"COMMENTS: "]
["Affidavit of lost receipt ",null,null,"Total of Page (2)",null,{"$f":"SUM(E26,G26,I26:S26)","v":0}]
["*Original receipts are required for these categories!",null,null,"Total  Amount",null,{"$f":"SUM(F30:F31)","v":0}]

{"sheet":"TIW-2","index":3,"n_rows":31,"n_cols":19,"rows_kept":31,"cut":false,"hidden":false,"merged":[[22,0,23,0],[22,3,23,3],[22,4,23,4],[22,5,23,5],[22,9,23,9],[20,10,21,10],[20,11,21,11],[28,9,32,18],[20,12,21,12],[20,15,21,15],[20,17,21,17],[22,10,23,10],[22,11,23,11],[22,12,23,12],[22,15,23,15],[22,17,23,17],[25,9,25,12],[25,17,26,18],[20,0,21,0],[20,3,21,3],[20,4,21,4],[20,5,21,5],[20,9,21,9],[18,10,19,10],[18,11,19,11],[18,12,19,12],[18,15,19,15],[18,17,19,17],[18,0,19,0],[18,3,19,3],[18,4,19,4],[18,5,19,5],[18,9,19,9],[16,10,17,10],[16,11,17,11],[16,12,17,12],[16,15,17,15],[16,17,17,17],[16,0,17,0],[16,3,17,3],[16,4,17,4],[16,5,17,5],[16,9,17,9],[14,10,15,10],[14,11,15,11],[14,12,15,12],[14,15,15,15],[14,17,15,17],[14,0,15,0],[14,3,15,3],[14,4,15,4],[14,5,15,5],[14,9,15,9],[12,10,13,10],[12,11,13,11],[12,12,13,12],[12,15,13,15],[12,17,13,17],[12,0,13,0],[12,3,13,3],[12,4,13,4],[12,5,13,5],[12,9,13,9],[8,18,9,18],[10,0,11,0],[10,3,11,3],[10,4,11,4],[10,5,11,5],[10,9,11,9],[10,10,11,10],[10,11,11,11],[10,12,11,12],[10,15,11,15],[10,17,11,17],[6,11,6,17],[8,0,9,0],[8,1,9,1],[8,2,9,2],[8,3,9,3],[8,4,9,4],[8,5,9,5],[8,9,8,11],[8,14,9,14],[8,16,9,16],[8,17,9,17],[0,0,4,0],[0,2,1,2],[0,3,0,10],[1,3,1,10],[1,16,1,18],[2,3,2,10],[2,16,2,18]]}
["UNLV",null,{"$f":"IF([1]TIW!C1:C2=\"Pre-trip\",\"Pre-Trip\",IF([1]TIW!C1:C2=\"Post-trip\",\"Post-Trip\",IF([1]TIW!C1:C2=\"Both\",\"Both \",IF([1]TIW!C1:C2=\"Select\",\"\"))))","v":""},"University of Nevada, Las Vegas"]
[null,null,null,"TRAVEL ITINERARY WORKSHEET",null,null,null,null,null,null,null,null,null,null,null,"TD# ",{"$f":"'TRAVEL DOCUMENT'!C1","v":"XXXXX"}]
[null,null,null,null,null,null,null,null,null,null,null,null,null,null,null,"2PV","Xxxxxxx"]
[]
[null,null,null,null,null,null,null,null,null,null,null,null,null,null,2,"Page","of",null,"Pages"]
[]
["Traveler's Name: ",null,{"$f":"'TRAVEL DOCUMENT'!B5","v":"Last"},{"$f":"'TRAVEL DOCUMENT'!E5","v":"First"},null,null,null,null,"Traveler's Vendor Number:  ",null,null,{"$f":"'TRAVEL DOCUMENT'!B6","v":0}]
[]
["DATE","TIME","LOCATION","*METHOD OF TRAVEL","Amount for Method of Travel","Type of Mileage","Mileage",null,"*LODGING","MEALS & INCIDENTALS",null,null,"Foreign","*Host Expense","*Registration","*Car Rental","Taxi, Bus, Etc.","Parking","Other"]
[null,null,null,null,null,null,"Form",null,"Form","BREAKFAST","LUNCH","DINNER","Incidental","Form",null,"Form"]
[null,"08:50:00","Destination","Select Method of Travel",null,"Select Mileage Type",null,"Room Rate"]
[null,"00:00:00","Destination",null,null,null,{"$f":"IF(F11=\"CY 16 Personal\",G11*0.27,IF(F11=\"CY 16 UNLV\",G11*0.54,IF(F11=\"CY 17 Personal\",G11*0.2675, IF(F11=\"CY 17 UNLV\",G11*0.535,\"0.00\"))))","v":"0.00"},"Tax"]
[null,null,"Destination",null,null,null,null,"Room Rate"]
[null,null,"Destination",null,null,null,{"$f":"IF(F13=\"CY 16 Personal\",G13*0.27,IF(F13=\"CY 16 UNLV\",G13*0.54,IF(F13=\"CY 17 Personal\",G13*0.2675, IF(F13=\"CY 17 UNLV\",G13*0.535,\"0.00\"))))","v":"0.00"},"Tax"]
[null,null,"Destination",null,null,null,null,"Room Rate"]
[null,null,"Destination",null,null,null,{"$f":"IF(F15=\"CY 16 Personal\",G15*0.27,IF(F15=\"CY 16 UNLV\",G15*0.54,IF(F15=\"CY 17 Personal\",G15*0.2675, IF(F15=\"CY 17 UNLV\",G15*0.535,\"0.00\"))))","v":"0.00"},"Tax"]
[null,null,"Destination",null,null,null,null,"Room Rate"]
[null,null,"Destination",null,null,null,{"$f":"IF(F17=\"CY 16 Personal\",G17*0.27,IF(F17=\"CY 16 UNLV\",G17*0.54,IF(F17=\"CY 17 Personal\",G17*0.2675, IF(F17=\"CY 17 UNLV\",G17*0.535,\"0.00\"))))","v":"0.00"},"Tax"]
[null,null,"Destination",null,null,null,null,"Room Rate"]
[null,null,"Destination",null,null,null,{"$f":"IF(F19=\"CY 16 Personal\",G19*0.27,IF(F19=\"CY 16 UNLV\",G19*0.54,IF(F19=\"CY 17 Personal\",G19*0.2675, IF(F19=\"CY 17 UNLV\",G19*0.535,\"0.00\"))))","v":"0.00"},"Tax"]
[null,null,"Destination",null,null,null,null,"Room Rate"]
[null,null,"Destination",null,null,null,{"$f":"IF(F21=\"CY 16 Personal\",G21*0.27,IF(F21=\"CY 16 UNLV\",G21*0.54,IF(F21=\"CY 17 Personal\",G21*0.2675, IF(F21=\"CY 17 UNLV\",G21*0.535,\"0.00\"))))","v":"0.00"},"Tax"]
[null,null,"Destination",null,null,null,null,"Room Rate"]
[null,null,"Destination",null,null,null,{"$f":"IF(F23=\"CY 16 Personal\",G23*0.27,IF(F23=\"CY 16 UNLV\",G23*0.54,IF(F23=\"CY 17 Personal\",G23*0.2675, IF(F23=\"CY 17 UNLV\",G23*0.535,\"0.00\"))))","v":"0.00"},"Tax"]
[null,null,"TOTALS  ",null,{"$f":"SUM(E11:E24)","v":0},null,{"$f":"SUM(G12,G14,G16,G18,G20,G22,G24)","v":0},null,{"$f":"SUM(I11:I24)","v":0},{"$f":"SUM(J11:J24)","v":0},{"$f":"SUM(K11:K24)","v":0},0,{"$f":"SUM(M11:M24)","v":0},{"$f":"SUM(N11:N24)","v":0},{"$f":"SUM(O11:O24)","v":0},0,0,0,0]
[null,null,null,null,null,null,null,null,"TOTAL MEALS",{"$f":"SUM(J25:M25)","v":0},null,null,null,null,null,null,"TOTAL",{"$f":"SUM(E25,G25,I25:S25)","v":0}]
[null,null,null,null,null,null,null,null,null,null,null,null,null,null,null,null,"AMOUNT"]
[]
[null,null,null,null,null,null,null,null,null,"COMMENTS: "]
["Affidavit of lost receipt "]
["*Original receipts are required for these categories!"]

{"sheet":"TIW-3","index":4,"n_rows":31,"n_cols":19,"rows_kept":31,"cut":false,"hidden":false,"merged":[[25,9,25,12],[25,17,26,18],[28,9,32,18],[22,10,23,10],[22,11,23,11],[22,12,23,12],[22,15,23,15],[22,17,23,17],[22,0,23,0],[22,3,23,3],[22,4,23,4],[22,5,23,5],[22,9,23,9],[20,10,21,10],[20,11,21,11],[20,12,21,12],[20,15,21,15],[20,17,21,17],[20,0,21,0],[20,3,21,3],[20,4,21,4],[20,5,21,5],[20,9,21,9],[18,10,19,10],[18,11,19,11],[18,12,19,12],[18,15,19,15],[18,17,19,17],[18,0,19,0],[18,3,19,3],[18,4,19,4],[18,5,19,5],[18,9,19,9],[16,10,17,10],[16,11,17,11],[16,12,17,12],[16,15,17,15],[16,17,17,17],[16,0,17,0],[16,3,17,3],[16,4,17,4],[16,5,17,5],[16,9,17,9],[14,10,15,10],[14,11,15,11],[14,12,15,12],[14,15,15,15],[14,17,15,17],[14,0,15,0],[14,3,15,3],[14,4,15,4],[14,5,15,5],[14,9,15,9],[12,10,13,10],[12,11,13,11],[12,12,13,12],[12,15,13,15],[12,17,13,17],[12,0,13,0],[12,3,13,3],[12,4,13,4],[12,5,13,5],[12,9,13,9],[8,18,9,18],[10,0,11,0],[10,3,11,3],[10,4,11,4],[10,5,11,5],[10,9,11,9],[10,10,11,10],[10,11,11,11],[10,12,11,12],[10,15,11,15],[10,17,11,17],[6,11,6,17],[8,0,9,0],[8,1,9,1],[8,2,9,2],[8,3,9,3],[8,4,9,4],[8,5,9,5],[8,9,8,11],[8,14,9,14],[8,16,9,16],[8,17,9,17],[0,0,4,0],[0,2,1,2],[0,3,0,10],[1,3,1,10],[1,16,1,18],[2,3,2,10],[2,16,2,18]]}
["UNLV",null,{"$f":"IF([1]TIW!C1:C2=\"Pre-trip\",\"Pre-Trip\",IF([1]TIW!C1:C2=\"Post-trip\",\"Post-Trip\",IF([1]TIW!C1:C2=\"Both\",\"Both \",IF([1]TIW!C1:C2=\"Select\",\"\"))))","v":""},"University of Nevada, Las Vegas"]
[null,null,null,"TRAVEL ITINERARY WORKSHEET",null,null,null,null,null,null,null,null,null,null,null,"TD# ",{"$f":"'TRAVEL DOCUMENT'!C1","v":"XXXXX"}]
[null,null,null,null,null,null,null,null,null,null,null,null,null,null,null,"2PV","Xxxxxxx"]
[]
[null,null,null,null,null,null,null,null,null,null,null,null,null,null,2,"Page","of",null,"Pages"]
[]
["Traveler's Name: ",null,{"$f":"'TRAVEL DOCUMENT'!B5","v":"Last"},{"$f":"'TRAVEL DOCUMENT'!E5","v":"First"},null,null,null,null,"Traveler's Vendor Number:  ",null,null,{"$f":"'TRAVEL DOCUMENT'!B6","v":0}]
[]
["DATE","TIME","LOCATION","*METHOD OF TRAVEL","Amount for Method of Travel","Type of Mileage","Mileage",null,"*LODGING","MEALS & INCIDENTALS",null,null,"Foreign","*Host Expense","*Registration","*Car Rental","Taxi, Bus, Etc.","Parking","Other"]
[null,null,null,null,null,null,"Form",null,"Form","BREAKFAST","LUNCH","DINNER","Incidental","Form",null,"Form"]
[null,"08:50:00","Destination","Select Method of Travel",null,"Select Mileage Type",null,"Room Rate"]
[null,"00:00:00","Destination",null,null,null,{"$f":"IF(F11=\"CY 16 Personal\",G11*0.27,IF(F11=\"CY 16 UNLV\",G11*0.54,IF(F11=\"CY 17 Personal\",G11*0.2675, IF(F11=\"CY 17 UNLV\",G11*0.535,\"0.00\"))))","v":"0.00"},"Tax"]
[null,null,"Destination",null,null,null,null,"Room Rate"]
[null,null,"Destination",null,null,null,{"$f":"IF(F13=\"CY 16 Personal\",G13*0.27,IF(F13=\"CY 16 UNLV\",G13*0.54,IF(F13=\"CY 17 Personal\",G13*0.2675, IF(F13=\"CY 17 UNLV\",G13*0.535,\"0.00\"))))","v":"0.00"},"Tax"]
[null,null,"Destination",null,null,null,null,"Room Rate"]
[null,null,"Destination",null,null,null,{"$f":"IF(F15=\"CY 16 Personal\",G15*0.27,IF(F15=\"CY 16 UNLV\",G15*0.54,IF(F15=\"CY 17 Personal\",G15*0.2675, IF(F15=\"CY 17 UNLV\",G15*0.535,\"0.00\"))))","v":"0.00"},"Tax"]
[null,null,"Destination",null,null,null,null,"Room Rate"]
[null,null,"Destination",null,null,null,{"$f":"IF(F17=\"CY 16 Personal\",G17*0.27,IF(F17=\"CY 16 UNLV\",G17*0.54,IF(F17=\"CY 17 Personal\",G17*0.2675, IF(F17=\"CY 17 UNLV\",G17*0.535,\"0.00\"))))","v":"0.00"},"Tax"]
[null,null,"Destination",null,null,null,null,"Room Rate"]
[null,null,"Destination",null,null,null,{"$f":"IF(F19=\"CY 16 Personal\",G19*0.27,IF(F19=\"CY 16 UNLV\",G19*0.54,IF(F19=\"CY 17 Personal\",G19*0.2675, IF(F19=\"CY 17 UNLV\",G19*0.535,\"0.00\"))))","v":"0.00"},"Tax"]
[null,null,"Destination",null,null,null,null,"Room Rate"]
[null,null,"Destination",null,null,null,{"$f":"IF(F21=\"CY 16 Personal\",G21*0.27,IF(F21=\"CY 16 UNLV\",G21*0.54,IF(F21=\"CY 17 Personal\",G21*0.2675, IF(F21=\"CY 17 UNLV\",G21*0.535,\"0.00\"))))","v":"0.00"},"Tax"]
[null,null,"Destination",null,null,null,null,"Room Rate"]
[null,null,"Destination",null,null,null,{"$f":"IF(F23=\"CY 16 Personal\",G23*0.27,IF(F23=\"CY 16 UNLV\",G23*0.54,IF(F23=\"CY 17 Personal\",G23*0.2675, IF(F23=\"CY 17 UNLV\",G23*0.535,\"0.00\"))))","v":"0.00"},"Tax"]
[null,null,"TOTALS  ",null,{"$f":"SUM(E11:E24)","v":0},null,{"$f":"SUM(G12,G14,G16,G18,G20,G22,G24)","v":0},null,{"$f":"SUM(I11:I24)","v":0},{"$f":"SUM(J11:J24)","v":0},{"$f":"SUM(K11:K24)","v":0},0,{"$f":"SUM(M11:M24)","v":0},{"$f":"SUM(N11:N24)","v":0},{"$f":"SUM(O11:O24)","v":0},0,0,0,0]
[null,null,null,null,null,null,null,null,"TOTAL MEALS",{"$f":"SUM(J25:M25)","v":0},null,null,null,null,null,null,"TOTAL",{"$f":"SUM(E25,G25,I25:S25)","v":0}]
[null,null,null,null,null,null,null,null,null,null,null,null,null,null,null,null,"AMOUNT"]
[]
[null,null,null,null,null,null,null,null,null,"COMMENTS: "]
["Affidavit of lost receipt "]
["*Original receipts are required for these categories!"]

{"sheet":"TIW-4","index":5,"n_rows":31,"n_cols":19,"rows_kept":31,"cut":false,"hidden":false,"merged":[[0,0,4,0],[0,2,1,2],[0,3,0,10],[1,3,1,10],[1,16,1,18],[2,3,2,10],[2,16,2,18],[6,11,6,17],[8,0,9,0],[8,1,9,1],[8,2,9,2],[8,3,9,3],[8,4,9,4],[8,5,9,5],[8,9,8,11],[8,14,9,14],[8,16,9,16],[8,17,9,17],[8,18,9,18],[10,0,11,0],[10,3,11,3],[10,4,11,4],[10,5,11,5],[10,9,11,9],[10,10,11,10],[10,11,11,11],[10,12,11,12],[10,15,11,15],[10,17,11,17],[12,0,13,0],[12,3,13,3],[12,4,13,4],[12,5,13,5],[12,9,13,9],[12,10,13,10],[12,11,13,11],[12,12,13,12],[12,15,13,15],[12,17,13,17],[14,0,15,0],[14,3,15,3],[14,4,15,4],[14,5,15,5],[14,9,15,9],[14,10,15,10],[14,11,15,11],[14,12,15,12],[14,15,15,15],[14,17,15,17],[16,0,17,0],[16,3,17,3],[16,4,17,4],[16,5,17,5],[16,9,17,9],[16,10,17,10],[16,11,17,11],[16,12,17,12],[16,15,17,15],[16,17,17,17],[18,0,19,0],[18,3,19,3],[18,4,19,4],[18,5,19,5],[18,9,19,9],[18,10,19,10],[18,11,19,11],[18,12,19,12],[18,15,19,15],[18,17,19,17],[20,0,21,0],[20,3,21,3],[20,4,21,4],[20,5,21,5],[20,9,21,9],[20,10,21,10],[20,11,21,11],[20,12,21,12],[20,15,21,15],[20,17,21,17],[22,0,23,0],[22,3,23,3],[22,4,23,4],[22,5,23,5],[22,9,23,9],[25,9,25,12],[25,17,26,18],[28,9,32,18],[22,10,23,10],[22,11,23,11],[22,12,23,12],[22,15,23,15],[22,17,23,17]]}
["UNLV",null,{"$f":"IF([1]TIW!C1:C2=\"Pre-trip\",\"Pre-Trip\",IF([1]TIW!C1:C2=\"Post-trip\",\"Post-Trip\",IF([1]TIW!C1:C2=\"Both\",\"Both \",IF([1]TIW!C1:C2=\"Select\",\"\"))))","v":""},"University of Nevada, Las Vegas"]
[null,null,null,"TRAVEL ITINERARY WORKSHEET",null,null,null,null,null,null,null,null,null,null,null,"TD# ",{"$f":"'TRAVEL DOCUMENT'!C1","v":"XXXXX"}]
[null,null,null,null,null,null,null,null,null,null,null,null,null,null,null,"2PV","Xxxxxxx"]
[]
[null,null,null,null,null,null,null,null,null,null,null,null,null,null,2,"Page","of",null,"Pages"]
[]
["Traveler's Name: ",null,{"$f":"'TRAVEL DOCUMENT'!B5","v":"Last"},{"$f":"'TRAVEL DOCUMENT'!E5","v":"First"},null,null,null,null,"Traveler's Vendor Number:  ",null,null,{"$f":"'TRAVEL DOCUMENT'!B6","v":0}]
[]
["DATE","TIME","LOCATION","*METHOD OF TRAVEL","Amount for Method of Travel","Type of Mileage","Mileage",null,"*LODGING","MEALS & INCIDENTALS",null,null,"Foreign","*Host Expense","*Registration","*Car Rental","Taxi, Bus, Etc.","Parking","Other"]
[null,null,null,null,null,null,"Form",null,"Form","BREAKFAST","LUNCH","DINNER","Incidental","Form",null,"Form"]
[null,"08:50:00","Destination","Select Method of Travel",null,"Select Mileage Type",null,"Room Rate"]
[null,"00:00:00","Destination",null,null,null,{"$f":"IF(F11=\"CY 16 Personal\",G11*0.27,IF(F11=\"CY 16 UNLV\",G11*0.54,IF(F11=\"CY 17 Personal\",G11*0.2675, IF(F11=\"CY 17 UNLV\",G11*0.535,\"0.00\"))))","v":"0.00"},"Tax"]
[null,null,"Destination",null,null,null,null,"Room Rate"]
[null,null,"Destination",null,null,null,{"$f":"IF(F13=\"CY 16 Personal\",G13*0.27,IF(F13=\"CY 16 UNLV\",G13*0.54,IF(F13=\"CY 17 Personal\",G13*0.2675, IF(F13=\"CY 17 UNLV\",G13*0.535,\"0.00\"))))","v":"0.00"},"Tax"]
[null,null,"Destination",null,null,null,null,"Room Rate"]
[null,null,"Destination",null,null,null,{"$f":"IF(F15=\"CY 16 Personal\",G15*0.27,IF(F15=\"CY 16 UNLV\",G15*0.54,IF(F15=\"CY 17 Personal\",G15*0.2675, IF(F15=\"CY 17 UNLV\",G15*0.535,\"0.00\"))))","v":"0.00"},"Tax"]
[null,null,"Destination",null,null,null,null,"Room Rate"]
[null,null,"Destination",null,null,null,{"$f":"IF(F17=\"CY 16 Personal\",G17*0.27,IF(F17=\"CY 16 UNLV\",G17*0.54,IF(F17=\"CY 17 Personal\",G17*0.2675, IF(F17=\"CY 17 UNLV\",G17*0.535,\"0.00\"))))","v":"0.00"},"Tax"]
[null,null,"Destination",null,null,null,null,"Room Rate"]
[null,null,"Destination",null,null,null,{"$f":"IF(F19=\"CY 16 Personal\",G19*0.27,IF(F19=\"CY 16 UNLV\",G19*0.54,IF(F19=\"CY 17 Personal\",G19*0.2675, IF(F19=\"CY 17 UNLV\",G19*0.535,\"0.00\"))))","v":"0.00"},"Tax"]
[null,null,"Destination",null,null,null,null,"Room Rate"]
[null,null,"Destination",null,null,null,{"$f":"IF(F21=\"CY 16 Personal\",G21*0.27,IF(F21=\"CY 16 UNLV\",G21*0.54,IF(F21=\"CY 17 Personal\",G21*0.2675, IF(F21=\"CY 17 UNLV\",G21*0.535,\"0.00\"))))","v":"0.00"},"Tax"]
[null,null,"Destination",null,null,null,null,"Room Rate"]
[null,null,"Destination",null,null,null,{"$f":"IF(F23=\"CY 16 Personal\",G23*0.27,IF(F23=\"CY 16 UNLV\",G23*0.54,IF(F23=\"CY 17 Personal\",G23*0.2675, IF(F23=\"CY 17 UNLV\",G23*0.535,\"0.00\"))))","v":"0.00"},"Tax"]
[null,null,"TOTALS  ",null,{"$f":"SUM(E11:E24)","v":0},null,{"$f":"SUM(G12,G14,G16,G18,G20,G22,G24)","v":0},null,{"$f":"SUM(I11:I24)","v":0},{"$f":"SUM(J11:J24)","v":0},{"$f":"SUM(K11:K24)","v":0},0,{"$f":"SUM(M11:M24)","v":0},{"$f":"SUM(N11:N24)","v":0},{"$f":"SUM(O11:O24)","v":0},0,0,0,0]
[null,null,null,null,null,null,null,null,"TOTAL MEALS",{"$f":"SUM(J25:M25)","v":0},null,null,null,null,null,null,"TOTAL",{"$f":"SUM(E25,G25,I25:S25)","v":0}]
[null,null,null,null,null,null,null,null,null,null,null,null,null,null,null,null,"AMOUNT"]
[]
[null,null,null,null,null,null,null,null,null,"COMMENTS: "]
["Affidavit of lost receipt "]
["*Original receipts are required for these categories!"]

{"sheet":"Lodging Exception Form 2","index":6,"n_rows":44,"n_cols":14,"rows_kept":44,"cut":false,"hidden":false,"merged":[[0,0,0,13],[1,7,1,11],[2,3,2,4],[2,5,2,6],[2,7,5,11],[3,3,3,4],[3,5,3,6],[4,3,4,4],[4,5,4,6],[5,3,5,4],[5,5,5,6],[6,0,6,13],[8,0,8,3],[8,4,9,5],[8,7,9,13],[9,0,9,3],[12,0,12,6],[12,7,12,13],[13,0,15,6],[13,7,15,13],[16,0,16,6],[16,7,16,13],[33,6,33,7],[33,8,33,11],[20,0,20,13],[21,0,21,13],[22,0,22,13],[23,0,25,13],[27,4,27,11],[28,0,33,2],[28,4,28,5],[28,6,28,7],[28,8,28,11],[28,13,33,13],[29,4,29,5],[29,6,29,7],[29,8,29,11],[36,0,37,13],[38,0,38,4],[38,5,38,9],[38,10,38,13],[17,1,17,6],[18,1,18,6],[19,1,19,6],[17,8,17,13],[18,8,18,13],[19,8,19,13],[32,4,32,7],[32,8,32,11],[34,4,34,5],[34,6,34,7],[34,8,34,11],[33,4,33,5],[43,1,43,4],[43,6,43,9],[43,11,43,13],[42,2,42,12],[39,1,39,4],[39,6,39,9],[39,11,39,13],[40,0,40,13]]}
["Lodging Exception Approval Form"]
[null,null,null,null,null,null,null,"List additional notes here:"]
[null,null,null,"Travel Document #:"]
[null,null,null,"Traveler Name:"]
[null,null,null,"Travel Destination:"]
[null,null,null,"Travel Dates:"]
["Condition Requirements"]
[]
["Condition applied ",null,null,null,null,null,null,"NOTE: The only exception that can be granted over the GSA/Federal lodging rates are if a traveler can document one of the two conditions below.  (\"A\" or \"B\") exists and an appropriate appointing authority approves the request in advance of the travel. Lodging exceptions are valid with the proper approval from vice presidents, associate vice presidents, deans and associate deans or the equivalent."]
["Enter \"A\"or \"B\" "]
[]
[]
["        Condition:  A",null,null,null,null,null,null,"          Condition B:"]
["A.        Lodging is procured at a prearranged place such as a hotel where a meeting, conference or training session is held.  ",null,null,null,null,null,null,"B.          Costs have escalated because of special events; lodging within prescribed allowances cannot be obtained nearby ; and costs to commute to/from the nearby location exceed the cost savings from occupying less expensive lodging. "]
[]
[]
["** For Condition \"A\" ",null,null,null,null,null,null,"** For Condition \"B\", the following information is required."]
["•","Supply the approving authority with the conference or training brochure that states the prearranged host accommodations.  ",null,null,null,null,null,"• ","Obtain and document the name/date of the special event that is causing the cost escalation;"]
["• ","Conference or training brochures are required to be submitted with the Travel Document requesting reimbursement.",null,null,null,null,null,"•","A list of at least three lodging establishments and corresponding rate quotes of nearby (within five mile radius) "]
["•","Lodging exception documentation should be kept in your office for audit purposes.",null,null,null,null,null,"•","A written explanation of how staying at the more expensive lodging establishment will provide a cost savings."]
["For more travel information including lodging exception examples and meal per diems please review the travel web site at: "]
["http://accountspayable.unlv.edu/Trvlman/travel.htm"]
["This documentation is required to be submitted with the travel document requesting reimbursement along with conference or training brochures."]
[]
[]
[]
[]
[null,null,null,null,"GSA Rates"]
["Even with approved exception, the maximum exception rate allowable may limit reimbursement if actual lodging rate exceeds the maximum allowable exception rate.",null,null,null,"Select the GSA Type",null,"Enter GSA Amount",null,"Maximum GSA Lodging Exception Rate",null,null,null,null,{"$f":"IF(I34=\"Total non-reimbursable lodging expenses not covered by Travel Policy.\",\"Obtain special approval from Dean or Higher to meet special condition A or B only. Or make check out to the Board of Regents or it may be deducted from the amount due.\",\"\")","v":""}]
[null,null,null,null,null,null,null,null,{"$f":"IF(Sheet2!B1=\"Out of State-            Surveyed\",SUM(G30*175%),IF(Sheet2!B1=\"Out of State-   Non-Surveyed\",SUM(G30*300%),IF(Sheet2!B1=\"InState-            Non-Surveyed\",SUM(G30*150%),IF(Sheet2!B1=\"In State-                    Surveyed\",SUM(G30*1),IF(Sheet2!B1=\"Foreign-                    Surveyed\",SUM(G30*150%),IF(Sheet2!B1=\"Foreign-           Non-Surveyed\",SUM(G30*300%),\"0\"))))))","v":0}]
[]
[]
[null,null,null,null,"Actual Rate Per Night",null,null,null,"Amount Owed Per Night"]
[null,null,null,null,"Actual Lodging rate          (excluding tax)",null,"Total Tax Amount",null,{"$f":"IF(I35>=0.001,\"Total non-reimbursable lodging expenses not covered by Travel Policy.\",\"Amount Owed\")","v":"Amount Owed"}]
[null,null,null,null,null,null,null,null,{"$f":"IF(E35>I30,SUM((E35+G35)-SUM((ROUND(G35/E35,4)*I30)+I30)),0)","v":0}]
[]
["APPOINTING AUTHORITY APPROVAL:   Associate Dean or Higher"]
[]
[]
["Print Name",null,null,null,null,"Signature",null,null,null,null,"Date:"]
["If you have any questions about how to use this form please call 895-1157 "]
[]
[null,null,{"$f":"IF(I34=\"Total non-reimbursable lodging expenses not covered by Travel Policy.\",\"Dean or Higher special approval for going over GSA Exception rate\",\"\")","v":""}]
[{"$f":"IF(I34=\"Total non-reimbursable lodging expenses not covered by Travel Policy.\",\"Print Name\",\"\")","v":""},null,null,null,null,{"$f":"IF(I34=\"Total non-reimbursable lodging expenses not covered by Travel Policy.\",\"Signature\",\"\")","v":""},null,null,null,null,{"$f":"IF(I34=\"Total non-reimbursable lodging expenses not covered by Travel Policy.\",\"Date\",\"\")","v":""}]

{"sheet":"Rental Exception Request","index":7,"n_rows":27,"n_cols":11,"rows_kept":27,"cut":false,"hidden":false,"merged":[[10,12,11,15],[26,3,26,4],[26,5,26,8],[26,10,27,11],[26,12,27,15],[23,3,23,4],[23,5,23,8],[23,10,23,11],[23,12,23,15],[24,3,24,4],[24,5,24,8],[24,10,25,11],[24,12,25,15],[0,1,0,16],[1,1,1,16],[3,1,7,16],[8,1,8,16],[25,3,25,4],[25,5,25,8],[13,2,14,3],[13,10,16,11],[13,12,21,15],[15,3,16,6],[15,7,16,7],[17,10,21,11],[19,2,20,3],[10,3,11,3],[10,4,11,6],[10,10,11,11]]}
[null,"Non Contracted Vehicle Rental "]
[null,"Request for Authorization Form"]
[]
[null,"This authorization form does not guarantee reimbursement of funds. Review of the travel document is needed as a state contracted agency was not used for your vehicle rental needs. Per NSHE policy state agency contracts must be used to insure the required insurance as well as cost controls are in effect during the rental period.   If there are extenuating circumstances, which did not allow use of the state contract, please provide a detailed explanation immediately.                                    "]
[]
[]
[]
[]
[null,"                  If the explanation is not acceptable the following adjustment will be made to your travel document.                                      "]
[]
[null,null,null,"TD#",null,null,null,null,null,null,"Traveler's Name"]
[]
[]
[null,null,"A: If paid out-of-pocket:",null,null,null,null,null,null,null,"Reason for not using contracted agency:"]
[]
[null,null,null,"Due to Non-Adherance of the auto rental policy my reimbursement request will be reduced by: ",null,null,null,0]
[]
[]
[]
[null,null,"B: If purchased on p-card:"]
[]
[null,null,null,"The Pcard Administrator will be notified of the policy violation."]
[]
[null,null,null,"Agency Used:",null,null,null,null,null,null,"Traveler's Signature"]
[null,null,null,"Amount of Rental:",null,null,null,null,null,null,"Account Authority Signature"]
[null,null,null,"Date of Rental:"]
[null,null,null,"Last four digits of Pcard:",null,null,null,null,null,null,"Printed Authority Signature"]

{"sheet":"Sheet2","index":8,"n_rows":7,"n_cols":2,"rows_kept":7,"cut":false,"hidden":true,"merged":[]}
["Select GSA Rate","Out of State-            Surveyed"]
["Out of State-            Surveyed"]
["Out of State-   Non-Surveyed"]
["In State-                    Surveyed"]
["InState-            Non-Surveyed"]
["Foreign-                    Surveyed"]
["Foreign-           Non-Surveyed"]